Workbook

Sheet Info
B2: Potential Cost Savings from improvement to retention due to flexible working or other initiatives
B4: Background
B6: We have created a simple Cost Calculator to help organisations identify potential cost savings from improving access to Flexible working.
B8: Access to flexible working by default and from day one is a key commitment in the People Plan. Flexible working is an increasingly important aspect of any organisation’s retention strategy; a recent report by the Behavioural Insights Team found that access to flexible working was one of the top three benefits that retained staff within the NHS. Access to high-quality flexible working can therefore increase an organisation’s ability to attract and retain diverse talent.
B10: The cost calculator can be used as part of data gathering to support flexible working implementation, to help you make the case for change.
B12: The calculator has sheets for different staff groups. You will need workforce data and to identify a target estimate for improving staff retention for each staff group, potential savings will then be generated with all information feeding into an organisational summary. You will also need worforce data from ESR which captures reasons for leaving - if you want to focus specifically on improving retention due to flexible working, you may want to focus only on the number of leavers who say they left due to flexibility or work life balance. Or if you have a high number of leavers with no reason for leaving recorded, you may want to use an estimate of the number leaving for this reason.
B14: A blank sheet is also included, for organisations to use to calculate potential cost savings from different retention initiatives. It contains the same formula but does not link into the summary.
B16: Data required
B18: As well as headcount and leaver numbers for each staff group, to focus on flexible working you will need to consider the ESR data for the number of leavers due to flexibility or work life balance. The sheet asks for an average bank and agency cost by AfC pay grade for one staff member. The costs for these have been built into the calculator. The calculator uses an estimate of a 12 week period for a replacement to be recruited and start and a two week period for their induction. As bank and agency costs vary they will need to be inserted at a local level for each staff group.
B20: The sheet also asks for any additional costs to administer each leaver and starter, for example the cost of your HR recruitment administrative team divided by the number of staff recruited would give a recruitment cost per person. This is referred to as a non-cash releasing cost.
B22: Project costs associated with improving flexible working are also taken into account, giving overall potential target savings after the investment in these costs. So for example if you have a change team working on flexible working you could enter a cost for their time, using their salary cost for the time they are speding on the project. This figure is included on each sheet and so you will need to divide the total cost, by the number of areas you are working on / sheets you complete.
B24: Pay bill costs associated with AfC pay grades such as geographical enhancements, top/middle/bottom salary values and on costs (circa 30%) can also been included by selecting the relevent drop down lists on each tab.
B26: A step by step guide to what to insert into each cell is given on the next page.

Sheet Guide
B1: Potential Cost Savings from improvement to retention due to flexible working or other initiatives
B2: Calculator user guide with examples
B5: This sheet gives further guidance on how to use the calculator and the information needed in each cell. The sheet is colour coded in the following way to make it easy to see where you need to add data and where data has aleady been added or will be calculated automatically.
B6: Calculated Field
B7: Prepopulated Cell
B8: Enter Data in Cell
B10: Step 1 The first box to complete is organisational investment, the cost that your organisation might have for the project team working on this retention initiative - such as the Flexible Working Change Team. This box is optional and is particularly relevant if you recruit people to work on this area as it takes the cost of their time from any savings generated. If it is helpful to calculate this figure, then take the hourly cost of the people involved and multipy this by the hours spent on the project, and then insert that figure.
B11: Please divide this by the number of sheets you are completing and areas of work you are focusing on - for example if you are focusing on just trained nursing staff and medical staff divide your project costs between these sheets. This is to ensure you don't double count these costs. The total on the summary page should be the total of the project costs.
B20: Step 2
B21: In this section for Agenda for Change costings, use the drop-down list in each cell to select the relevent geographical weighting, salary pay point and on costs. The figures you choose relate to the budget that managers have for each post - usually your finance team can tell you if they budget at bottom, mid or top salary pay point. Choose the relevant geographical allowance for your organisation. You can also choose to include or excluse on cost (on costs are the costs the employer pays on top of the salary and usually are made up of the cost of pension and NI) We have used a figure of 30% for on-costs but this may vary between organisations and your finance team can advise you of your actual figure. In phase 2 of development we hope to offer a cell where you can add your organisation's actual on cost percentage. The AfC pay costs will automatically update when these drop-down menus are changed. At the moment Medical and Dental salaries are not prepopulated - in phase 2 which will be released in December, drop down payscales for medical staff will be included.
B36: Step 3
B37: Insert: Headcount and number of leavers for each staff group, by payband on the separate sheets. This should be available from your workforce reports or from your workforce analyst by interrogating ESR. If you are calculating opportunities for cost savings due to flexible working please just include the number of leavers due to work life balance and flexibility (these are options on ESR). If you have a large number of leavers with the reason for leaving as 'unknown' you may also want to include an estimated % of the 'unknowns' on the assumption that a proportion will be due to work / life balance and flexibility. You may also want to look at the complete list of reasons for leaving and decide to include other categories such as leaving due to caring for adults / children as it may have been able to retain these staff with greater access to flexible working. The turnover rate % due to reasons likley to be related to flexible working will be calculated automatically.
B49: Step 4
B50: Insert the average bank and agency cost that your organisation is currently incurring for one whole time equivalent for each payband for a period of 12 weeks. Some organisations have obtained this from the financial ledger, some from the bank and agency team. If the costs you have are an average hourly rate then this needs to be muliplied by 37.5 hours to give the weekly rate and then by 12 to give the amount for 12 weeks. We have chosen 12 weeks as an estimated time period that it would take to replace one person leaving. An average 2 week bank and agency cost will then be automatically calculated from these fiigures. We have chosen the additional 2 weeks as an approximate length of time it would take to induct and train a new recruit. Average budgets per WTE are prepopulated in the calculator - these are calculated on the basis of selections from step 2. The difference between the bank and agency costs and the budget costs will then be calculated automtically, showing the additional costs to the oragnisation for each leaver in that payband, if they are covered by bank and agency staff. In some cases if only bank staff are used and are paid at an hourly rate less than the budget, additional costs may not be incurred, but in most cases there will be extra costs from using temporary staff.
B53: Insert a picture to show
B56: Step 5
B57: You can also add costs that are fixed (which we have described as non-cash releasing) so that these are included in potential savings from improving retention. This step is also optional and sometimes these costs are difficult to calculate. The boxes include administration of the resignation - this could be costed by a calculation of any HR admin costs that are used to administer leavers divided by the total number of leavers per year. Recruitment and selection costs could be calculated in a similar way by a calculation of HR admin costs for your recruitment team divided by the number of starters per year. If you incur costs from advertising posts, an avergae cost per new recruit could be calcuated and included. Induction costs can be included if you can calculate these on the basis of training team time or cost of mandatory training per recruit. Finally there is an 'other' section for any other costs.
B62: Step 6
B63: There is a cost saving prediction cell. Please put in a target percentage point amount that you predict you can reduce turnover by for this staff group, through your work on improving access to flexible working. The potential cost saving will automatically calculate and will be recorded, as will the other information, on the summary sheet.
B65: Insert a picture

Sheet Summary V1 (hidden)
B1: Potential Cost Savings from improvement to retention due to flexible working or other initiatives
B4: Summary
B10: Staff groups | C10: Organisational investment in the retention programm | D10: Turnover rate | E10: Headcount | F10: Number of staff leaving | G10: Bank and Agency cost -12 weeks - per WTE | H10: Bank and Agency cost for handover -2 weeks - per WTE | I10: Average budget for substantive post -12 weeks - per WTE | J10: Average budget for substantive post -2 weeks - per WTE | K10: Administration of the resignation - per leaver | L10: Recruitment and selection costs - per recruit | M10: Induction training for the new employee - per employee | N10: Others costs- per employee | O10: Additional bank and agency costs of current total turnover | P10: Non-cash releasing costs of current total turnover
B11: Nursing, Midwifery & Health Visiting | C11: ='Nursing, Midwifery & Health Vis'!B8 -> 150000 | D11: ='Nursing, Midwifery & Health Vis'!B13 -> 0.15 | E11: ='Nursing, Midwifery & Health Vis'!D13 -> 12000 | F11: =D11*E11 -> 1800 | G11: ='Nursing, Midwifery & Health Vis'!B20 -> 11000 | H11: ='Nursing, Midwifery & Health Vis'!B24 -> 3000 | I11: ='Nursing, Midwifery & Health Vis'!D20 -> 10573.82683 | J11: ='Nursing, Midwifery & Health Vis'!D24 -> 713.3076923 | K11: ='Nursing, Midwifery & Health Vis'!B29 -> 500 | L11: ='Nursing, Midwifery & Health Vis'!D29 -> 400 | M11: ='Nursing, Midwifery & Health Vis'!B33 -> 300 | N11: ='Nursing, Midwifery & Health Vis'!D33 -> 100 | O11: ='Nursing, Midwifery & Health Vis'!H20 -> 4883157.865 | P11: ='Nursing, Midwifery & Health Vis'!I20 -> 2340000
B12: Medical & Dental | C12: ='Medical & Dental'!B8 -> 0 | D12: ='Medical & Dental'!B13 -> 0 | E12: ='Medical & Dental'!D13 -> 0 | F12: =D12*E12 -> 0 | G12: ='Medical & Dental'!B20 -> 0 | H12: ='Medical & Dental'!B24 -> 0 | I12: ='Medical & Dental'!D20 -> 0 | J12: ='Medical & Dental'!D24 -> 0 | K12: ='Medical & Dental'!B29 -> 0 | L12: ='Medical & Dental'!D29 -> 0 | M12: ='Medical & Dental'!B33 -> 0 | N12: ='Medical & Dental'!D33 -> 0 | O12: ='Medical & Dental'!H20 -> 0 | P12: ='Medical & Dental'!I20 -> 0
B13: Admin & Estates | C13: =#REF! ->  | D13: =#REF! ->  | E13: =#REF! ->  | G13: =#REF! ->  | H13: =#REF! ->  | I13: =#REF! ->  | J13: =#REF! ->  | K13: =#REF! ->  | L13: =#REF! ->  | M13: =#REF! ->  | N13: =#REF! ->  | O13: =#REF! ->  | P13: =#REF! -> 
B14: Scientific, Therapeutic & Technical (AHPS) | C14: =#REF! ->  | D14: =#REF! ->  | E14: =#REF! ->  | G14: =#REF! ->  | H14: =#REF! ->  | I14: =#REF! ->  | J14: =#REF! ->  | K14: =#REF! ->  | L14: =#REF! ->  | M14: =#REF! ->  | N14: =#REF! ->  | O14: =#REF! ->  | P14: =#REF! -> 
B15: Healthcare Assistant & Others | C15: ='Healthcare Assistant & Others'!B8 -> 150000 | D15: ='Healthcare Assistant & Others'!B13 -> 0.15 | E15: ='Healthcare Assistant & Others'!D13 -> 8000 | F15: 1200 | G15: ='Healthcare Assistant & Others'!B20 -> 10992 | H15: ='Healthcare Assistant & Others'!B24 -> 1832 | I15: ='Healthcare Assistant & Others'!D20 -> 9993 | J15: ='Healthcare Assistant & Others'!D24 -> 1665 | K15: ='Healthcare Assistant & Others'!B29 -> 500 | L15: ='Healthcare Assistant & Others'!D29 -> 400 | M15: ='Healthcare Assistant & Others'!B33 -> 300 | N15: ='Healthcare Assistant & Others'!D33 -> 100 | O15: ='Healthcare Assistant & Others'!H20 -> 1399200 | P15: ='Healthcare Assistant & Others'!I20 -> 1560000
B16: Healthcare Science | C16: =#REF! ->  | D16: =#REF! ->  | E16: =#REF! ->  | G16: =#REF! ->  | H16: =#REF! ->  | I16: =#REF! ->  | J16: =#REF! ->  | K16: =#REF! ->  | L16: =#REF! ->  | M16: =#REF! ->  | N16: =#REF! ->  | O16: =#REF! ->  | P16: =#REF! -> 
B17: Others | C17: =#REF! ->  | D17: =#REF! ->  | E17: =#REF! ->  | G17: =#REF! ->  | H17: =#REF! ->  | I17: =#REF! ->  | J17: =#REF! ->  | K17: =#REF! ->  | L17: =#REF! ->  | M17: =#REF! ->  | N17: =#REF! ->  | O17: =#REF! ->  | P17: =#REF! -> 
B18: Total | C18: =SUM(C11:C17) ->  | D18: =SUM(D11:D17) ->  | E18: =SUM(E11:E17) ->  | F18: =SUM(F11:F17) ->  | G18: =SUM(G11:G17) ->  | H18: =SUM(H11:H17) ->  | I18: =SUM(I11:I17) ->  | J18: =SUM(J11:J17) ->  | O18: =SUM(O11:O17) ->  | P18: =SUM(P11:P17) -> 
B40: Costs saving by staff groups (Prediction) | C40: If turnover reduced by this percentage | D40: Cash releasing saving | E40: Non-cash releasing saving | F40: Total cash & non-cash releasing savings | G40: Total saving after Organisation investment is included
B41: =B11 -> Nursing, Midwifery & Health Visiting | C41: ='Nursing, Midwifery & Health Vis'!C40 -> 0.01 | D41: ='Nursing, Midwifery & Health Vis'!C41 -> 325543.8577 | E41: ='Nursing, Midwifery & Health Vis'!C42 -> 156000 | F41: =D41+E41 -> 481543.8577 | G41: ='Nursing, Midwifery & Health Vis'!C44 -> 331543.8577
B42: Medical & Dental | C42: ='Medical & Dental'!C40 -> 0 | D42: ='Medical & Dental'!C41 -> 0 | E42: ='Medical & Dental'!C42 -> 0 | F42: =D42+E42 -> 0 | G42: ='Medical & Dental'!C44 -> 0
B43: Admin & Estates | C43: =#REF! ->  | D43: =#REF! ->  | E43: =#REF! ->  | G43: =#REF! -> 
B44: Scientific, Therapeutic & Technical (AHPS) | C44: =#REF! ->  | D44: =#REF! ->  | E44: =#REF! ->  | G44: =#REF! -> 
B45: Healthcare Assistant & Others | C45: ='Healthcare Assistant & Others'!C40 -> 0.001 | D45: ='Healthcare Assistant & Others'!C41 -> 9328 | E45: ='Healthcare Assistant & Others'!C42 -> 10400 | F45: 19728 | G45: ='Healthcare Assistant & Others'!C44 -> -130272
B46: Healthcare Science | C46: =#REF! ->  | D46: =#REF! ->  | E46: =#REF! ->  | G46: =#REF! -> 
B47: Others | C47: =#REF! ->  | D47: =#REF! ->  | E47: =#REF! ->  | G47: =#REF! -> 
B48: Total | C48: =SUM(C41:C47) ->  | D48: =SUM(D41:D47) ->  | E48: =SUM(E41:E47) ->  | F48: =SUM(F41:F47) ->  | G48: =SUM(G41:G47) -> 

Sheet Summary
B1: Potential Cost Savings from improvement to retention due to flexible working or other initiatives
B4: Summary
B10: Staff groups | C10: Organisational investment in the retention programm | D10: Turnover rate | E10: Headcount | F10: Number of staff leaving | G10: Bank and Agency cost -12 weeks - per WTE | H10: Bank and Agency cost for handover -2 weeks - per WTE | I10: Average budget for substantive post -12 weeks - per WTE | J10: Average budget for substantive post -2 weeks - per WTE | K10: Administration of the resignation - per leaver | L10: Recruitment and selection costs - per recruit | M10: Induction training for the new employee - per employee | N10: Others costs- per employee | O10: Additional bank and agency costs of current total turnover | P10: Non-cash releasing costs of current total turnover
B11: Nursing, Midwifery & Health Visiting | C11: ='Nursing, Midwifery & Health'!B10 -> 0 | D11: ='Nursing, Midwifery & Health'!F31 -> 0 | E11: ='Nursing, Midwifery & Health'!B31 -> 0 | F11: ='Nursing, Midwifery & Health'!D31 -> 0 | G11: ='Nursing, Midwifery & Health'!B54 -> 0 | H11: ='Nursing, Midwifery & Health'!B58 -> 0 | I11: ='Nursing, Midwifery & Health'!D54 -> 0 | J11: ='Nursing, Midwifery & Health'!D58 -> 0 | K11: ='Nursing, Midwifery & Health'!B63 -> 0 | L11: ='Nursing, Midwifery & Health'!D63 -> 0 | M11: ='Nursing, Midwifery & Health'!B67 -> 0 | N11: ='Nursing, Midwifery & Health'!D67 -> 0 | O11: ='Nursing, Midwifery & Health'!H54 -> 0 | P11: ='Nursing, Midwifery & Health'!I54 -> 0
B12: Admin & Estates | C12: ='Admin & Estates'!B10 -> 0 | D12: ='Admin & Estates'!F39 -> 0 | E12: ='Admin & Estates'!B39 -> 0 | F12: ='Admin & Estates'!D39 -> 0 | G12: ='Admin & Estates'!B70 -> 0 | H12: ='Admin & Estates'!B74 -> 0 | I12: ='Admin & Estates'!D70 -> 0 | J12: ='Admin & Estates'!D74 -> 0 | K12: ='Admin & Estates'!B79 -> 0 | L12: ='Admin & Estates'!D79 -> 0 | M12: ='Admin & Estates'!B83 -> 0 | N12: ='Admin & Estates'!D83 -> 0 | O12: ='Admin & Estates'!H70 -> 0 | P12: ='Admin & Estates'!I70 -> 0
B13: Scientific, Therapeutic & Technical (AHPS) | C13: ='Scientific, Therapeutic & Tech'!B10 -> 0 | D13: ='Scientific, Therapeutic & Tech'!F31 -> 0 | E13: ='Scientific, Therapeutic & Tech'!B31 -> 0 | F13: =D13*E13 -> 0 | G13: ='Scientific, Therapeutic & Tech'!B54 -> 0 | H13: ='Scientific, Therapeutic & Tech'!B58 -> 0 | I13: ='Scientific, Therapeutic & Tech'!D54 -> 0 | J13: ='Scientific, Therapeutic & Tech'!D58 -> 0 | K13: ='Scientific, Therapeutic & Tech'!B63 -> 0 | L13: ='Scientific, Therapeutic & Tech'!D63 -> 0 | M13: ='Scientific, Therapeutic & Tech'!B67 -> 0 | N13: ='Scientific, Therapeutic & Tech'!D67 -> 0 | O13: ='Scientific, Therapeutic & Tech'!H54 -> 0 | P13: ='Scientific, Therapeutic & Tech'!I54 -> 0
B14: Healthcare Assistant & Others | C14: ='Healthcare Assistant & Others '!B10 -> 0 | D14: ='Healthcare Assistant & Others '!F23 -> 0 | E14: ='Healthcare Assistant & Others '!B23 -> 0 | F14: ='Healthcare Assistant & Others '!D23 -> 0 | G14: ='Healthcare Assistant & Others '!B38 -> 0 | H14: ='Healthcare Assistant & Others '!B42 -> 0 | I14: ='Healthcare Assistant & Others '!D38 -> 0 | J14: ='Healthcare Assistant & Others '!D42 -> 0 | K14: ='Healthcare Assistant & Others '!B47 -> 0 | L14: ='Healthcare Assistant & Others '!D47 -> 0 | M14: ='Healthcare Assistant & Others '!B51 -> 0 | N14: ='Healthcare Assistant & Others '!D51 -> 0 | O14: ='Healthcare Assistant & Others '!H38 -> 0 | P14: ='Healthcare Assistant & Others '!I38 -> 0
B15: Healthcare Science | C15: ='Healthcare Science'!B10 -> 0 | D15: ='Healthcare Science'!F31 -> 0 | E15: ='Healthcare Science'!B31 -> 0 | F15: ='Healthcare Science'!D31 -> 0 | G15: ='Healthcare Science'!B54 -> 0 | H15: ='Healthcare Science'!B58 -> 0 | I15: ='Healthcare Science'!D54 -> 0 | J15: ='Healthcare Science'!D58 -> 0 | K15: ='Healthcare Science'!B63 -> 0 | L15: ='Healthcare Science'!D63 -> 0 | M15: ='Healthcare Science'!B67 -> 0 | N15: ='Healthcare Science'!D67 -> 0 | O15: ='Healthcare Science'!H54 -> 0 | P15: ='Healthcare Science'!I54 -> 0
B16: Others | C16: =Others!B10 -> 0 | D16: =Others!F39 -> 0 | E16: =Others!B39 -> 0 | F16: =Others!D39 -> 0 | G16: =Others!B70 -> 0 | H16: =Others!B74 -> 0 | I16: =Others!D70 -> 0 | J16: =Others!D74 -> 0 | K16: =Others!B79 -> 0 | L16: =Others!D79 -> 0 | M16: =Others!B83 -> 0 | N16: =Others!D83 -> 0 | O16: =Others!H70 -> 0 | P16: =Others!I70 -> 0
B17: Medical & Dental | C17: ='Medical & Dental'!B8 -> 0 | D17: ='Medical & Dental'!B13 -> 0 | E17: ='Medical & Dental'!D13 -> 0 | F17: ='Medical & Dental'!F13 -> 0 | G17: ='Medical & Dental'!B20 -> 0 | H17: ='Medical & Dental'!B24 -> 0 | I17: ='Medical & Dental'!D20 -> 0 | J17: ='Medical & Dental'!D24 -> 0 | K17: ='Medical & Dental'!B29 -> 0 | L17: ='Medical & Dental'!D29 -> 0 | M17: ='Medical & Dental'!B33 -> 0 | N17: ='Medical & Dental'!D33 -> 0 | O17: ='Medical & Dental'!H20 -> 0 | P17: ='Medical & Dental'!I20 -> 0
B18: Total | C18: =SUM(C11:C17) -> 0 | D18: =IFERROR(F18/E18,0) -> 0 | E18: =SUM(E11:E17) -> 0 | F18: 0 | G18: 0 | H18: 0 | I18: 0 | J18: 0 | K18: 0 | L18: 0 | M18: 0 | N18: 0 | O18: 0 | P18: 0
B40: Costs saving by staff groups (Prediction) | C40: If turnover reduced by this percentage | D40: Cash releasing saving | E40: Non-cash releasing saving | F40: Total cash & non-cash releasing savings | G40: Total saving after Organisation investment is included
B41: =B11 -> Nursing, Midwifery & Health Visiting | C41: ='Nursing, Midwifery & Health'!C74 -> 0 | D41: ='Nursing, Midwifery & Health'!C75 -> 0 | E41: ='Nursing, Midwifery & Health'!C76 -> 0 | F41: ='Nursing, Midwifery & Health'!C77 -> 0 | G41: ='Nursing, Midwifery & Health'!C78 -> 0
B42: Admin & Estates | C42: ='Admin & Estates'!C90 -> 0 | D42: ='Admin & Estates'!C91 -> 0 | E42: ='Admin & Estates'!C92 -> 0 | F42: ='Admin & Estates'!C93 -> 0 | G42: ='Admin & Estates'!C94 -> 0
B43: Scientific, Therapeutic & Technical (AHPS) | C43: ='Scientific, Therapeutic & Tech'!C74 -> 0 | D43: ='Scientific, Therapeutic & Tech'!C75 -> 0 | E43: ='Scientific, Therapeutic & Tech'!C76 -> 0 | F43: ='Scientific, Therapeutic & Tech'!C77 -> 0 | G43: ='Scientific, Therapeutic & Tech'!C78 -> 0
B44: Healthcare Assistant & Others | C44: ='Healthcare Assistant & Others '!C58 -> 0 | D44: ='Healthcare Assistant & Others '!C59 -> 0 | E44: ='Healthcare Assistant & Others '!C60 -> 0 | F44: ='Healthcare Assistant & Others '!C61 -> 0 | G44: ='Healthcare Assistant & Others '!C62 -> 0
B45: Healthcare Science | C45: ='Healthcare Science'!C74 -> 0 | D45: ='Healthcare Science'!C75 -> 0 | E45: ='Healthcare Science'!C76 -> 0 | F45: ='Healthcare Science'!C77 -> 0 | G45: ='Healthcare Science'!C78 -> 0
B46: Others | C46: =Others!C90 -> 0 | D46: =Others!C91 -> 0 | E46: =Others!C92 -> 0 | F46: =Others!C93 -> 0 | G46: =Others!C94 -> 0
B47: Medical & Dental | C47: ='Medical & Dental'!C40 -> 0 | D47: ='Medical & Dental'!C41 -> 0 | E47: ='Medical & Dental'!C42 -> 0 | F47: =D47+E47 -> 0 | G47: ='Medical & Dental'!C44 -> 0
B48: Total | C48: =SUM(C41:C46) -> 0 | D48: =SUM(D41:D46) -> 0 | E48: =SUM(E41:E46) -> 0 | F48: =SUM(F41:F46) -> 0 | G48: =SUM(G41:G46) -> 0

Sheet Sheet1

Sheet Nursing, Midwifery & Health
B1: Potential Cost Savings from improvement to retention due to flexible working or other initiatives
B3: Nursing, Midwifery & Health Visiting
B5: Calculated Field | D5: Agenda for Change costings
B6: Prepopulated Cell | D6: Basic Pay
B7: Enter Data in Cell
B9: Organisational investment in the retention programm (EG flexible working team cost) (Insert any organisation costs invested in this work programme, this will be deducted from potential savings to give actual in year saving) | D9: Bottom pay point
B10: 0 | D10: "Include on costs"
B12: Workforce data - headcounts and leavers
B13: Headcount (Insert) | C13: X | D13: Total number of staff leaving the organisation (Insert) | E13: >>>>>>> | F13: Average turnover rate %
C15: Band 5 | E15: >>>>>>> | F15: =IFERROR(D15/B15,0) -> 0 | H15: =D54*D15 -> 0
C17: Band 6 | E17: >>>>>>> | F17: =IFERROR(D17/B17,0) -> 0
C19: Band 7 | E19: >>>>>>> | F19: =IFERROR(D19/B19,0) -> 0
C21: Band 8a | E21: >>>>>>> | F21: =IFERROR(D21/B21,0) -> 0
C23: Band 8b | E23: >>>>>>> | F23: =IFERROR(D23/B23,0) -> 0
C25: Band 8c | E25: >>>>>>> | F25: =IFERROR(D25/B25,0) -> 0
C27: Band 8d | E27: >>>>>>> | F27: =IFERROR(D27/B27,0) -> 0
C29: Band 9 | E29: >>>>>>> | F29: =IFERROR(D29/B29,0) -> 0
B31: =SUM(B15:B29) -> 0 | C31: Total | D31: =SUM(D15:D29) -> 0 | E31: >>>>>>> | F31: =IFERROR(D31/B31,0) -> 0
B35: Cash releasing costs
B36: Bank and Agency cost -12 weeks - per WTE (Insert) | D36: Average budget for substantive post -12 weeks - per WTE | E36: X | F36: Total number of staff leaving the organisation | H36: Additional bank and agency costs of current total turnover | I36: Non-cash releasing costs of current total turnover
C38: Band 5 | D38: =(IF($D$9=$G$145,G150,IF($D$9=$F$145,F150,IF($D$9=$H$145,H150)))/52)*12 -> 7696.563 | F38: =D15 -> 0 | G38: >>>>>>> | H38: =IF(B38<D38,0,(((B38/12)*14)-((D38/12)*14))*F38) -> 0 | I38: =(B$63+D$63+B$67+D$67)*F38 -> 0
C40: Band 6 | D40: =(IF($D$9=$G$145,G151,IF($D$9=$F$145,F151,IF($D$9=$H$145,H151)))/52)*12 -> 9691.785 | F40: =D17 -> 0 | G40: >>>>>>> | H40: =IF(B40<D40,0,(((B40/12)*14)-((D40/12)*14))*F40) -> 0 | I40: =(B$63+D$63+B$67+D$67)*F40 -> 0
C42: Band 7 | D42: =(IF($D$9=$G$145,G152,IF($D$9=$F$145,F152,IF($D$9=$H$145,H152)))/52)*12 -> 12017.01 | F42: =D19 -> 0 | G42: >>>>>>> | H42: =IF(B42<D42,0,(((B42/12)*14)-((D42/12)*14))*F42) -> 0 | I42: =(B$63+D$63+B$67+D$67)*F42 -> 0
C44: Band 8a | D44: =(IF($D$9=$G$145,G153,IF($D$9=$F$145,F153,IF($D$9=$H$145,H153)))/52)*12 -> 14137.677 | F44: =D21 -> 0 | G44: >>>>>>> | H44: =IF(B44<D44,0,(((B44/12)*14)-((D44/12)*14))*F44) -> 0 | I44: =(B$63+D$63+B$67+D$67)*F44 -> 0
C46: Band 8b | D46: =(IF($D$9=$G$145,G154,IF($D$9=$F$145,F154,IF($D$9=$H$145,H154)))/52)*12 -> 16429.212 | F46: =D23 -> 0 | G46: >>>>>>> | H46: =IF(B46<D46,0,(((B46/12)*14)-((D46/12)*14))*F46) -> 0 | I46: =(B$63+D$63+B$67+D$67)*F46 -> 0
C48: Band 8c | D48: =(IF($D$9=$G$145,G155,IF($D$9=$F$145,F155,IF($D$9=$H$145,H155)))/52)*12 -> 19699.059 | F48: =D25 -> 0 | G48: >>>>>>> | H48: =IF(B48<D48,0,(((B48/12)*14)-((D48/12)*14))*F48) -> 0 | I48: =(B$63+D$63+B$67+D$67)*F48 -> 0
C50: Band 8d | D50: =(IF($D$9=$G$145,G156,IF($D$9=$F$145,F156,IF($D$9=$H$145,H156)))/52)*12 -> 23457.726 | F50: =D27 -> 0 | G50: >>>>>>> | H50: =IF(B50<D50,0,(((B50/12)*14)-((D50/12)*14))*F50) -> 0 | I50: =(B$63+D$63+B$67+D$67)*F50 -> 0
C52: Band 9 | D52: =(IF($D$9=$G$145,G157,IF($D$9=$F$145,F157,IF($D$9=$H$145,H157)))/52)*12 -> 28120.536 | F52: =D29 -> 0 | G52: >>>>>>> | H52: =IF(B52<D52,0,(((B52/12)*14)-((D52/12)*14))*F52) -> 0 | I52: =(B$63+D$63+B$67+D$67)*F52 -> 0
B54: =IFERROR((((B38*F38)+(B40*F40)+(B42*F42)+(B44*F44)+(B46*F46)+(B48*F48)+(B50*F50)+(B52*F52))/F54),0) -> 0 | C54: Total | D54: =IFERROR((((D38*F38)+(D40*F40)+(D42*F42)+(D44*F44)+(D46*F46)+(D48*F48)+(D50*F50)+(D52*F52))/F54),0) -> 0 | F54: =SUM(F38:F52) -> 0 | G54: >>>>>>> | H54: =SUM(H38:H52) -> 0 | I54: =SUM(I38:I52) -> 0
B56: Bank and Agency cost for handover -2 weeks - per WTE | D56: Average budget for substantive post -2 weeks - per WTE
B58: =(B54/12)*2 -> 0 | C58: - | D58: =(D54/12)*2 -> 0
B60: Non-cash releasing costs
B61: Administration of the resignation - per leaver (Insert) | D61: Recruitment and selection costs - per recruit (Insert)
C63: +
B65: Induction training for the new employee - per employee (Insert) | D65: Others costs- leaver / new recruit (Insert)
C67: +
B71: Costs saving-Prediction | I71: =ROUND(#REF!/1000000,2) -> 
B74: Target reduction in turnover | C74: 0 | D74: >>>Change/Insert the turnover reduction rate
B75: Cash releasing saving | C75: =IF(C74>0,IF(H54<1,0,H54-H109),0) -> 0
B76: Non-cash releasing saving | C76: =I54-I109 -> 0
B77: Total cash & non-cash releasing savings | C77: =C75+C76 -> 0
B78: Total saving after organisational investment is included | C78: =C77-B10 -> 0
B82: Number of taff leave the organisation
B83: Average staff turnovere rate for all reasons in 2020/21 | C83: X | D83: Headcount of Organisation ↓↓↓ (Insert) | E83: >>>>>>>
B84: =F31-C74 -> 0 | C84: X | D84: =B31 -> 0 | E84: >>>>>>> | F84: =B84*D84 -> 0
F88: =B15*$B$84 -> 0 | G88: =F88/B15 ->  | H88: =(((B38/12)*14)-((D38/12)*14))*F88 -> 0 | I88: =(B$63+D$63+B$67+D$67)*F88 -> 0
F90: =B17*$B$84 -> 0 | G90: =F90/B17 ->  | H90: =(((B40/12)*14)-((D40/12)*14))*F90 -> 0 | I90: =(B$63+D$63+B$67+D$67)*F90 -> 0
F92: =B19*$B$84 -> 0 | G92: =F92/B19 ->  | H92: =(((B42/12)*14)-((D42/12)*14))*F92 -> 0 | I92: =(B$63+D$63+B$67+D$67)*F92 -> 0
F94: =B21*$B$84 -> 0 | G94: =F94/B21 ->  | H94: =(((B44/12)*14)-((D44/12)*14))*F94 -> 0 | I94: =(B$63+D$63+B$67+D$67)*F94 -> 0
F96: =B23*$B$84 -> 0 | G96: =F96/B23 ->  | H96: =(((B46/12)*14)-((D46/12)*14))*F96 -> 0 | I96: =(B$63+D$63+B$67+D$67)*F96 -> 0
F98: =B25*$B$84 -> 0 | G98: =F98/B25 ->  | H98: =(((B48/12)*14)-((D48/12)*14))*F98 -> 0 | I98: =(B$63+D$63+B$67+D$67)*F98 -> 0
F100: =B27*$B$84 -> 0 | G100: =F100/B27 ->  | H100: =(((B50/12)*14)-((D50/12)*14))*F100 -> 0 | I100: =(B$63+D$63+B$67+D$67)*F100 -> 0
F102: =B29*$B$84 -> 0 | G102: =F102/B29 ->  | H102: =(((B52/12)*14)-((D52/12)*14))*F102 -> 0 | I102: =(B$63+D$63+B$67+D$67)*F102 -> 0
F104: =B31*$B$84 -> 0 | G104: =F104/B31 ->  | H104: =SUM(H88:H102) -> 0 | I104: =SUM(I88:I102) -> 0
B107: Avg cost of temporary (Nursing, Midwifery & Health Visiting) staff replacement
B108: Bank and Agency cost -12 weeks (Per staff-Insert)↓↓↓ | D108: Average budget for substantive post | E108: X | F108: Total Number of ( Nursing, Midwifery & Health Visiting) staff leaving the organisation | G108: >>>>>>> | H108: Cash releasing (Bank and Agency costs) | I108: Non-cash releasing
B109: =B54 -> 0 | C109: + | D109: =D54 -> 0 | E109: X | F109: =F84 -> 0 | G109: >>>>>>> | H109: =H104 -> 0 | I109: =I104 -> 0
B110: Bank and Agency cost for handover -2 weeks (Per staff-Insert)↓↓↓ | D110: Average budget for substantive post
B111: =B58 -> 0 | D111: =D58 -> 0
B112: Administration of the resignation (Per staff-Insert)↓↓↓ | D112: Recruitment and selection costs (Per staff-Insert)↓↓↓
B113: =B63 -> 0 | C113: + | D113: =D63 -> 0
B114: Induction training for the new employee (Per staff-Insert)↓↓↓ | D114: Other Costs (cost of initiative/ investment) (Per staff-Insert)↓↓↓
B115: =B67 -> 0 | C115: + | D115: =D67 -> 0
E131: Band | F131: Bottom pay point | G131: Middle pay point | H131: Top pay point
E132: Band 1 | F132: =IF($D$6=$I$133,AfC!AA2*1.2,IF($D$6=$I$134,AfC!AA2*1.15,IF($D$6=$I$135,AfC!AA2*1.05,AfC!AA2))) -> 18546 | G132: =IF($D$6=$I$133,AfC!AB2*1.2,IF($D$6=$J$134,AfC!AB2*1.15,IF($D$6=$I$135,AfC!AB2*1.05,AfC!AB2))) -> 18546 | H132: =IF($D$6=$I$133,AfC!AC2*1.2,IF($D$6=$K$134,AfC!AC2*1.15,IF($D$6=$I$135,AfC!AC2*1.05,AfC!AC2))) -> 18546 | I132: Basic Pay
E133: Band 2 | F133: =IF($D$6=$I$133,AfC!AA3*1.2,IF($D$6=$I$134,AfC!AA3*1.15,IF($D$6=$I$135,AfC!AA3*1.05,AfC!AA3))) -> 18546 | G133: =IF($D$6=$I$133,AfC!AB3*1.2,IF($D$6=$J$134,AfC!AB3*1.15,IF($D$6=$I$135,AfC!AB3*1.05,AfC!AB3))) -> 19918 | H133: =IF($D$6=$I$133,AfC!AC3*1.2,IF($D$6=$K$134,AfC!AC3*1.15,IF($D$6=$I$135,AfC!AC3*1.05,AfC!AC3))) -> 19918 | I133: London (inner)
E134: Band 3 | F134: =IF($D$6=$I$133,AfC!AA4*1.2,IF($D$6=$I$134,AfC!AA4*1.15,IF($D$6=$I$135,AfC!AA4*1.05,AfC!AA4))) -> 20330 | G134: =IF($D$6=$I$133,AfC!AB4*1.2,IF($D$6=$J$134,AfC!AB4*1.15,IF($D$6=$I$135,AfC!AB4*1.05,AfC!AB4))) -> 21777.26 | H134: =IF($D$6=$I$133,AfC!AC4*1.2,IF($D$6=$K$134,AfC!AC4*1.15,IF($D$6=$I$135,AfC!AC4*1.05,AfC!AC4))) -> 21777.26 | I134: London (outer)
E135: Band 4 | F135: =IF($D$6=$I$133,AfC!AA5*1.2,IF($D$6=$I$134,AfC!AA5*1.15,IF($D$6=$I$135,AfC!AA5*1.05,AfC!AA5))) -> 22548.76 | G135: =IF($D$6=$I$133,AfC!AB5*1.2,IF($D$6=$J$134,AfC!AB5*1.15,IF($D$6=$I$135,AfC!AB5*1.05,AfC!AB5))) -> 24881.71 | H135: =IF($D$6=$I$133,AfC!AC5*1.2,IF($D$6=$K$134,AfC!AC5*1.15,IF($D$6=$I$135,AfC!AC5*1.05,AfC!AC5))) -> 24881.71 | I135: London (fringe)
E136: Band 5 | F136: =IF($D$6=$I$133,AfC!AA6*1.2,IF($D$6=$I$134,AfC!AA6*1.15,IF($D$6=$I$135,AfC!AA6*1.05,AfC!AA6))) -> 25655.21 | G136: =IF($D$6=$I$133,AfC!AB6*1.2,IF($D$6=$J$134,AfC!AB6*1.15,IF($D$6=$I$135,AfC!AB6*1.05,AfC!AB6))) -> 29657.275 | H136: =IF($D$6=$I$133,AfC!AC6*1.2,IF($D$6=$K$134,AfC!AC6*1.15,IF($D$6=$I$135,AfC!AC6*1.05,AfC!AC6))) -> 31534.45 | I136: "Include on costs"
E137: Band 6 | F137: =IF($D$6=$I$133,AfC!AA7*1.2,IF($D$6=$I$134,AfC!AA7*1.15,IF($D$6=$I$135,AfC!AA7*1.05,AfC!AA7))) -> 32305.95 | G137: =IF($D$6=$I$133,AfC!AB7*1.2,IF($D$6=$J$134,AfC!AB7*1.15,IF($D$6=$I$135,AfC!AB7*1.05,AfC!AB7))) -> 34172.28 | H137: =IF($D$6=$I$133,AfC!AC7*1.2,IF($D$6=$K$134,AfC!AC7*1.15,IF($D$6=$I$135,AfC!AC7*1.05,AfC!AC7))) -> 39026.7
E138: Band 7 | F138: =IF($D$6=$I$133,AfC!AA8*1.2,IF($D$6=$I$134,AfC!AA8*1.15,IF($D$6=$I$135,AfC!AA8*1.05,AfC!AA8))) -> 40056.7 | G138: =IF($D$6=$I$133,AfC!AB8*1.2,IF($D$6=$J$134,AfC!AB8*1.15,IF($D$6=$I$135,AfC!AB8*1.05,AfC!AB8))) -> 42120.82 | H138: =IF($D$6=$I$133,AfC!AC8*1.2,IF($D$6=$K$134,AfC!AC8*1.15,IF($D$6=$I$135,AfC!AC8*1.05,AfC!AC8))) -> 45839.09
E139: Band 8A | F139: =IF($D$6=$I$133,AfC!AA9*1.2,IF($D$6=$I$134,AfC!AA9*1.15,IF($D$6=$I$135,AfC!AA9*1.05,AfC!AA9))) -> 47125.59 | G139: =IF($D$6=$I$133,AfC!AB9*1.2,IF($D$6=$J$134,AfC!AB9*1.15,IF($D$6=$I$135,AfC!AB9*1.05,AfC!AB9))) -> 47125.59 | H139: =IF($D$6=$I$133,AfC!AC9*1.2,IF($D$6=$K$134,AfC!AC9*1.15,IF($D$6=$I$135,AfC!AC9*1.05,AfC!AC9))) -> 53219.04
E140: Band 8B | F140: =IF($D$6=$I$133,AfC!AA10*1.2,IF($D$6=$I$134,AfC!AA10*1.15,IF($D$6=$I$135,AfC!AA10*1.05,AfC!AA10))) -> 54764.04 | G140: =IF($D$6=$I$133,AfC!AB10*1.2,IF($D$6=$J$134,AfC!AB10*1.15,IF($D$6=$I$135,AfC!AB10*1.05,AfC!AB10))) -> 54764.04 | H140: =IF($D$6=$I$133,AfC!AC10*1.2,IF($D$6=$K$134,AfC!AC10*1.15,IF($D$6=$I$135,AfC!AC10*1.05,AfC!AC10))) -> 63862.03
E141: Band 8C | F141: =IF($D$6=$I$133,AfC!AA11*1.2,IF($D$6=$I$134,AfC!AA11*1.15,IF($D$6=$I$135,AfC!AA11*1.05,AfC!AA11))) -> 65663.53 | G141: =IF($D$6=$I$133,AfC!AB11*1.2,IF($D$6=$J$134,AfC!AB11*1.15,IF($D$6=$I$135,AfC!AB11*1.05,AfC!AB11))) -> 65663.53 | H141: =IF($D$6=$I$133,AfC!AC11*1.2,IF($D$6=$K$134,AfC!AC11*1.15,IF($D$6=$I$135,AfC!AC11*1.05,AfC!AC11))) -> 75873.92
E142: Band 8D | F142: =IF($D$6=$I$133,AfC!AA12*1.2,IF($D$6=$I$134,AfC!AA12*1.15,IF($D$6=$I$135,AfC!AA12*1.05,AfC!AA12))) -> 78192.42 | G142: =IF($D$6=$I$133,AfC!AB12*1.2,IF($D$6=$J$134,AfC!AB12*1.15,IF($D$6=$I$135,AfC!AB12*1.05,AfC!AB12))) -> 78192.42 | H142: =IF($D$6=$I$133,AfC!AC12*1.2,IF($D$6=$K$134,AfC!AC12*1.15,IF($D$6=$I$135,AfC!AC12*1.05,AfC!AC12))) -> 90387.62
E143: Band 9 | F143: =IF($D$6=$I$133,AfC!AA13*1.2,IF($D$6=$I$134,AfC!AA13*1.15,IF($D$6=$I$135,AfC!AA13*1.05,AfC!AA13))) -> 93735.12 | G143: =IF($D$6=$I$133,AfC!AB13*1.2,IF($D$6=$J$134,AfC!AB13*1.15,IF($D$6=$I$135,AfC!AB13*1.05,AfC!AB13))) -> 93735.12 | H143: =IF($D$6=$I$133,AfC!AC13*1.2,IF($D$6=$K$134,AfC!AC13*1.15,IF($D$6=$I$135,AfC!AC13*1.05,AfC!AC13))) -> 108074.81
E145: Band | F145: Bottom pay point | G145: Middle pay point | H145: Top pay point
E146: Band 1 | F146: =IF($D$10=$I$136,F132*1.3,F132) -> 24109.8 | G146: 24109.8 | H146: 24109.8
E147: Band 2 | F147: 24109.8 | G147: 25893.4 | H147: 25893.4
E148: Band 3 | F148: 26429 | G148: 28310.438 | H148: 28310.438
E149: Band 4 | F149: 29313.388 | G149: 32346.223 | H149: 32346.223
E150: Band 5 | F150: 33351.773 | G150: 38554.4575 | H150: 40994.785
E151: Band 6 | F151: 41997.735 | G151: 44423.964 | H151: 50734.71
E152: Band 7 | F152: 52073.71 | G152: 54757.066 | H152: 59590.817
E153: Band 8A | F153: 61263.267 | G153: 61263.267 | H153: 69184.752
E154: Band 8B | F154: 71193.252 | G154: 71193.252 | H154: 83020.639
E155: Band 8C | F155: 85362.589 | G155: 85362.589 | H155: 98636.096
E156: Band 8D | F156: 101650.146 | G156: 101650.146 | H156: 117503.906
E157: Band 9 | F157: 121855.656 | G157: 121855.656 | H157: 140497.253

Sheet Admin & Estates
B1: Potential Cost Savings from improvement to retention due to flexible working or other initiatives
B3: Admin & Estates
B5: Calculated Field | D5: Agenda for Change costings
B6: Prepopulated Cell | D6: London (inner)
B7: Enter Data in Cell
B9: Organisational investment in the retention programm (EG flexible working team cost) (Insert any organisation costs invested in this work programme, this will be deducted from potential savings to give actual in year saving) | D9: Top pay point
B10: 0 | D10: "Include on costs"
B12: Workforce data - headcounts and leavers
B13: Headcount (Insert) | C13: X | D13: Total number of staff leaving the organisation (Insert) | E13: >>>>>>> | F13: Average turnover rate %
C15: Band 1 | E15: >>>>>>> | F15: =IFERROR(D15/B15,0) -> 0
C17: Band 2 | E17: >>>>>>> | F17: =IFERROR(D17/B17,0) -> 0
C19: Band 3 | E19: >>>>>>> | F19: =IFERROR(D19/B19,0) -> 0
C21: Band 4 | E21: >>>>>>> | F21: =IFERROR(D21/B21,0) -> 0
C23: Band 5 | E23: >>>>>>> | F23: =IFERROR(D23/B23,0) -> 0
C25: Band 6 | E25: >>>>>>> | F25: =IFERROR(D25/B25,0) -> 0
C27: Band 7 | E27: >>>>>>> | F27: =IFERROR(D27/B27,0) -> 0
C29: Band 8a | E29: >>>>>>> | F29: =IFERROR(D29/B29,0) -> 0
C31: Band 8b | E31: >>>>>>> | F31: =IFERROR(D31/B31,0) -> 0
C33: Band 8c | E33: >>>>>>> | F33: =IFERROR(D33/B33,0) -> 0
C35: Band 8d | E35: >>>>>>> | F35: =IFERROR(D35/B35,0) -> 0
C37: Band 9 | E37: >>>>>>> | F37: =IFERROR(D37/B37,0) -> 0
B39: =SUM(B15:B37) -> 0 | C39: Total | D39: =SUM(D15:D37) -> 0 | E39: >>>>>>> | F39: =IFERROR(D39/B39,0) -> 0
B43: Cash releasing costs
B44: Bank and Agency cost -12 weeks - per WTE (Insert) | D44: Average budget for substantive post -12 weeks - per WTE | E44: X | F44: Total number of staff leaving the organisation | H44: Additional bank and agency costs of current total turnover | I44: Non-cash releasing costs of current total turnover
C46: Band 1 | D46: =(IF($D$9=$G$170,G171,IF($D$9=$F$170,F171,IF($D$9=$H$170,H171)))/52)*12 -> 6676.56 | F46: =D15 -> 0 | G46: >>>>>>> | H46: =IF(B46<D46,0,(((B46/12)*14)-((D46/12)*14))*F46) -> 0 | I46: =(B$79+D$79+B$83+D$83)*F46 -> 0
C48: Band 2 | D48: =(IF($D$9=$G$170,G172,IF($D$9=$F$170,F172,IF($D$9=$H$170,H172)))/52)*12 -> 7170.48 | F48: =D17 -> 0 | G48: >>>>>>> | H48: =IF(B48<D48,0,(((B48/12)*14)-((D48/12)*14))*F48) -> 0 | I48: =(B$79+D$79+B$83+D$83)*F48 -> 0
C50: Band 3 | D50: =(IF($D$9=$G$170,G173,IF($D$9=$F$170,F173,IF($D$9=$H$170,H173)))/52)*12 -> 7839.8136 | F50: =D19 -> 0 | G50: >>>>>>> | H50: =IF(B50<D50,0,(((B50/12)*14)-((D50/12)*14))*F50) -> 0 | I50: =(B$79+D$79+B$83+D$83)*F50 -> 0
C52: Band 4 | D52: =(IF($D$9=$G$170,G174,IF($D$9=$F$170,F174,IF($D$9=$H$170,H174)))/52)*12 -> 8957.4156 | F52: =D21 -> 0 | G52: >>>>>>> | H52: =IF(B52<D52,0,(((B52/12)*14)-((D52/12)*14))*F52) -> 0 | I52: =(B$79+D$79+B$83+D$83)*F52 -> 0
C54: Band 5 | D54: =(IF($D$9=$G$170,G175,IF($D$9=$F$170,F175,IF($D$9=$H$170,H175)))/52)*12 -> 11352.402 | F54: =D23 -> 0 | G54: >>>>>>> | H54: =IF(B54<D54,0,(((B54/12)*14)-((D54/12)*14))*F54) -> 0 | I54: =(B$79+D$79+B$83+D$83)*F54 -> 0
C56: Band 6 | D56: =(IF($D$9=$G$170,G176,IF($D$9=$F$170,F176,IF($D$9=$H$170,H176)))/52)*12 -> 14049.612 | F56: =D25 -> 0 | G56: >>>>>>> | H56: =IF(B56<D56,0,(((B56/12)*14)-((D56/12)*14))*F56) -> 0 | I56: =(B$79+D$79+B$83+D$83)*F56 -> 0
C58: Band 7 | D58: =(IF($D$9=$G$170,G177,IF($D$9=$F$170,F177,IF($D$9=$H$170,H177)))/52)*12 -> 16502.0724 | F58: =D27 -> 0 | G58: >>>>>>> | H58: =IF(B58<D58,0,(((B58/12)*14)-((D58/12)*14))*F58) -> 0 | I58: =(B$79+D$79+B$83+D$83)*F58 -> 0
R59: =H44 -> Additional bank and agency costs of current total turnover | S59: =I44 -> Non-cash releasing costs of current total turnover
C60: Band 8a | D60: =(IF($D$9=$G$170,G178,IF($D$9=$F$170,F178,IF($D$9=$H$170,H178)))/52)*12 -> 19158.8544 | F60: =D29 -> 0 | G60: >>>>>>> | H60: =IF(B60<D60,0,(((B60/12)*14)-((D60/12)*14))*F60) -> 0 | I60: =(B$79+D$79+B$83+D$83)*F60 -> 0 | Q60: =C46 -> Band 1 | R60: =H46 -> 0 | S60: =I46 -> 0
Q61: =C48 -> Band 2 | R61: =H48 -> 0 | S61: =I48 -> 0
C62: Band 8b | D62: =(IF($D$9=$G$170,G179,IF($D$9=$F$170,F179,IF($D$9=$H$170,H179)))/52)*12 -> 22990.3308 | F62: =D31 -> 0 | G62: >>>>>>> | H62: =IF(B62<D62,0,(((B62/12)*14)-((D62/12)*14))*F62) -> 0 | I62: =(B$79+D$79+B$83+D$83)*F62 -> 0 | Q62: =C50 -> Band 3 | R62: =H50 -> 0 | S62: =I50 -> 0
Q63: =C52 -> Band 4 | R63: =H52 -> 0 | S63: =I52 -> 0
C64: Band 8c | D64: =(IF($D$9=$G$170,G180,IF($D$9=$F$170,F180,IF($D$9=$H$170,H180)))/52)*12 -> 27314.6112 | F64: =D33 -> 0 | G64: >>>>>>> | H64: =IF(B64<D64,0,(((B64/12)*14)-((D64/12)*14))*F64) -> 0 | I64: =(B$79+D$79+B$83+D$83)*F64 -> 0 | Q64: =C54 -> Band 5 | R64: =H54 -> 0 | S64: =I54 -> 0
Q65: =C56 -> Band 6 | R65: =H56 -> 0 | S65: =I56 -> 0
C66: Band 8d | D66: =(IF($D$9=$G$170,G181,IF($D$9=$F$170,F181,IF($D$9=$H$170,H181)))/52)*12 -> 32539.5432 | F66: =D35 -> 0 | G66: >>>>>>> | H66: =IF(B66<D66,0,(((B66/12)*14)-((D66/12)*14))*F66) -> 0 | I66: =(B$79+D$79+B$83+D$83)*F66 -> 0 | Q66: =C58 -> Band 7 | R66: =H58 -> 0 | S66: =I58 -> 0
Q67: =C60 -> Band 8a | R67: =H60 -> 0 | S67: =I60 -> 0
C68: Band 9 | D68: =(IF($D$9=$G$170,G182,IF($D$9=$F$170,F182,IF($D$9=$H$170,H182)))/52)*12 -> 38906.9316 | F68: =D37 -> 0 | G68: >>>>>>> | H68: =IF(B68<D68,0,(((B68/12)*14)-((D68/12)*14))*F68) -> 0 | I68: =(B$79+D$79+B$83+D$83)*F68 -> 0 | Q68: =C62 -> Band 8b | R68: =H62 -> 0 | S68: =I62 -> 0
Q69: =C64 -> Band 8c | R69: =H64 -> 0 | S69: =I64 -> 0
B70: =IFERROR((((B46*F46)+(B48*F48)+(B50*F50)+(B52*F52)+(B54*F54)+(B56*F56)+(B58*F58)+(B60*F60)+(B62*F62)+(B64*F64)+(B66*F66)+(B68*F68))/F70),) -> 0 | C70: Total | D70: =IFERROR((((D46*F46)+(D48*F48)+(D50*F50)+(D52*F52)+(D54*F54)+(D56*F56)+(D58*F58)+(D60*F60)+(D62*F62)+(D64*F64)+(D66*F66)+(D68*F68))/F70),0) -> 0 | F70: =SUM(F46:F68) -> 0 | G70: >>>>>>> | H70: =SUM(H46:H68) -> 0 | I70: =SUM(I46:I68) -> 0 | Q70: =C66 -> Band 8d | R70: =H66 -> 0 | S70: =I66 -> 0
Q71: =C68 -> Band 9 | R71: =H68 -> 0 | S71: =I68 -> 0
B72: Bank and Agency cost for handover -2 weeks - per WTE | D72: Average budget for substantive post -2 weeks - per WTE
B74: =(B70/12)*2 -> 0 | C74: - | D74: =(D70/12)*2 -> 0
B76: Non-cash releasing costs
B77: Administration of the resignation - per leaver (Insert) | D77: Recruitment and selection costs - per recruit (Insert)
C79: +
B81: Induction training for the new employee - per employee (Insert) | D81: Others costs- leaver / new recruit (Insert)
C83: +
B87: Costs saving-Prediction | I87: =ROUND(#REF!/1000000,2) -> 
B90: Target reduction in turnover | C90: 0 | D90: >>>Change/Insert the turnover reduction rate
B91: Cash releasing saving | C91: =IF(C90>0,IF(H70<1,0,H70-H134),0) -> 0
B92: Non-cash releasing saving | C92: =I70-I134 -> 0
B93: Total cash & non-cash releasing savings | C93: =C91+C92 -> 0
B94: Total saving after organisational investment is included | C94: =C93-B10 -> 0
B98: Number of taff leave the organisation
B99: Average staff turnovere rate for all reasons in 2020/21 | C99: X | D99: Headcount of Organisation ↓↓↓ (Insert) | E99: >>>>>>>
B100: =F39-C90 -> 0 | C100: X | D100: =B39 -> 0 | E100: >>>>>>> | F100: =B100*D100 -> 0
E105: =C15 -> Band 1 | F105: =B15*$B$100 -> 0 | G105: =F105/B15 ->  | H105: =(((B46/12)*14)-((D46/12)*14))*F105 -> 0 | I105: =(B$79+D$79+B$83+D$83)*F105 -> 0
E107: =C17 -> Band 2 | F107: =B17*$B$100 -> 0 | G107: =F107/B17 ->  | H107: =(((B48/12)*14)-((D48/12)*14))*F107 -> 0 | I107: =(B$79+D$79+B$83+D$83)*F107 -> 0
E109: =C19 -> Band 3 | F109: =B19*$B$100 -> 0 | G109: =F109/B19 ->  | H109: =(((B50/12)*14)-((D50/12)*14))*F109 -> 0 | I109: =(B$79+D$79+B$83+D$83)*F109 -> 0
E111: =C21 -> Band 4 | F111: =B21*$B$100 -> 0 | G111: =F111/B21 ->  | H111: =(((B52/12)*14)-((D52/12)*14))*F111 -> 0 | I111: =(B$79+D$79+B$83+D$83)*F111 -> 0
E113: =C23 -> Band 5 | F113: =B23*$B$100 -> 0 | G113: =F113/B23 ->  | H113: =(((B54/12)*14)-((D54/12)*14))*F113 -> 0 | I113: =(B$79+D$79+B$83+D$83)*F113 -> 0
E115: =C25 -> Band 6 | F115: =B25*$B$100 -> 0 | G115: =F115/B25 ->  | H115: =(((B56/12)*14)-((D56/12)*14))*F115 -> 0 | I115: =(B$79+D$79+B$83+D$83)*F115 -> 0
E117: =C27 -> Band 7 | F117: =B27*$B$100 -> 0 | G117: =F117/B27 ->  | H117: =(((B58/12)*14)-((D58/12)*14))*F117 -> 0 | I117: =(B$79+D$79+B$83+D$83)*F117 -> 0
E119: =C29 -> Band 8a | F119: =B29*$B$100 -> 0 | G119: =F119/B29 ->  | H119: =(((B60/12)*14)-((D60/12)*14))*F119 -> 0 | I119: =(B$79+D$79+B$83+D$83)*F119 -> 0
E121: =C31 -> Band 8b | F121: =B31*$B$100 -> 0 | G121: =F121/B31 ->  | H121: =(((B62/12)*14)-((D62/12)*14))*F121 -> 0 | I121: =(B$79+D$79+B$83+D$83)*F121 -> 0
E123: =C33 -> Band 8c | F123: =B33*$B$100 -> 0 | G123: =F123/B33 ->  | H123: =(((B64/12)*14)-((D64/12)*14))*F123 -> 0 | I123: =(B$79+D$79+B$83+D$83)*F123 -> 0
E125: =C35 -> Band 8d | F125: =B35*$B$100 -> 0 | G125: =F125/B35 ->  | H125: =(((B66/12)*14)-((D66/12)*14))*F125 -> 0 | I125: =(B$79+D$79+B$83+D$83)*F125 -> 0
E127: =C37 -> Band 9 | F127: =B37*$B$100 -> 0 | G127: =F127/B37 ->  | H127: =(((B68/12)*14)-((D68/12)*14))*F127 -> 0 | I127: =(B$79+D$79+B$83+D$83)*F127 -> 0
F129: =B39*$B$100 -> 0 | G129: =F129/B39 ->  | H129: =SUM(H105:H127) -> 0 | I129: =SUM(I105:I127) -> 0
B132: Avg cost of temporary (Nursing, Midwifery & Health Visiting) staff replacement
B133: Bank and Agency cost -12 weeks (Per staff-Insert)↓↓↓ | D133: Average budget for substantive post | E133: X | F133: Total Number of ( Nursing, Midwifery & Health Visiting) staff leaving the organisation | G133: >>>>>>> | H133: Cash releasing (Bank and Agency costs) | I133: Non-cash releasing
B134: =B70 -> 0 | C134: + | D134: =D70 -> 0 | E134: X | F134: =F100 -> 0 | G134: >>>>>>> | H134: =H129 -> 0 | I134: =I129 -> 0
B135: Bank and Agency cost for handover -2 weeks (Per staff-Insert)↓↓↓ | D135: Average budget for substantive post
B136: =B74 -> 0 | D136: =D74 -> 0
B137: Administration of the resignation (Per staff-Insert)↓↓↓ | D137: Recruitment and selection costs (Per staff-Insert)↓↓↓
B138: =B79 -> 0 | C138: + | D138: =D79 -> 0
B139: Induction training for the new employee (Per staff-Insert)↓↓↓ | D139: Other Costs (cost of initiative/ investment) (Per staff-Insert)↓↓↓
B140: =B83 -> 0 | C140: + | D140: =D83 -> 0
E156: Band | F156: Bottom pay point | G156: Middle pay point | H156: Top pay point
E157: Band 1 | F157: =IF($D$6=$I$158,AfC!AA2*1.2,IF($D$6=$I$159,AfC!AA2*1.15,IF($D$6=$I$160,AfC!AA2*1.05,AfC!AA2))) -> 22255.2 | G157: =IF($D$6=$I$158,AfC!AB2*1.2,IF($D$6=$J$159,AfC!AB2*1.15,IF($D$6=$I$160,AfC!AB2*1.05,AfC!AB2))) -> 22255.2 | H157: =IF($D$6=$I$158,AfC!AC2*1.2,IF($D$6=$K$159,AfC!AC2*1.15,IF($D$6=$I$160,AfC!AC2*1.05,AfC!AC2))) -> 22255.2 | I157: Basic Pay
E158: Band 2 | F158: =IF($D$6=$I$158,AfC!AA3*1.2,IF($D$6=$I$159,AfC!AA3*1.15,IF($D$6=$I$160,AfC!AA3*1.05,AfC!AA3))) -> 22255.2 | G158: =IF($D$6=$I$158,AfC!AB3*1.2,IF($D$6=$J$159,AfC!AB3*1.15,IF($D$6=$I$160,AfC!AB3*1.05,AfC!AB3))) -> 23901.6 | H158: =IF($D$6=$I$158,AfC!AC3*1.2,IF($D$6=$K$159,AfC!AC3*1.15,IF($D$6=$I$160,AfC!AC3*1.05,AfC!AC3))) -> 23901.6 | I158: London (inner)
E159: Band 3 | F159: =IF($D$6=$I$158,AfC!AA4*1.2,IF($D$6=$I$159,AfC!AA4*1.15,IF($D$6=$I$160,AfC!AA4*1.05,AfC!AA4))) -> 24396 | G159: =IF($D$6=$I$158,AfC!AB4*1.2,IF($D$6=$J$159,AfC!AB4*1.15,IF($D$6=$I$160,AfC!AB4*1.05,AfC!AB4))) -> 26132.712 | H159: =IF($D$6=$I$158,AfC!AC4*1.2,IF($D$6=$K$159,AfC!AC4*1.15,IF($D$6=$I$160,AfC!AC4*1.05,AfC!AC4))) -> 26132.712 | I159: London (outer)
E160: Band 4 | F160: =IF($D$6=$I$158,AfC!AA5*1.2,IF($D$6=$I$159,AfC!AA5*1.15,IF($D$6=$I$160,AfC!AA5*1.05,AfC!AA5))) -> 27058.512 | G160: =IF($D$6=$I$158,AfC!AB5*1.2,IF($D$6=$J$159,AfC!AB5*1.15,IF($D$6=$I$160,AfC!AB5*1.05,AfC!AB5))) -> 29858.052 | H160: =IF($D$6=$I$158,AfC!AC5*1.2,IF($D$6=$K$159,AfC!AC5*1.15,IF($D$6=$I$160,AfC!AC5*1.05,AfC!AC5))) -> 29858.052 | I160: London (fringe)
E161: Band 5 | F161: =IF($D$6=$I$158,AfC!AA6*1.2,IF($D$6=$I$159,AfC!AA6*1.15,IF($D$6=$I$160,AfC!AA6*1.05,AfC!AA6))) -> 30786.252 | G161: =IF($D$6=$I$158,AfC!AB6*1.2,IF($D$6=$J$159,AfC!AB6*1.15,IF($D$6=$I$160,AfC!AB6*1.05,AfC!AB6))) -> 35588.73 | H161: =IF($D$6=$I$158,AfC!AC6*1.2,IF($D$6=$K$159,AfC!AC6*1.15,IF($D$6=$I$160,AfC!AC6*1.05,AfC!AC6))) -> 37841.34 | I161: "Include on costs"
E162: Band 6 | F162: =IF($D$6=$I$158,AfC!AA7*1.2,IF($D$6=$I$159,AfC!AA7*1.15,IF($D$6=$I$160,AfC!AA7*1.05,AfC!AA7))) -> 38767.14 | G162: =IF($D$6=$I$158,AfC!AB7*1.2,IF($D$6=$J$159,AfC!AB7*1.15,IF($D$6=$I$160,AfC!AB7*1.05,AfC!AB7))) -> 41006.736 | H162: =IF($D$6=$I$158,AfC!AC7*1.2,IF($D$6=$K$159,AfC!AC7*1.15,IF($D$6=$I$160,AfC!AC7*1.05,AfC!AC7))) -> 46832.04
E163: Band 7 | F163: =IF($D$6=$I$158,AfC!AA8*1.2,IF($D$6=$I$159,AfC!AA8*1.15,IF($D$6=$I$160,AfC!AA8*1.05,AfC!AA8))) -> 48068.04 | G163: =IF($D$6=$I$158,AfC!AB8*1.2,IF($D$6=$J$159,AfC!AB8*1.15,IF($D$6=$I$160,AfC!AB8*1.05,AfC!AB8))) -> 50544.984 | H163: =IF($D$6=$I$158,AfC!AC8*1.2,IF($D$6=$K$159,AfC!AC8*1.15,IF($D$6=$I$160,AfC!AC8*1.05,AfC!AC8))) -> 55006.908
E164: Band 8A | F164: =IF($D$6=$I$158,AfC!AA9*1.2,IF($D$6=$I$159,AfC!AA9*1.15,IF($D$6=$I$160,AfC!AA9*1.05,AfC!AA9))) -> 56550.708 | G164: =IF($D$6=$I$158,AfC!AB9*1.2,IF($D$6=$J$159,AfC!AB9*1.15,IF($D$6=$I$160,AfC!AB9*1.05,AfC!AB9))) -> 56550.708 | H164: =IF($D$6=$I$158,AfC!AC9*1.2,IF($D$6=$K$159,AfC!AC9*1.15,IF($D$6=$I$160,AfC!AC9*1.05,AfC!AC9))) -> 63862.848
E165: Band 8B | F165: =IF($D$6=$I$158,AfC!AA10*1.2,IF($D$6=$I$159,AfC!AA10*1.15,IF($D$6=$I$160,AfC!AA10*1.05,AfC!AA10))) -> 65716.848 | G165: =IF($D$6=$I$158,AfC!AB10*1.2,IF($D$6=$J$159,AfC!AB10*1.15,IF($D$6=$I$160,AfC!AB10*1.05,AfC!AB10))) -> 65716.848 | H165: =IF($D$6=$I$158,AfC!AC10*1.2,IF($D$6=$K$159,AfC!AC10*1.15,IF($D$6=$I$160,AfC!AC10*1.05,AfC!AC10))) -> 76634.436
E166: Band 8C | F166: =IF($D$6=$I$158,AfC!AA11*1.2,IF($D$6=$I$159,AfC!AA11*1.15,IF($D$6=$I$160,AfC!AA11*1.05,AfC!AA11))) -> 78796.236 | G166: =IF($D$6=$I$158,AfC!AB11*1.2,IF($D$6=$J$159,AfC!AB11*1.15,IF($D$6=$I$160,AfC!AB11*1.05,AfC!AB11))) -> 78796.236 | H166: =IF($D$6=$I$158,AfC!AC11*1.2,IF($D$6=$K$159,AfC!AC11*1.15,IF($D$6=$I$160,AfC!AC11*1.05,AfC!AC11))) -> 91048.704
E167: Band 8D | F167: =IF($D$6=$I$158,AfC!AA12*1.2,IF($D$6=$I$159,AfC!AA12*1.15,IF($D$6=$I$160,AfC!AA12*1.05,AfC!AA12))) -> 93830.904 | G167: =IF($D$6=$I$158,AfC!AB12*1.2,IF($D$6=$J$159,AfC!AB12*1.15,IF($D$6=$I$160,AfC!AB12*1.05,AfC!AB12))) -> 93830.904 | H167: =IF($D$6=$I$158,AfC!AC12*1.2,IF($D$6=$K$159,AfC!AC12*1.15,IF($D$6=$I$160,AfC!AC12*1.05,AfC!AC12))) -> 108465.144
E168: Band 9 | F168: =IF($D$6=$I$158,AfC!AA13*1.2,IF($D$6=$I$159,AfC!AA13*1.15,IF($D$6=$I$160,AfC!AA13*1.05,AfC!AA13))) -> 112482.144 | G168: =IF($D$6=$I$158,AfC!AB13*1.2,IF($D$6=$J$159,AfC!AB13*1.15,IF($D$6=$I$160,AfC!AB13*1.05,AfC!AB13))) -> 112482.144 | H168: =IF($D$6=$I$158,AfC!AC13*1.2,IF($D$6=$K$159,AfC!AC13*1.15,IF($D$6=$I$160,AfC!AC13*1.05,AfC!AC13))) -> 129689.772
E170: Band | F170: Bottom pay point | G170: Middle pay point | H170: Top pay point
E171: Band 1 | F171: =IF($D$10=$I$161,F157*1.3,F157) -> 28931.76 | G171: 28931.76 | H171: 28931.76
E172: Band 2 | F172: 28931.76 | G172: 31072.08 | H172: 31072.08
E173: Band 3 | F173: 31714.8 | G173: 33972.5256 | H173: 33972.5256
E174: Band 4 | F174: 35176.0656 | G174: 38815.4676 | H174: 38815.4676
E175: Band 5 | F175: 40022.1276 | G175: 46265.349 | H175: 49193.742
E176: Band 6 | F176: 50397.282 | G176: 53308.7568 | H176: 60881.652
E177: Band 7 | F177: 62488.452 | G177: 65708.4792 | H177: 71508.9804
E178: Band 8A | F178: 73515.9204 | G178: 73515.9204 | H178: 83021.7024
E179: Band 8B | F179: 85431.9024 | G179: 85431.9024 | H179: 99624.7668
E180: Band 8C | F180: 102435.1068 | G180: 102435.1068 | H180: 118363.3152
E181: Band 8D | F181: 121980.1752 | G181: 121980.1752 | H181: 141004.6872
E182: Band 9 | F182: 146226.7872 | G182: 146226.7872 | H182: 168596.7036

Sheet Nursing, Midwifery & Health Vis (hidden)
B1: Potential Cost Savings from improvement to retention due to flexible working or other initiatives
B3: Nursing, Midwifery & Health Visiting
B7: Organisational investment in the retention programm (EG flexible working team cost) (Insert any organisation costs invested in this work programme, this will be deducted from potential savings to give actual in year saving)
B8: 150000
B10: Number of staff leaving the organisation - last 12 months
B11: Average staff turnover rate (Insert) | C11: X | D11: Headcount (Insert) | E11: >>>>>>> | F11: Total number of staff leaving the organisation
B13: 0.15 | C13: X | D13: 12000 | E13: >>>>>>> | F13: =B13*D13 -> 1800
B17: Cash releasing costs
B18: Bank and Agency cost -12 weeks - per WTE (Insert) | D18: Average budget for substantive post -12 weeks - per WTE (Insert) | E18: X | F18: =F11 -> Total number of staff leaving the organisation | H18: Additional bank and agency costs of current total turnover | I18: Non-cash releasing costs of current total turnover
B20: 11000 | C20: - | D20: 10573.82683 | F20: =F13 -> 1800 | G20: >>>>>>> | H20: =((B20-D20)+(B24-D24))*F20 -> 4883157.865 | I20: =(B29+D29+B33+D33)*F20 -> 2340000
B22: Bank and Agency cost for handover -2 weeks - per WTE (Insert) | D22: Average budget for substantive post -2 weeks - per WTE (Insert)
B24: 3000 | C24: - | D24: 713.3076923
B26: Non-cash releasing costs
B27: Administration of the resignation - per leaver (Insert) | D27: Recruitment and selection costs - per recruit (Insert) | E27: X
B29: 500 | C29: + | D29: 400
B31: Induction training for the new employee - per employee (Insert) | D31: Others costs- leaver / new recruit (Insert)
B33: 300 | C33: + | D33: 100
B37: Costs saving-Prediction | I37: =ROUND(#REF!/1000000,2) -> 
B40: Target reduction in turnover | C40: 0.01 | D40: >>>Change/Insert the turnover reduction rate
B41: Cash releasing saving | C41: =H20-H57 -> 325543.8577
B42: Non-cash releasing saving | C42: =I20-I57 -> 156000
B43: Total cash & non-cash releasing savings | C43: =C41+C42 -> 481543.8577
B44: Total saving after organisational investment is included | C44: =C43-B8 -> 331543.8577
B48: Number of taff leave the organisation
B49: Average staff turnovere rate for all reasons in 2020/21 | C49: X | D49: Headcount of Organisation ↓↓↓ (Insert) | E49: >>>>>>>
B50: =B13-C40 -> 0.14 | C50: X | D50: =D13 -> 12000 | E50: >>>>>>> | F50: =B50*D50 -> 1680
B55: Avg cost of temporary (Nursing, Midwifery & Health Visiting) staff replacement
B56: Bank and Agency cost -12 weeks (Per staff-Insert)↓↓↓ | D56: Average budget for substantive post | E56: X | F56: Total Number of ( Nursing, Midwifery & Health Visiting) staff leaving the organisation | G56: >>>>>>> | H56: Cash releasing (Bank and Agency costs) | I56: Non-cash releasing
B57: =B20 -> 11000 | C57: + | D57: =D20 -> 10573.82683 | E57: X | F57: =F50 -> 1680 | G57: >>>>>>> | H57: =((B57-D57)+(B59-D59))*F57 -> 4557614.008 | I57: =(B61+D61+B63+D63)*F57 -> 2184000
B58: Bank and Agency cost for handover -2 weeks (Per staff-Insert)↓↓↓ | D58: Average budget for substantive post
B59: =B24 -> 3000 | D59: =D24 -> 713.3076923
B60: Administration of the resignation (Per staff-Insert)↓↓↓ | D60: Recruitment and selection costs (Per staff-Insert)↓↓↓
B61: =B29 -> 500 | C61: + | D61: =D29 -> 400
B62: Induction training for the new employee (Per staff-Insert)↓↓↓ | D62: Other Costs (cost of initiative/ investment) (Per staff-Insert)↓↓↓
B63: =B33 -> 300 | C63: + | D63: =D33 -> 100

Sheet Nursing, Midwifery & Health (2) (hidden)
B1: Potential Cost Savings from improvement to retention due to flexible working or other initiatives
B3: Nursing, Midwifery & Health Visiting
B5: Calculated Field
B6: Prepopulated Cell | D6: Basic Pay
B7: Enter Data in Cell
B9: Organisational investment in the retention programm (EG flexible working team cost) (Insert any organisation costs invested in this work programme, this will be deducted from potential savings to give actual in year saving) | D9: Band 1 (< 1 year service)
B10: 150000 | D10: =IF(D6=AfC!I1,VLOOKUP(D9,AfC!A1:L80,9),IF(D6=AfC!J1,VLOOKUP(D9,AfC!A1:L80,10),IF(D6=AfC!K1,VLOOKUP(D9,AfC!A1:L80,11),VLOOKUP(D9,AfC!A1:L80,7)))) -> 18546
B12: Number of staff leaving the organisation - last 12 months
B13: Headcount (Insert) | C13: X | D13: Total number of staff leaving the organisation (Insert) | E13: >>>>>>> | F13: Average turnover rate %
B15: 3000 | C15: Band 5 | D15: 450 | E15: >>>>>>> | F15: =D15/B15 -> 0.15
B17: 2000 | C17: Band 6 | D17: 300 | E17: >>>>>>> | F17: =D17/B17 -> 0.15
B19: 2000 | C19: Band 7 | D19: 300 | E19: >>>>>>> | F19: =D19/B19 -> 0.15
B21: 1000 | C21: Band 8a | D21: 150 | E21: >>>>>>> | F21: =D21/B21 -> 0.15
B23: 2000 | C23: Band 8b | D23: 300 | E23: >>>>>>> | F23: =D23/B23 -> 0.15
B25: 1000 | C25: Band 8c | D25: 150 | E25: >>>>>>> | F25: =D25/B25 -> 0.15
B27: 500 | C27: Band 8d | D27: 75 | E27: >>>>>>> | F27: =D27/B27 -> 0.15
B29: 500 | C29: Band 9 | D29: 75 | E29: >>>>>>> | F29: =D29/B29 -> 0.15
B31: =SUM(B15:B29) -> 12000 | C31: Total | D31: =SUM(D15:D29) -> 1800 | E31: >>>>>>> | F31: =D31/B31 -> 0.15
B35: Cash releasing costs
B36: Bank and Agency cost -12 weeks - per WTE (Insert) | D36: Average budget for substantive post -12 weeks - per WTE | E36: X | F36: Total number of staff leaving the organisation | H36: Additional bank and agency costs of current total turnover | I36: Non-cash releasing costs of current total turnover
B38: =D38*1.1 -> 9786.90075 | C38: Band 5 | D38: =((AfC!AB6+AfC!AD6)/52)*12 -> 8897.1825 | F38: =D15 -> 450 | G38: >>>>>>> | H38: =(((B38/12)*14)-((D38/12)*14))*F38 -> 467102.0813 | I38: =(B$63+D$63+B$67+D$67)*F38 -> 585000
B40: =D40*1.1 -> 11276.8524 | C40: Band 6 | D40: =((AfC!AB7+AfC!AD7)/52)*12 -> 10251.684 | F40: =D17 -> 300 | G40: >>>>>>> | H40: =(((B40/12)*14)-((D40/12)*14))*F40 -> 358808.94 | I40: =(B$63+D$63+B$67+D$67)*F40 -> 390000
B42: =D42*1.1 -> 13899.8706 | C42: Band 7 | D42: =((AfC!AB8+AfC!AD8)/52)*12 -> 12636.246 | F42: =D19 -> 300 | G42: >>>>>>> | H42: =(((B42/12)*14)-((D42/12)*14))*F42 -> 442268.61 | I42: =(B$63+D$63+B$67+D$67)*F42 -> 390000
B44: =D44*1.1 -> 15551.4447 | C44: Band 8a | D44: =((AfC!AB9+AfC!AD9)/52)*12 -> 14137.677 | F44: =D21 -> 150 | G44: >>>>>>> | H44: =(((B44/12)*14)-((D44/12)*14))*F44 -> 247409.3475 | I44: =(B$63+D$63+B$67+D$67)*F44 -> 195000
B46: =D46*1.1 -> 18072.1332 | C46: Band 8b | D46: =((AfC!AB10+AfC!AD10)/52)*12 -> 16429.212 | F46: =D23 -> 300 | G46: >>>>>>> | H46: =(((B46/12)*14)-((D46/12)*14))*F46 -> 575022.42 | I46: =(B$63+D$63+B$67+D$67)*F46 -> 390000
B48: =D48*1.1 -> 21668.9649 | C48: Band 8c | D48: =((AfC!AB11+AfC!AD11)/52)*12 -> 19699.059 | F48: =D25 -> 150 | G48: >>>>>>> | H48: =(((B48/12)*14)-((D48/12)*14))*F48 -> 344733.5325 | I48: =(B$63+D$63+B$67+D$67)*F48 -> 195000
B50: =D50*1.1 -> 25803.4986 | C50: Band 8d | D50: =((AfC!AB12+AfC!AD12)/52)*12 -> 23457.726 | F50: =D27 -> 75 | G50: >>>>>>> | H50: =(((B50/12)*14)-((D50/12)*14))*F50 -> 205255.1025 | I50: =(B$63+D$63+B$67+D$67)*F50 -> 97500
B52: =D52*1.1 -> 30932.5896 | C52: Band 9 | D52: =((AfC!AB13+AfC!AD13)/52)*12 -> 28120.536 | F52: =D29 -> 75 | G52: >>>>>>> | H52: =(((B52/12)*14)-((D52/12)*14))*F52 -> 246054.69 | I52: =(B$63+D$63+B$67+D$67)*F52 -> 97500
B54: =D54*1.1 -> 15120.57236 | C54: Total | D54: =((D38*F38)+(D40*F40)+(D42*F42)+(D44*F44)+(D46*F46)+(D48*F48)+(D50*F50)+(D52*F52))/F54 -> 13745.97487 | F54: =SUM(F38:F52) -> 1800 | G54: >>>>>>> | H54: =SUM(H38:H52) -> 2886654.724 | I54: =SUM(I38:I52) -> 2340000
B56: Bank and Agency cost for handover -2 weeks - per WTE | D56: Average budget for substantive post -2 weeks - per WTE
B58: =(B54/12)*2 -> 2520.095394 | C58: - | D58: =(D54/12)*2 -> 2290.995812
B60: Non-cash releasing costs
B61: Administration of the resignation - per leaver (Insert) | D61: Recruitment and selection costs - per recruit (Insert)
B63: 500 | C63: + | D63: 400
B65: Induction training for the new employee - per employee (Insert) | D65: Others costs- leaver / new recruit (Insert)
B67: 300 | C67: + | D67: 100
B71: Costs saving-Prediction | I71: =ROUND(#REF!/1000000,2) -> 
B74: Target reduction in turnover | C74: 0.001 | D74: >>>Change/Insert the turnover reduction rate
B75: Cash releasing saving | C75: =H54-H91 -> 19244.36483
B76: Non-cash releasing saving | C76: =I54-I91 -> 15600
B77: Total cash & non-cash releasing savings | C77: =C75+C76 -> 34844.36483
B78: Total saving after organisational investment is included | C78: =C77-B10 -> -115155.6352
B82: Number of taff leave the organisation
B83: Average staff turnovere rate for all reasons in 2020/21 | C83: X | D83: Headcount of Organisation ↓↓↓ (Insert) | E83: >>>>>>>
B84: =F31-C74 -> 0.149 | C84: X | D84: =B31 -> 12000 | E84: >>>>>>> | F84: =B84*D84 -> 1788
B89: Avg cost of temporary (Nursing, Midwifery & Health Visiting) staff replacement
B90: Bank and Agency cost -12 weeks (Per staff-Insert)↓↓↓ | D90: Average budget for substantive post | E90: X | F90: Total Number of ( Nursing, Midwifery & Health Visiting) staff leaving the organisation | G90: >>>>>>> | H90: Cash releasing (Bank and Agency costs) | I90: Non-cash releasing
B91: =B54 -> 15120.57236 | C91: + | D91: =D54 -> 13745.97487 | E91: X | F91: =F84 -> 1788 | G91: >>>>>>> | H91: =((B91-D91)+(B93-D93))*F91 -> 2867410.359 | I91: =(B95+D95+B97+D97)*F91 -> 2324400
B92: Bank and Agency cost for handover -2 weeks (Per staff-Insert)↓↓↓ | D92: Average budget for substantive post
B93: =B58 -> 2520.095394 | D93: =D58 -> 2290.995812
B94: Administration of the resignation (Per staff-Insert)↓↓↓ | D94: Recruitment and selection costs (Per staff-Insert)↓↓↓
B95: =B63 -> 500 | C95: + | D95: =D63 -> 400
B96: Induction training for the new employee (Per staff-Insert)↓↓↓ | D96: Other Costs (cost of initiative/ investment) (Per staff-Insert)↓↓↓
B97: =B67 -> 300 | C97: + | D97: =D67 -> 100

Sheet Scientific, Therapeutic & Tech
B1: Potential Cost Savings from improvement to retention due to flexible working or other initiatives
B3: Scientific, Therapeutic & Tech
B5: Calculated Field | D5: Agenda for Change costings
B6: Prepopulated Cell | D6: London (inner)
B7: Enter Data in Cell
B9: Organisational investment in the retention programm (EG flexible working team cost) (Insert any organisation costs invested in this work programme, this will be deducted from potential savings to give actual in year saving) | D9: Top pay point
B10: 0 | D10: "Include on costs"
B12: Workforce data - headcounts and leavers
B13: Headcount (Insert) | C13: X | D13: Total number of staff leaving the organisation (Insert) | E13: >>>>>>> | F13: Average turnover rate %
C15: Band 5 | E15: >>>>>>> | F15: =IFERROR(D15/B15,0) -> 0
C17: Band 6 | E17: >>>>>>> | F17: =IFERROR(D17/B17,0) -> 0
C19: Band 7 | E19: >>>>>>> | F19: =IFERROR(D19/B19,0) -> 0
C21: Band 8a | E21: >>>>>>> | F21: =IFERROR(D21/B21,0) -> 0
C23: Band 8b | E23: >>>>>>> | F23: =IFERROR(D23/B23,0) -> 0
C25: Band 8c | E25: >>>>>>> | F25: =IFERROR(D25/B25,0) -> 0
C27: Band 8d | E27: >>>>>>> | F27: =IFERROR(D27/B27,0) -> 0
C29: Band 9 | E29: >>>>>>> | F29: =IFERROR(D29/B29,0) -> 0
B31: =SUM(B15:B29) -> 0 | C31: Total | D31: =SUM(D15:D29) -> 0 | E31: >>>>>>> | F31: =IFERROR(D31/B31,0) -> 0
B35: Cash releasing costs
B36: Bank and Agency cost -12 weeks - per WTE (Insert) | D36: Average budget for substantive post -12 weeks - per WTE | E36: X | F36: Total number of staff leaving the organisation | H36: Additional bank and agency costs of current total turnover | I36: Non-cash releasing costs of current total turnover
C38: Band 5 | D38: =(IF($D$9=$G$145,G150,IF($D$9=$F$145,F150,IF($D$9=$H$145,H150)))/52)*12 -> 11352.402 | F38: =D15 -> 0 | G38: >>>>>>> | H38: =IF(B38<D38,0,(((B38/12)*14)-((D38/12)*14))*F38) -> 0 | I38: =(B$63+D$63+B$67+D$67)*F38 -> 0
C40: Band 6 | D40: =(IF($D$9=$G$145,G151,IF($D$9=$F$145,F151,IF($D$9=$H$145,H151)))/52)*12 -> 14049.612 | F40: =D17 -> 0 | G40: >>>>>>> | H40: =IF(B40<D40,0,(((B40/12)*14)-((D40/12)*14))*F40) -> 0 | I40: =(B$63+D$63+B$67+D$67)*F40 -> 0
C42: Band 7 | D42: =(IF($D$9=$G$145,G152,IF($D$9=$F$145,F152,IF($D$9=$H$145,H152)))/52)*12 -> 16502.0724 | F42: =D19 -> 0 | G42: >>>>>>> | H42: =IF(B42<D42,0,(((B42/12)*14)-((D42/12)*14))*F42) -> 0 | I42: =(B$63+D$63+B$67+D$67)*F42 -> 0
C44: Band 8a | D44: =(IF($D$9=$G$145,G153,IF($D$9=$F$145,F153,IF($D$9=$H$145,H153)))/52)*12 -> 19158.8544 | F44: =D21 -> 0 | G44: >>>>>>> | H44: =IF(B44<D44,0,(((B44/12)*14)-((D44/12)*14))*F44) -> 0 | I44: =(B$63+D$63+B$67+D$67)*F44 -> 0
C46: Band 8b | D46: =(IF($D$9=$G$145,G154,IF($D$9=$F$145,F154,IF($D$9=$H$145,H154)))/52)*12 -> 22990.3308 | F46: =D23 -> 0 | G46: >>>>>>> | H46: =IF(B46<D46,0,(((B46/12)*14)-((D46/12)*14))*F46) -> 0 | I46: =(B$63+D$63+B$67+D$67)*F46 -> 0
C48: Band 8c | D48: =(IF($D$9=$G$145,G155,IF($D$9=$F$145,F155,IF($D$9=$H$145,H155)))/52)*12 -> 27314.6112 | F48: =D25 -> 0 | G48: >>>>>>> | H48: =IF(B48<D48,0,(((B48/12)*14)-((D48/12)*14))*F48) -> 0 | I48: =(B$63+D$63+B$67+D$67)*F48 -> 0
C50: Band 8d | D50: =(IF($D$9=$G$145,G156,IF($D$9=$F$145,F156,IF($D$9=$H$145,H156)))/52)*12 -> 32539.5432 | F50: =D27 -> 0 | G50: >>>>>>> | H50: =IF(B50<D50,0,(((B50/12)*14)-((D50/12)*14))*F50) -> 0 | I50: =(B$63+D$63+B$67+D$67)*F50 -> 0
C52: Band 9 | D52: =(IF($D$9=$G$145,G157,IF($D$9=$F$145,F157,IF($D$9=$H$145,H157)))/52)*12 -> 38906.9316 | F52: =D29 -> 0 | G52: >>>>>>> | H52: =IF(B52<D52,0,(((B52/12)*14)-((D52/12)*14))*F52) -> 0 | I52: =(B$63+D$63+B$67+D$67)*F52 -> 0
B54: =IFERROR((((B38*F38)+(B40*F40)+(B42*F42)+(B44*F44)+(B46*F46)+(B48*F48)+(B50*F50)+(B52*F52))/F54),0) -> 0 | C54: Total | D54: =IFERROR((((D38*F38)+(D40*F40)+(D42*F42)+(D44*F44)+(D46*F46)+(D48*F48)+(D50*F50)+(D52*F52))/F54),0) -> 0 | F54: =SUM(F38:F52) -> 0 | G54: >>>>>>> | H54: =SUM(H38:H52) -> 0 | I54: =SUM(I38:I52) -> 0
B56: Bank and Agency cost for handover -2 weeks - per WTE | D56: Average budget for substantive post -2 weeks - per WTE
B58: =(B54/12)*2 -> 0 | C58: - | D58: =(D54/12)*2 -> 0
B60: Non-cash releasing costs
B61: Administration of the resignation - per leaver (Insert) | D61: Recruitment and selection costs - per recruit (Insert)
C63: +
B65: Induction training for the new employee - per employee (Insert) | D65: Others costs- leaver / new recruit (Insert)
C67: +
B71: Costs saving-Prediction | I71: =ROUND(#REF!/1000000,2) -> 
B74: Target reduction in turnover | C74: 0 | D74: >>>Change/Insert the turnover reduction rate
B75: Cash releasing saving | C75: =IF(C74>0,IF(H54<1,0,H54-H109),0) -> 0
B76: Non-cash releasing saving | C76: =I54-I109 -> 0
B77: Total cash & non-cash releasing savings | C77: =C75+C76 -> 0
B78: Total saving after organisational investment is included | C78: =C77-B10 -> 0
B82: Number of taff leave the organisation
B83: Average staff turnovere rate for all reasons in 2020/21 | C83: X | D83: Headcount of Organisation ↓↓↓ (Insert) | E83: >>>>>>>
B84: =F31-C74 -> 0 | C84: X | D84: =B31 -> 0 | E84: >>>>>>> | F84: =B84*D84 -> 0
F88: =B15*$B$84 -> 0 | G88: =F88/B15 ->  | H88: =(((B38/12)*14)-((D38/12)*14))*F88 -> 0 | I88: =(B$63+D$63+B$67+D$67)*F88 -> 0
F90: =B17*$B$84 -> 0 | G90: =F90/B17 ->  | H90: =(((B40/12)*14)-((D40/12)*14))*F90 -> 0 | I90: =(B$63+D$63+B$67+D$67)*F90 -> 0
F92: =B19*$B$84 -> 0 | G92: =F92/B19 ->  | H92: =(((B42/12)*14)-((D42/12)*14))*F92 -> 0 | I92: =(B$63+D$63+B$67+D$67)*F92 -> 0
F94: =B21*$B$84 -> 0 | G94: =F94/B21 ->  | H94: =(((B44/12)*14)-((D44/12)*14))*F94 -> 0 | I94: =(B$63+D$63+B$67+D$67)*F94 -> 0
F96: =B23*$B$84 -> 0 | G96: =F96/B23 ->  | H96: =(((B46/12)*14)-((D46/12)*14))*F96 -> 0 | I96: =(B$63+D$63+B$67+D$67)*F96 -> 0
F98: =B25*$B$84 -> 0 | G98: =F98/B25 ->  | H98: =(((B48/12)*14)-((D48/12)*14))*F98 -> 0 | I98: =(B$63+D$63+B$67+D$67)*F98 -> 0
F100: =B27*$B$84 -> 0 | G100: =F100/B27 ->  | H100: =(((B50/12)*14)-((D50/12)*14))*F100 -> 0 | I100: =(B$63+D$63+B$67+D$67)*F100 -> 0
F102: =B29*$B$84 -> 0 | G102: =F102/B29 ->  | H102: =(((B52/12)*14)-((D52/12)*14))*F102 -> 0 | I102: =(B$63+D$63+B$67+D$67)*F102 -> 0
F104: =B31*$B$84 -> 0 | G104: =F104/B31 ->  | H104: =SUM(H88:H102) -> 0 | I104: =SUM(I88:I102) -> 0
B107: Avg cost of temporary (Nursing, Midwifery & Health Visiting) staff replacement
B108: Bank and Agency cost -12 weeks (Per staff-Insert)↓↓↓ | D108: Average budget for substantive post | E108: X | F108: Total Number of ( Nursing, Midwifery & Health Visiting) staff leaving the organisation | G108: >>>>>>> | H108: Cash releasing (Bank and Agency costs) | I108: Non-cash releasing
B109: =B54 -> 0 | C109: + | D109: =D54 -> 0 | E109: X | F109: =F84 -> 0 | G109: >>>>>>> | H109: =H104 -> 0 | I109: =I104 -> 0
B110: Bank and Agency cost for handover -2 weeks (Per staff-Insert)↓↓↓ | D110: Average budget for substantive post
B111: =B58 -> 0 | D111: =D58 -> 0
B112: Administration of the resignation (Per staff-Insert)↓↓↓ | D112: Recruitment and selection costs (Per staff-Insert)↓↓↓
B113: =B63 -> 0 | C113: + | D113: =D63 -> 0
B114: Induction training for the new employee (Per staff-Insert)↓↓↓ | D114: Other Costs (cost of initiative/ investment) (Per staff-Insert)↓↓↓
B115: =B67 -> 0 | C115: + | D115: =D67 -> 0
E131: Band | F131: Bottom pay point | G131: Middle pay point | H131: Top pay point
E132: Band 1 | F132: =IF($D$6=$I$133,AfC!AA2*1.2,IF($D$6=$I$134,AfC!AA2*1.15,IF($D$6=$I$135,AfC!AA2*1.05,AfC!AA2))) -> 22255.2 | G132: =IF($D$6=$I$133,AfC!AB2*1.2,IF($D$6=$J$134,AfC!AB2*1.15,IF($D$6=$I$135,AfC!AB2*1.05,AfC!AB2))) -> 22255.2 | H132: =IF($D$6=$I$133,AfC!AC2*1.2,IF($D$6=$K$134,AfC!AC2*1.15,IF($D$6=$I$135,AfC!AC2*1.05,AfC!AC2))) -> 22255.2 | I132: Basic Pay
E133: Band 2 | F133: =IF($D$6=$I$133,AfC!AA3*1.2,IF($D$6=$I$134,AfC!AA3*1.15,IF($D$6=$I$135,AfC!AA3*1.05,AfC!AA3))) -> 22255.2 | G133: =IF($D$6=$I$133,AfC!AB3*1.2,IF($D$6=$J$134,AfC!AB3*1.15,IF($D$6=$I$135,AfC!AB3*1.05,AfC!AB3))) -> 23901.6 | H133: =IF($D$6=$I$133,AfC!AC3*1.2,IF($D$6=$K$134,AfC!AC3*1.15,IF($D$6=$I$135,AfC!AC3*1.05,AfC!AC3))) -> 23901.6 | I133: London (inner)
E134: Band 3 | F134: =IF($D$6=$I$133,AfC!AA4*1.2,IF($D$6=$I$134,AfC!AA4*1.15,IF($D$6=$I$135,AfC!AA4*1.05,AfC!AA4))) -> 24396 | G134: =IF($D$6=$I$133,AfC!AB4*1.2,IF($D$6=$J$134,AfC!AB4*1.15,IF($D$6=$I$135,AfC!AB4*1.05,AfC!AB4))) -> 26132.712 | H134: =IF($D$6=$I$133,AfC!AC4*1.2,IF($D$6=$K$134,AfC!AC4*1.15,IF($D$6=$I$135,AfC!AC4*1.05,AfC!AC4))) -> 26132.712 | I134: London (outer)
E135: Band 4 | F135: =IF($D$6=$I$133,AfC!AA5*1.2,IF($D$6=$I$134,AfC!AA5*1.15,IF($D$6=$I$135,AfC!AA5*1.05,AfC!AA5))) -> 27058.512 | G135: =IF($D$6=$I$133,AfC!AB5*1.2,IF($D$6=$J$134,AfC!AB5*1.15,IF($D$6=$I$135,AfC!AB5*1.05,AfC!AB5))) -> 29858.052 | H135: =IF($D$6=$I$133,AfC!AC5*1.2,IF($D$6=$K$134,AfC!AC5*1.15,IF($D$6=$I$135,AfC!AC5*1.05,AfC!AC5))) -> 29858.052 | I135: London (fringe)
E136: Band 5 | F136: =IF($D$6=$I$133,AfC!AA6*1.2,IF($D$6=$I$134,AfC!AA6*1.15,IF($D$6=$I$135,AfC!AA6*1.05,AfC!AA6))) -> 30786.252 | G136: =IF($D$6=$I$133,AfC!AB6*1.2,IF($D$6=$J$134,AfC!AB6*1.15,IF($D$6=$I$135,AfC!AB6*1.05,AfC!AB6))) -> 35588.73 | H136: =IF($D$6=$I$133,AfC!AC6*1.2,IF($D$6=$K$134,AfC!AC6*1.15,IF($D$6=$I$135,AfC!AC6*1.05,AfC!AC6))) -> 37841.34 | I136: "Include on costs"
E137: Band 6 | F137: =IF($D$6=$I$133,AfC!AA7*1.2,IF($D$6=$I$134,AfC!AA7*1.15,IF($D$6=$I$135,AfC!AA7*1.05,AfC!AA7))) -> 38767.14 | G137: =IF($D$6=$I$133,AfC!AB7*1.2,IF($D$6=$J$134,AfC!AB7*1.15,IF($D$6=$I$135,AfC!AB7*1.05,AfC!AB7))) -> 41006.736 | H137: =IF($D$6=$I$133,AfC!AC7*1.2,IF($D$6=$K$134,AfC!AC7*1.15,IF($D$6=$I$135,AfC!AC7*1.05,AfC!AC7))) -> 46832.04
E138: Band 7 | F138: =IF($D$6=$I$133,AfC!AA8*1.2,IF($D$6=$I$134,AfC!AA8*1.15,IF($D$6=$I$135,AfC!AA8*1.05,AfC!AA8))) -> 48068.04 | G138: =IF($D$6=$I$133,AfC!AB8*1.2,IF($D$6=$J$134,AfC!AB8*1.15,IF($D$6=$I$135,AfC!AB8*1.05,AfC!AB8))) -> 50544.984 | H138: =IF($D$6=$I$133,AfC!AC8*1.2,IF($D$6=$K$134,AfC!AC8*1.15,IF($D$6=$I$135,AfC!AC8*1.05,AfC!AC8))) -> 55006.908
E139: Band 8A | F139: =IF($D$6=$I$133,AfC!AA9*1.2,IF($D$6=$I$134,AfC!AA9*1.15,IF($D$6=$I$135,AfC!AA9*1.05,AfC!AA9))) -> 56550.708 | G139: =IF($D$6=$I$133,AfC!AB9*1.2,IF($D$6=$J$134,AfC!AB9*1.15,IF($D$6=$I$135,AfC!AB9*1.05,AfC!AB9))) -> 56550.708 | H139: =IF($D$6=$I$133,AfC!AC9*1.2,IF($D$6=$K$134,AfC!AC9*1.15,IF($D$6=$I$135,AfC!AC9*1.05,AfC!AC9))) -> 63862.848
E140: Band 8B | F140: =IF($D$6=$I$133,AfC!AA10*1.2,IF($D$6=$I$134,AfC!AA10*1.15,IF($D$6=$I$135,AfC!AA10*1.05,AfC!AA10))) -> 65716.848 | G140: =IF($D$6=$I$133,AfC!AB10*1.2,IF($D$6=$J$134,AfC!AB10*1.15,IF($D$6=$I$135,AfC!AB10*1.05,AfC!AB10))) -> 65716.848 | H140: =IF($D$6=$I$133,AfC!AC10*1.2,IF($D$6=$K$134,AfC!AC10*1.15,IF($D$6=$I$135,AfC!AC10*1.05,AfC!AC10))) -> 76634.436
E141: Band 8C | F141: =IF($D$6=$I$133,AfC!AA11*1.2,IF($D$6=$I$134,AfC!AA11*1.15,IF($D$6=$I$135,AfC!AA11*1.05,AfC!AA11))) -> 78796.236 | G141: =IF($D$6=$I$133,AfC!AB11*1.2,IF($D$6=$J$134,AfC!AB11*1.15,IF($D$6=$I$135,AfC!AB11*1.05,AfC!AB11))) -> 78796.236 | H141: =IF($D$6=$I$133,AfC!AC11*1.2,IF($D$6=$K$134,AfC!AC11*1.15,IF($D$6=$I$135,AfC!AC11*1.05,AfC!AC11))) -> 91048.704
E142: Band 8D | F142: =IF($D$6=$I$133,AfC!AA12*1.2,IF($D$6=$I$134,AfC!AA12*1.15,IF($D$6=$I$135,AfC!AA12*1.05,AfC!AA12))) -> 93830.904 | G142: =IF($D$6=$I$133,AfC!AB12*1.2,IF($D$6=$J$134,AfC!AB12*1.15,IF($D$6=$I$135,AfC!AB12*1.05,AfC!AB12))) -> 93830.904 | H142: =IF($D$6=$I$133,AfC!AC12*1.2,IF($D$6=$K$134,AfC!AC12*1.15,IF($D$6=$I$135,AfC!AC12*1.05,AfC!AC12))) -> 108465.144
E143: Band 9 | F143: =IF($D$6=$I$133,AfC!AA13*1.2,IF($D$6=$I$134,AfC!AA13*1.15,IF($D$6=$I$135,AfC!AA13*1.05,AfC!AA13))) -> 112482.144 | G143: =IF($D$6=$I$133,AfC!AB13*1.2,IF($D$6=$J$134,AfC!AB13*1.15,IF($D$6=$I$135,AfC!AB13*1.05,AfC!AB13))) -> 112482.144 | H143: =IF($D$6=$I$133,AfC!AC13*1.2,IF($D$6=$K$134,AfC!AC13*1.15,IF($D$6=$I$135,AfC!AC13*1.05,AfC!AC13))) -> 129689.772
E145: Band | F145: Bottom pay point | G145: Middle pay point | H145: Top pay point
E146: Band 1 | F146: =IF($D$10=$I$136,F132*1.3,F132) -> 28931.76 | G146: 28931.76 | H146: 28931.76
E147: Band 2 | F147: 28931.76 | G147: 31072.08 | H147: 31072.08
E148: Band 3 | F148: 31714.8 | G148: 33972.5256 | H148: 33972.5256
E149: Band 4 | F149: 35176.0656 | G149: 38815.4676 | H149: 38815.4676
E150: Band 5 | F150: 40022.1276 | G150: 46265.349 | H150: 49193.742
E151: Band 6 | F151: 50397.282 | G151: 53308.7568 | H151: 60881.652
E152: Band 7 | F152: 62488.452 | G152: 65708.4792 | H152: 71508.9804
E153: Band 8A | F153: 73515.9204 | G153: 73515.9204 | H153: 83021.7024
E154: Band 8B | F154: 85431.9024 | G154: 85431.9024 | H154: 99624.7668
E155: Band 8C | F155: 102435.1068 | G155: 102435.1068 | H155: 118363.3152
E156: Band 8D | F156: 121980.1752 | G156: 121980.1752 | H156: 141004.6872
E157: Band 9 | F157: 146226.7872 | G157: 146226.7872 | H157: 168596.7036

Sheet Healthcare Assistant & Others (hidden)
B1: Potential Cost Savings from improvement to retention due to flexible working or other initiatives
B3: Healthcare Assistant & Others
B7: Organisational investment in the retention programm (EG flexible working team cost) (Insert any organisation costs invested in this work programme, this will be deducted from potential savings to give actual in year saving)
B8: 150000
B10: Number of staff leaving the organisation - last 12 months
B11: Average staff turnover rate (Insert) | C11: X | D11: Headcount (Insert) | E11: >>>>>>> | F11: Total number of staff leaving the organisation
B13: 0.15 | C13: X | D13: 8000 | E13: >>>>>>> | F13: =B13*D13 -> 1200
B17: Cash releasing costs
B18: Bank and Agency cost -12 weeks - per WTE (Insert) | D18: Average budget for substantive post -12 weeks - per WTE (Insert) | E18: X | F18: =F11 -> Total number of staff leaving the organisation | H18: Additional bank and agency costs of current total turnover | I18: Non-cash releasing costs of current total turnover
B20: 10992 | C20: - | D20: 9993 | F20: =F13 -> 1200 | G20: >>>>>>> | H20: =((B20-D20)+(B24-D24))*F20 -> 1399200 | I20: =(B29+D29+B33+D33)*F20 -> 1560000
B22: Bank and Agency cost for handover -2 weeks - per WTE (Insert) | D22: Average budget for substantive post -2 weeks - per WTE (Insert)
B24: 1832 | C24: - | D24: 1665
B26: Non-cash releasing costs
B27: Administration of the resignation - per leaver (Insert) | D27: Recruitment and selection costs - per recruit (Insert) | E27: X
B29: 500 | C29: + | D29: 400
B31: Induction training for the new employee - per employee (Insert) | D31: Others costs- leaver / new recruit (Insert)
B33: 300 | C33: + | D33: 100
B37: Costs saving-Prediction | I37: =ROUND(#REF!/1000000,2) -> 
B40: Target reduction in turnover | C40: 0.001 | D40: >>>Change/Insert the turnover reduction rate
B41: Cash releasing saving | C41: =H20-H57 -> 9328
B42: Non-cash releasing saving | C42: =I20-I57 -> 10400
B43: Total cash & non-cash releasing savings | C43: =C41+C42 -> 19728
B44: Total saving after organisational investment is included | C44: =C43-B8 -> -130272
B48: Number of taff leave the organisation
B49: Average staff turnovere rate for all reasons in 2020/21 | C49: X | D49: Headcount of Organisation ↓↓↓ (Insert) | E49: >>>>>>>
B50: =B13-C40 -> 0.149 | C50: X | D50: =D13 -> 8000 | E50: >>>>>>> | F50: =B50*D50 -> 1192
B55: Avg cost of temporary (Nursing, Midwifery & Health Visiting) staff replacement
B56: Bank and Agency cost -12 weeks (Per staff-Insert)↓↓↓ | D56: Average budget for substantive post | E56: X | F56: Total Number of ( Nursing, Midwifery & Health Visiting) staff leaving the organisation | G56: >>>>>>> | H56: Cash releasing (Bank and Agency costs) | I56: Non-cash releasing
B57: =B20 -> 10992 | C57: + | D57: =D20 -> 9993 | E57: X | F57: =F50 -> 1192 | G57: >>>>>>> | H57: =((B57-D57)+(B59-D59))*F57 -> 1389872 | I57: =(B61+D61+B63+D63)*F57 -> 1549600
B58: Bank and Agency cost for handover -2 weeks (Per staff-Insert)↓↓↓ | D58: Average budget for substantive post
B59: =B24 -> 1832 | D59: =D24 -> 1665
B60: Administration of the resignation (Per staff-Insert)↓↓↓ | D60: Recruitment and selection costs (Per staff-Insert)↓↓↓
B61: =B29 -> 500 | C61: + | D61: =D29 -> 400
B62: Induction training for the new employee (Per staff-Insert)↓↓↓ | D62: Other Costs (cost of initiative/ investment) (Per staff-Insert)↓↓↓
B63: =B33 -> 300 | C63: + | D63: =D33 -> 100

Sheet Healthcare Assistant & Others
B1: Potential Cost Savings from improvement to retention due to flexible working or other initiatives
B3: Healthcare Assistants & Others
B5: Calculated Field
B6: Prepopulated Cell | D6: Basic Pay
B7: Enter Data in Cell
B9: Organisational investment in the retention programm (EG flexible working team cost) (Insert any organisation costs invested in this work programme, this will be deducted from potential savings to give actual in year saving) | D9: Bottom pay point
B10: 0 | D10: "Exclude on costs"
B12: Workforce data - headcounts and leavers
B13: Headcount (Insert) | C13: X | D13: Total number of staff leaving the organisation (Insert) | E13: >>>>>>> | F13: Average turnover rate %
C15: Band 1 | E15: >>>>>>> | F15: =IFERROR(D15/B15,0) -> 0
C17: Band 2 | E17: >>>>>>> | F17: =IFERROR(D17/B17,0) -> 0
C19: Band 3 | E19: >>>>>>> | F19: =IFERROR(D19/B19,0) -> 0
C21: Band 4 | E21: >>>>>>> | F21: =IFERROR(D21/B21,0) -> 0
B23: =SUM(B15:B21) -> 0 | C23: Total | D23: =SUM(D15:D21) -> 0 | E23: >>>>>>> | F23: =IFERROR(D23/B23,0) -> 0
B27: Cash releasing costs
B28: Bank and Agency cost -12 weeks - per WTE (Insert) | D28: Average budget for substantive post -12 weeks - per WTE | E28: X | F28: Total number of staff leaving the organisation | H28: Additional bank and agency costs of current total turnover | I28: Non-cash releasing costs of current total turnover
C30: Band 1 | D30: =(IF($D$9=$G$140,G141,IF($D$9=$F$140,F141,IF($D$9=$H$140,H141)))/52)*12 -> 4279.846154 | F30: =D15 -> 0 | G30: >>>>>>> | H30: =IF(B30<D30,0,(((B30/12)*14)-((D30/12)*14))*F30) -> 0 | I30: =(B$47+D$47+B$51+D$51)*F30 -> 0
C32: Band 2 | D32: =(IF($D$9=$G$140,G142,IF($D$9=$F$140,F142,IF($D$9=$H$140,H142)))/52)*12 -> 4279.846154 | F32: =D17 -> 0 | G32: >>>>>>> | H32: =IF(B32<D32,0,(((B32/12)*14)-((D32/12)*14))*F32) -> 0 | I32: =(B$47+D$47+B$51+D$51)*F32 -> 0
C34: Band 3 | D34: =(IF($D$9=$G$140,G143,IF($D$9=$F$140,F143,IF($D$9=$H$140,H143)))/52)*12 -> 4691.538462 | F34: =D19 -> 0 | G34: >>>>>>> | H34: =IF(B34<D34,0,(((B34/12)*14)-((D34/12)*14))*F34) -> 0 | I34: =(B$47+D$47+B$51+D$51)*F34 -> 0
C36: Band 4 | D36: =(IF($D$9=$G$140,G144,IF($D$9=$F$140,F144,IF($D$9=$H$140,H144)))/52)*12 -> 5203.56 | F36: =D21 -> 0 | G36: >>>>>>> | H36: =IF(B36<D36,0,(((B36/12)*14)-((D36/12)*14))*F36) -> 0 | I36: =(B$47+D$47+B$51+D$51)*F36 -> 0
B38: =IFERROR((((B30*F30)+(B32*F32)+(B34*F34)+(B36*F36))/F38),0) -> 0 | C38: Total | D38: =IFERROR((((D30*F30)+(D32*F32)+(D34*F34)+(D36*F36))/F38),0) -> 0 | F38: =SUM(F30:F36) -> 0 | G38: >>>>>>> | H38: =SUM(H30:H36) -> 0 | I38: =SUM(I30:I36) -> 0
B40: Bank and Agency cost for handover -2 weeks - per WTE | D40: Average budget for substantive post -2 weeks - per WTE
B42: =(B38/12)*2 -> 0 | C42: - | D42: =(D38/12)*2 -> 0
B44: Non-cash releasing costs
B45: Administration of the resignation - per leaver (Insert) | D45: Recruitment and selection costs - per recruit (Insert)
C47: +
B49: Induction training for the new employee - per employee (Insert) | D49: Others costs- leaver / new recruit (Insert)
C51: +
B55: Costs saving-Prediction | I55: =ROUND(#REF!/1000000,2) -> 
B58: Target reduction in turnover | C58: 0 | D58: >>>Change/Insert the turnover reduction rate
B59: Cash releasing saving | C59: =IF(C58>0,IF(H38<1,0,H38-H88),0) -> 0
B60: Non-cash releasing saving | C60: =I38-I88 -> 0
B61: Total cash & non-cash releasing savings | C61: =C59+C60 -> 0
B62: Total saving after organisational investment is included | C62: =C61-B10 -> 0
B66: Number of taff leave the organisation
B67: Average staff turnovere rate for all reasons in 2020/21 | C67: X | D67: Headcount of Organisation ↓↓↓ (Insert) | E67: >>>>>>>
B68: =F23-C58 -> 0 | C68: X | D68: =B23 -> 0 | E68: >>>>>>> | F68: =B68*D68 -> 0
F71: =B15*$B$68 -> 0 | G71: =F71/B15 ->  | H71: =(((B30/12)*14)-((D30/12)*14))*F71 -> 0 | I71: =(B$47+D$47+B$51+D$51)*F71 -> 0
F73: =B17*$B$68 -> 0 | G73: =F73/B17 ->  | H73: =(((B32/12)*14)-((D32/12)*14))*F73 -> 0 | I73: =(B$47+D$47+B$51+D$51)*F73 -> 0
F75: =B19*$B$68 -> 0 | G75: =F75/B19 ->  | H75: =(((B34/12)*14)-((D34/12)*14))*F75 -> 0 | I75: =(B$47+D$47+B$51+D$51)*F75 -> 0
F77: =B21*$B$68 -> 0 | G77: =F77/B21 ->  | H77: =(((B36/12)*14)-((D36/12)*14))*F77 -> 0 | I77: =(B$47+D$47+B$51+D$51)*F77 -> 0
F79: =B23*$B$68 -> 0 | G79: =F79/B23 ->  | H79: =SUM(H71:H78) -> 0 | I79: =SUM(I71:I78) -> 0
B86: Avg cost of temporary (Nursing, Midwifery & Health Visiting) staff replacement
B87: Bank and Agency cost -12 weeks (Per staff-Insert)↓↓↓ | D87: Average budget for substantive post | E87: X | F87: Total Number of ( Nursing, Midwifery & Health Visiting) staff leaving the organisation | G87: >>>>>>> | H87: Cash releasing (Bank and Agency costs) | I87: Non-cash releasing
B88: =B38 -> 0 | C88: + | D88: =D38 -> 0 | E88: X | F88: =F68 -> 0 | G88: >>>>>>> | H88: =H79 -> 0 | I88: =I79 -> 0
B89: Bank and Agency cost for handover -2 weeks (Per staff-Insert)↓↓↓ | D89: Average budget for substantive post
B90: =B42 -> 0 | D90: =D42 -> 0
B91: Administration of the resignation (Per staff-Insert)↓↓↓ | D91: Recruitment and selection costs (Per staff-Insert)↓↓↓
B92: =B47 -> 0 | C92: + | D92: =D47 -> 0
B93: Induction training for the new employee (Per staff-Insert)↓↓↓ | D93: Other Costs (cost of initiative/ investment) (Per staff-Insert)↓↓↓
B94: =B51 -> 0 | C94: + | D94: =D51 -> 0
E126: Band | F126: Bottom pay point | G126: Middle pay point | H126: Top pay point
E127: Band 1 | F127: =IF($D$6=$I$128,AfC!AA2*1.2,IF($D$6=$I$129,AfC!AA2*1.15,IF($D$6=$I$130,AfC!AA2*1.05,AfC!AA2))) -> 18546 | G127: =IF($D$6=$I$128,AfC!AB2*1.2,IF($D$6=$J$129,AfC!AB2*1.15,IF($D$6=$I$130,AfC!AB2*1.05,AfC!AB2))) -> 18546 | H127: =IF($D$6=$I$128,AfC!AC2*1.2,IF($D$6=$K$129,AfC!AC2*1.15,IF($D$6=$I$130,AfC!AC2*1.05,AfC!AC2))) -> 18546 | I127: Basic Pay
E128: Band 2 | F128: =IF($D$6=$I$128,AfC!AA3*1.2,IF($D$6=$I$129,AfC!AA3*1.15,IF($D$6=$I$130,AfC!AA3*1.05,AfC!AA3))) -> 18546 | G128: =IF($D$6=$I$128,AfC!AB3*1.2,IF($D$6=$J$129,AfC!AB3*1.15,IF($D$6=$I$130,AfC!AB3*1.05,AfC!AB3))) -> 19918 | H128: =IF($D$6=$I$128,AfC!AC3*1.2,IF($D$6=$K$129,AfC!AC3*1.15,IF($D$6=$I$130,AfC!AC3*1.05,AfC!AC3))) -> 19918 | I128: London (inner)
E129: Band 3 | F129: =IF($D$6=$I$128,AfC!AA4*1.2,IF($D$6=$I$129,AfC!AA4*1.15,IF($D$6=$I$130,AfC!AA4*1.05,AfC!AA4))) -> 20330 | G129: =IF($D$6=$I$128,AfC!AB4*1.2,IF($D$6=$J$129,AfC!AB4*1.15,IF($D$6=$I$130,AfC!AB4*1.05,AfC!AB4))) -> 21777.26 | H129: =IF($D$6=$I$128,AfC!AC4*1.2,IF($D$6=$K$129,AfC!AC4*1.15,IF($D$6=$I$130,AfC!AC4*1.05,AfC!AC4))) -> 21777.26 | I129: London (outer)
E130: Band 4 | F130: =IF($D$6=$I$128,AfC!AA5*1.2,IF($D$6=$I$129,AfC!AA5*1.15,IF($D$6=$I$130,AfC!AA5*1.05,AfC!AA5))) -> 22548.76 | G130: =IF($D$6=$I$128,AfC!AB5*1.2,IF($D$6=$J$129,AfC!AB5*1.15,IF($D$6=$I$130,AfC!AB5*1.05,AfC!AB5))) -> 24881.71 | H130: =IF($D$6=$I$128,AfC!AC5*1.2,IF($D$6=$K$129,AfC!AC5*1.15,IF($D$6=$I$130,AfC!AC5*1.05,AfC!AC5))) -> 24881.71 | I130: London (fringe)
E131: Band 5 | F131: =IF($D$6=$I$128,AfC!AA6*1.2,IF($D$6=$I$129,AfC!AA6*1.15,IF($D$6=$I$130,AfC!AA6*1.05,AfC!AA6))) -> 25655.21 | G131: =IF($D$6=$I$128,AfC!AB6*1.2,IF($D$6=$J$129,AfC!AB6*1.15,IF($D$6=$I$130,AfC!AB6*1.05,AfC!AB6))) -> 29657.275 | H131: =IF($D$6=$I$128,AfC!AC6*1.2,IF($D$6=$K$129,AfC!AC6*1.15,IF($D$6=$I$130,AfC!AC6*1.05,AfC!AC6))) -> 31534.45 | I131: "Include on costs"
E132: Band 6 | F132: =IF($D$6=$I$128,AfC!AA7*1.2,IF($D$6=$I$129,AfC!AA7*1.15,IF($D$6=$I$130,AfC!AA7*1.05,AfC!AA7))) -> 32305.95 | G132: =IF($D$6=$I$128,AfC!AB7*1.2,IF($D$6=$J$129,AfC!AB7*1.15,IF($D$6=$I$130,AfC!AB7*1.05,AfC!AB7))) -> 34172.28 | H132: =IF($D$6=$I$128,AfC!AC7*1.2,IF($D$6=$K$129,AfC!AC7*1.15,IF($D$6=$I$130,AfC!AC7*1.05,AfC!AC7))) -> 39026.7
E133: Band 7 | F133: =IF($D$6=$I$128,AfC!AA8*1.2,IF($D$6=$I$129,AfC!AA8*1.15,IF($D$6=$I$130,AfC!AA8*1.05,AfC!AA8))) -> 40056.7 | G133: =IF($D$6=$I$128,AfC!AB8*1.2,IF($D$6=$J$129,AfC!AB8*1.15,IF($D$6=$I$130,AfC!AB8*1.05,AfC!AB8))) -> 42120.82 | H133: =IF($D$6=$I$128,AfC!AC8*1.2,IF($D$6=$K$129,AfC!AC8*1.15,IF($D$6=$I$130,AfC!AC8*1.05,AfC!AC8))) -> 45839.09
E134: Band 8A | F134: =IF($D$6=$I$128,AfC!AA9*1.2,IF($D$6=$I$129,AfC!AA9*1.15,IF($D$6=$I$130,AfC!AA9*1.05,AfC!AA9))) -> 47125.59 | G134: =IF($D$6=$I$128,AfC!AB9*1.2,IF($D$6=$J$129,AfC!AB9*1.15,IF($D$6=$I$130,AfC!AB9*1.05,AfC!AB9))) -> 47125.59 | H134: =IF($D$6=$I$128,AfC!AC9*1.2,IF($D$6=$K$129,AfC!AC9*1.15,IF($D$6=$I$130,AfC!AC9*1.05,AfC!AC9))) -> 53219.04
E135: Band 8B | F135: =IF($D$6=$I$128,AfC!AA10*1.2,IF($D$6=$I$129,AfC!AA10*1.15,IF($D$6=$I$130,AfC!AA10*1.05,AfC!AA10))) -> 54764.04 | G135: =IF($D$6=$I$128,AfC!AB10*1.2,IF($D$6=$J$129,AfC!AB10*1.15,IF($D$6=$I$130,AfC!AB10*1.05,AfC!AB10))) -> 54764.04 | H135: =IF($D$6=$I$128,AfC!AC10*1.2,IF($D$6=$K$129,AfC!AC10*1.15,IF($D$6=$I$130,AfC!AC10*1.05,AfC!AC10))) -> 63862.03
E136: Band 8C | F136: =IF($D$6=$I$128,AfC!AA11*1.2,IF($D$6=$I$129,AfC!AA11*1.15,IF($D$6=$I$130,AfC!AA11*1.05,AfC!AA11))) -> 65663.53 | G136: =IF($D$6=$I$128,AfC!AB11*1.2,IF($D$6=$J$129,AfC!AB11*1.15,IF($D$6=$I$130,AfC!AB11*1.05,AfC!AB11))) -> 65663.53 | H136: =IF($D$6=$I$128,AfC!AC11*1.2,IF($D$6=$K$129,AfC!AC11*1.15,IF($D$6=$I$130,AfC!AC11*1.05,AfC!AC11))) -> 75873.92
E137: Band 8D | F137: =IF($D$6=$I$128,AfC!AA12*1.2,IF($D$6=$I$129,AfC!AA12*1.15,IF($D$6=$I$130,AfC!AA12*1.05,AfC!AA12))) -> 78192.42 | G137: =IF($D$6=$I$128,AfC!AB12*1.2,IF($D$6=$J$129,AfC!AB12*1.15,IF($D$6=$I$130,AfC!AB12*1.05,AfC!AB12))) -> 78192.42 | H137: =IF($D$6=$I$128,AfC!AC12*1.2,IF($D$6=$K$129,AfC!AC12*1.15,IF($D$6=$I$130,AfC!AC12*1.05,AfC!AC12))) -> 90387.62
E138: Band 9 | F138: =IF($D$6=$I$128,AfC!AA13*1.2,IF($D$6=$I$129,AfC!AA13*1.15,IF($D$6=$I$130,AfC!AA13*1.05,AfC!AA13))) -> 93735.12 | G138: =IF($D$6=$I$128,AfC!AB13*1.2,IF($D$6=$J$129,AfC!AB13*1.15,IF($D$6=$I$130,AfC!AB13*1.05,AfC!AB13))) -> 93735.12 | H138: =IF($D$6=$I$128,AfC!AC13*1.2,IF($D$6=$K$129,AfC!AC13*1.15,IF($D$6=$I$130,AfC!AC13*1.05,AfC!AC13))) -> 108074.81
E140: Band | F140: Bottom pay point | G140: Middle pay point | H140: Top pay point
E141: Band 1 | F141: =IF($D$10=$I$131,F127*1.3,F127) -> 18546 | G141: 18546 | H141: 18546
E142: Band 2 | F142: 18546 | G142: 19918 | H142: 19918
E143: Band 3 | F143: 20330 | G143: 21777.26 | H143: 21777.26
E144: Band 4 | F144: 22548.76 | G144: 24881.71 | H144: 24881.71
E145: Band 5 | F145: 25655.21 | G145: 29657.275 | H145: 31534.45
E146: Band 6 | F146: 32305.95 | G146: 34172.28 | H146: 39026.7
E147: Band 7 | F147: 40056.7 | G147: 42120.82 | H147: 45839.09
E148: Band 8A | F148: 47125.59 | G148: 47125.59 | H148: 53219.04
E149: Band 8B | F149: 54764.04 | G149: 54764.04 | H149: 63862.03
E150: Band 8C | F150: 65663.53 | G150: 65663.53 | H150: 75873.92
E151: Band 8D | F151: 78192.42 | G151: 78192.42 | H151: 90387.62
E152: Band 9 | F152: 93735.12 | G152: 93735.12 | H152: 108074.81

Sheet Healthcare Science
B1: Potential Cost Savings from improvement to retention due to flexible working or other initiatives
B3: Healthcare Science
B5: Calculated Field | D5: Agenda for Change costings
B6: Prepopulated Cell | D6: London (inner)
B7: Enter Data in Cell
B9: Organisational investment in the retention programm (EG flexible working team cost) (Insert any organisation costs invested in this work programme, this will be deducted from potential savings to give actual in year saving) | D9: Top pay point
B10: 0 | D10: "Include on costs"
B12: Workforce data - headcounts and leavers
B13: Headcount (Insert) | C13: X | D13: Total number of staff leaving the organisation (Insert) | E13: >>>>>>> | F13: Average turnover rate %
C15: Band 5 | E15: >>>>>>> | F15: =IFERROR(D15/B15,0) -> 0
C17: Band 6 | E17: >>>>>>> | F17: =IFERROR(D17/B17,0) -> 0
C19: Band 7 | E19: >>>>>>> | F19: =IFERROR(D19/B19,0) -> 0
C21: Band 8a | E21: >>>>>>> | F21: =IFERROR(D21/B21,0) -> 0
C23: Band 8b | E23: >>>>>>> | F23: =IFERROR(D23/B23,0) -> 0
C25: Band 8c | E25: >>>>>>> | F25: =IFERROR(D25/B25,0) -> 0
C27: Band 8d | E27: >>>>>>> | F27: =IFERROR(D27/B27,0) -> 0
C29: Band 9 | E29: >>>>>>> | F29: =IFERROR(D29/B29,0) -> 0
B31: =SUM(B15:B29) -> 0 | C31: Total | D31: =SUM(D15:D29) -> 0 | E31: >>>>>>> | F31: =IFERROR(D31/B31,0) -> 0
B35: Cash releasing costs
B36: Bank and Agency cost -12 weeks - per WTE (Insert) | D36: Average budget for substantive post -12 weeks - per WTE | E36: X | F36: Total number of staff leaving the organisation | H36: Additional bank and agency costs of current total turnover | I36: Non-cash releasing costs of current total turnover
C38: Band 5 | D38: =(IF($D$9=$G$145,G150,IF($D$9=$F$145,F150,IF($D$9=$H$145,H150)))/52)*12 -> 11352.402 | F38: =D15 -> 0 | G38: >>>>>>> | H38: =IF(B38<D38,0,(((B38/12)*14)-((D38/12)*14))*F38) -> 0 | I38: =(B$63+D$63+B$67+D$67)*F38 -> 0
C40: Band 6 | D40: =(IF($D$9=$G$145,G151,IF($D$9=$F$145,F151,IF($D$9=$H$145,H151)))/52)*12 -> 14049.612 | F40: =D17 -> 0 | G40: >>>>>>> | H40: =IF(B40<D40,0,(((B40/12)*14)-((D40/12)*14))*F40) -> 0 | I40: =(B$63+D$63+B$67+D$67)*F40 -> 0
C42: Band 7 | D42: =(IF($D$9=$G$145,G152,IF($D$9=$F$145,F152,IF($D$9=$H$145,H152)))/52)*12 -> 16502.0724 | F42: =D19 -> 0 | G42: >>>>>>> | H42: =IF(B42<D42,0,(((B42/12)*14)-((D42/12)*14))*F42) -> 0 | I42: =(B$63+D$63+B$67+D$67)*F42 -> 0
C44: Band 8a | D44: =(IF($D$9=$G$145,G153,IF($D$9=$F$145,F153,IF($D$9=$H$145,H153)))/52)*12 -> 19158.8544 | F44: =D21 -> 0 | G44: >>>>>>> | H44: =IF(B44<D44,0,(((B44/12)*14)-((D44/12)*14))*F44) -> 0 | I44: =(B$63+D$63+B$67+D$67)*F44 -> 0
C46: Band 8b | D46: =(IF($D$9=$G$145,G154,IF($D$9=$F$145,F154,IF($D$9=$H$145,H154)))/52)*12 -> 22990.3308 | F46: =D23 -> 0 | G46: >>>>>>> | H46: =IF(B46<D46,0,(((B46/12)*14)-((D46/12)*14))*F46) -> 0 | I46: =(B$63+D$63+B$67+D$67)*F46 -> 0
C48: Band 8c | D48: =(IF($D$9=$G$145,G155,IF($D$9=$F$145,F155,IF($D$9=$H$145,H155)))/52)*12 -> 27314.6112 | F48: =D25 -> 0 | G48: >>>>>>> | H48: =IF(B48<D48,0,(((B48/12)*14)-((D48/12)*14))*F48) -> 0 | I48: =(B$63+D$63+B$67+D$67)*F48 -> 0
C50: Band 8d | D50: =(IF($D$9=$G$145,G156,IF($D$9=$F$145,F156,IF($D$9=$H$145,H156)))/52)*12 -> 32539.5432 | F50: =D27 -> 0 | G50: >>>>>>> | H50: =IF(B50<D50,0,(((B50/12)*14)-((D50/12)*14))*F50) -> 0 | I50: =(B$63+D$63+B$67+D$67)*F50 -> 0
C52: Band 9 | D52: =(IF($D$9=$G$145,G157,IF($D$9=$F$145,F157,IF($D$9=$H$145,H157)))/52)*12 -> 38906.9316 | F52: =D29 -> 0 | G52: >>>>>>> | H52: =IF(B52<D52,0,(((B52/12)*14)-((D52/12)*14))*F52) -> 0 | I52: =(B$63+D$63+B$67+D$67)*F52 -> 0
B54: =IFERROR((((B38*F38)+(B40*F40)+(B42*F42)+(B44*F44)+(B46*F46)+(B48*F48)+(B50*F50)+(B52*F52))/F54),) -> 0 | C54: Total | D54: =IFERROR((((D38*F38)+(D40*F40)+(D42*F42)+(D44*F44)+(D46*F46)+(D48*F48)+(D50*F50)+(D52*F52))/F54),0) -> 0 | F54: =SUM(F38:F52) -> 0 | G54: >>>>>>> | H54: =SUM(H38:H52) -> 0 | I54: =SUM(I38:I52) -> 0
B56: Bank and Agency cost for handover -2 weeks - per WTE | D56: Average budget for substantive post -2 weeks - per WTE
B58: =(B54/12)*2 -> 0 | C58: - | D58: =(D54/12)*2 -> 0
B60: Non-cash releasing costs
B61: Administration of the resignation - per leaver (Insert) | D61: Recruitment and selection costs - per recruit (Insert)
C63: +
B65: Induction training for the new employee - per employee (Insert) | D65: Others costs- leaver / new recruit (Insert)
C67: +
B71: Costs saving-Prediction | I71: =ROUND(#REF!/1000000,2) -> 
B74: Target reduction in turnover | C74: 0 | D74: >>>Change/Insert the turnover reduction rate
B75: Cash releasing saving | C75: =IF(C74>0,IF(H54<1,0,H54-H109),0) -> 0
B76: Non-cash releasing saving | C76: =I54-I109 -> 0
B77: Total cash & non-cash releasing savings | C77: =C75+C76 -> 0
B78: Total saving after organisational investment is included | C78: =C77-B10 -> 0
B82: Number of taff leave the organisation
B83: Average staff turnovere rate for all reasons in 2020/21 | C83: X | D83: Headcount of Organisation ↓↓↓ (Insert) | E83: >>>>>>>
B84: =F31-C74 -> 0 | C84: X | D84: =B31 -> 0 | E84: >>>>>>> | F84: =B84*D84 -> 0
F88: =B15*$B$84 -> 0 | G88: =F88/B15 ->  | H88: =(((B38/12)*14)-((D38/12)*14))*F88 -> 0 | I88: =(B$63+D$63+B$67+D$67)*F88 -> 0
F90: =B17*$B$84 -> 0 | G90: =F90/B17 ->  | H90: =(((B40/12)*14)-((D40/12)*14))*F90 -> 0 | I90: =(B$63+D$63+B$67+D$67)*F90 -> 0
F92: =B19*$B$84 -> 0 | G92: =F92/B19 ->  | H92: =(((B42/12)*14)-((D42/12)*14))*F92 -> 0 | I92: =(B$63+D$63+B$67+D$67)*F92 -> 0
F94: =B21*$B$84 -> 0 | G94: =F94/B21 ->  | H94: =(((B44/12)*14)-((D44/12)*14))*F94 -> 0 | I94: =(B$63+D$63+B$67+D$67)*F94 -> 0
F96: =B23*$B$84 -> 0 | G96: =F96/B23 ->  | H96: =(((B46/12)*14)-((D46/12)*14))*F96 -> 0 | I96: =(B$63+D$63+B$67+D$67)*F96 -> 0
F98: =B25*$B$84 -> 0 | G98: =F98/B25 ->  | H98: =(((B48/12)*14)-((D48/12)*14))*F98 -> 0 | I98: =(B$63+D$63+B$67+D$67)*F98 -> 0
F100: =B27*$B$84 -> 0 | G100: =F100/B27 ->  | H100: =(((B50/12)*14)-((D50/12)*14))*F100 -> 0 | I100: =(B$63+D$63+B$67+D$67)*F100 -> 0
F102: =B29*$B$84 -> 0 | G102: =F102/B29 ->  | H102: =(((B52/12)*14)-((D52/12)*14))*F102 -> 0 | I102: =(B$63+D$63+B$67+D$67)*F102 -> 0
F104: =B31*$B$84 -> 0 | G104: =F104/B31 ->  | H104: =SUM(H88:H102) -> 0 | I104: =SUM(I88:I102) -> 0
B107: Avg cost of temporary (Nursing, Midwifery & Health Visiting) staff replacement
B108: Bank and Agency cost -12 weeks (Per staff-Insert)↓↓↓ | D108: Average budget for substantive post | E108: X | F108: Total Number of ( Nursing, Midwifery & Health Visiting) staff leaving the organisation | G108: >>>>>>> | H108: Cash releasing (Bank and Agency costs) | I108: Non-cash releasing
B109: =B54 -> 0 | C109: + | D109: =D54 -> 0 | E109: X | F109: =F84 -> 0 | G109: >>>>>>> | H109: =H104 -> 0 | I109: =I104 -> 0
B110: Bank and Agency cost for handover -2 weeks (Per staff-Insert)↓↓↓ | D110: Average budget for substantive post
B111: =B58 -> 0 | D111: =D58 -> 0
B112: Administration of the resignation (Per staff-Insert)↓↓↓ | D112: Recruitment and selection costs (Per staff-Insert)↓↓↓
B113: =B63 -> 0 | C113: + | D113: =D63 -> 0
B114: Induction training for the new employee (Per staff-Insert)↓↓↓ | D114: Other Costs (cost of initiative/ investment) (Per staff-Insert)↓↓↓
B115: =B67 -> 0 | C115: + | D115: =D67 -> 0
E131: Band | F131: Bottom pay point | G131: Middle pay point | H131: Top pay point
E132: Band 1 | F132: =IF($D$6=$I$133,AfC!AA2*1.2,IF($D$6=$I$134,AfC!AA2*1.15,IF($D$6=$I$135,AfC!AA2*1.05,AfC!AA2))) -> 22255.2 | G132: =IF($D$6=$I$133,AfC!AB2*1.2,IF($D$6=$J$134,AfC!AB2*1.15,IF($D$6=$I$135,AfC!AB2*1.05,AfC!AB2))) -> 22255.2 | H132: =IF($D$6=$I$133,AfC!AC2*1.2,IF($D$6=$K$134,AfC!AC2*1.15,IF($D$6=$I$135,AfC!AC2*1.05,AfC!AC2))) -> 22255.2 | I132: Basic Pay
E133: Band 2 | F133: =IF($D$6=$I$133,AfC!AA3*1.2,IF($D$6=$I$134,AfC!AA3*1.15,IF($D$6=$I$135,AfC!AA3*1.05,AfC!AA3))) -> 22255.2 | G133: =IF($D$6=$I$133,AfC!AB3*1.2,IF($D$6=$J$134,AfC!AB3*1.15,IF($D$6=$I$135,AfC!AB3*1.05,AfC!AB3))) -> 23901.6 | H133: =IF($D$6=$I$133,AfC!AC3*1.2,IF($D$6=$K$134,AfC!AC3*1.15,IF($D$6=$I$135,AfC!AC3*1.05,AfC!AC3))) -> 23901.6 | I133: London (inner)
E134: Band 3 | F134: =IF($D$6=$I$133,AfC!AA4*1.2,IF($D$6=$I$134,AfC!AA4*1.15,IF($D$6=$I$135,AfC!AA4*1.05,AfC!AA4))) -> 24396 | G134: =IF($D$6=$I$133,AfC!AB4*1.2,IF($D$6=$J$134,AfC!AB4*1.15,IF($D$6=$I$135,AfC!AB4*1.05,AfC!AB4))) -> 26132.712 | H134: =IF($D$6=$I$133,AfC!AC4*1.2,IF($D$6=$K$134,AfC!AC4*1.15,IF($D$6=$I$135,AfC!AC4*1.05,AfC!AC4))) -> 26132.712 | I134: London (outer)
E135: Band 4 | F135: =IF($D$6=$I$133,AfC!AA5*1.2,IF($D$6=$I$134,AfC!AA5*1.15,IF($D$6=$I$135,AfC!AA5*1.05,AfC!AA5))) -> 27058.512 | G135: =IF($D$6=$I$133,AfC!AB5*1.2,IF($D$6=$J$134,AfC!AB5*1.15,IF($D$6=$I$135,AfC!AB5*1.05,AfC!AB5))) -> 29858.052 | H135: =IF($D$6=$I$133,AfC!AC5*1.2,IF($D$6=$K$134,AfC!AC5*1.15,IF($D$6=$I$135,AfC!AC5*1.05,AfC!AC5))) -> 29858.052 | I135: London (fringe)
E136: Band 5 | F136: =IF($D$6=$I$133,AfC!AA6*1.2,IF($D$6=$I$134,AfC!AA6*1.15,IF($D$6=$I$135,AfC!AA6*1.05,AfC!AA6))) -> 30786.252 | G136: =IF($D$6=$I$133,AfC!AB6*1.2,IF($D$6=$J$134,AfC!AB6*1.15,IF($D$6=$I$135,AfC!AB6*1.05,AfC!AB6))) -> 35588.73 | H136: =IF($D$6=$I$133,AfC!AC6*1.2,IF($D$6=$K$134,AfC!AC6*1.15,IF($D$6=$I$135,AfC!AC6*1.05,AfC!AC6))) -> 37841.34 | I136: "Include on costs"
E137: Band 6 | F137: =IF($D$6=$I$133,AfC!AA7*1.2,IF($D$6=$I$134,AfC!AA7*1.15,IF($D$6=$I$135,AfC!AA7*1.05,AfC!AA7))) -> 38767.14 | G137: =IF($D$6=$I$133,AfC!AB7*1.2,IF($D$6=$J$134,AfC!AB7*1.15,IF($D$6=$I$135,AfC!AB7*1.05,AfC!AB7))) -> 41006.736 | H137: =IF($D$6=$I$133,AfC!AC7*1.2,IF($D$6=$K$134,AfC!AC7*1.15,IF($D$6=$I$135,AfC!AC7*1.05,AfC!AC7))) -> 46832.04
E138: Band 7 | F138: =IF($D$6=$I$133,AfC!AA8*1.2,IF($D$6=$I$134,AfC!AA8*1.15,IF($D$6=$I$135,AfC!AA8*1.05,AfC!AA8))) -> 48068.04 | G138: =IF($D$6=$I$133,AfC!AB8*1.2,IF($D$6=$J$134,AfC!AB8*1.15,IF($D$6=$I$135,AfC!AB8*1.05,AfC!AB8))) -> 50544.984 | H138: =IF($D$6=$I$133,AfC!AC8*1.2,IF($D$6=$K$134,AfC!AC8*1.15,IF($D$6=$I$135,AfC!AC8*1.05,AfC!AC8))) -> 55006.908
E139: Band 8A | F139: =IF($D$6=$I$133,AfC!AA9*1.2,IF($D$6=$I$134,AfC!AA9*1.15,IF($D$6=$I$135,AfC!AA9*1.05,AfC!AA9))) -> 56550.708 | G139: =IF($D$6=$I$133,AfC!AB9*1.2,IF($D$6=$J$134,AfC!AB9*1.15,IF($D$6=$I$135,AfC!AB9*1.05,AfC!AB9))) -> 56550.708 | H139: =IF($D$6=$I$133,AfC!AC9*1.2,IF($D$6=$K$134,AfC!AC9*1.15,IF($D$6=$I$135,AfC!AC9*1.05,AfC!AC9))) -> 63862.848
E140: Band 8B | F140: =IF($D$6=$I$133,AfC!AA10*1.2,IF($D$6=$I$134,AfC!AA10*1.15,IF($D$6=$I$135,AfC!AA10*1.05,AfC!AA10))) -> 65716.848 | G140: =IF($D$6=$I$133,AfC!AB10*1.2,IF($D$6=$J$134,AfC!AB10*1.15,IF($D$6=$I$135,AfC!AB10*1.05,AfC!AB10))) -> 65716.848 | H140: =IF($D$6=$I$133,AfC!AC10*1.2,IF($D$6=$K$134,AfC!AC10*1.15,IF($D$6=$I$135,AfC!AC10*1.05,AfC!AC10))) -> 76634.436
E141: Band 8C | F141: =IF($D$6=$I$133,AfC!AA11*1.2,IF($D$6=$I$134,AfC!AA11*1.15,IF($D$6=$I$135,AfC!AA11*1.05,AfC!AA11))) -> 78796.236 | G141: =IF($D$6=$I$133,AfC!AB11*1.2,IF($D$6=$J$134,AfC!AB11*1.15,IF($D$6=$I$135,AfC!AB11*1.05,AfC!AB11))) -> 78796.236 | H141: =IF($D$6=$I$133,AfC!AC11*1.2,IF($D$6=$K$134,AfC!AC11*1.15,IF($D$6=$I$135,AfC!AC11*1.05,AfC!AC11))) -> 91048.704
E142: Band 8D | F142: =IF($D$6=$I$133,AfC!AA12*1.2,IF($D$6=$I$134,AfC!AA12*1.15,IF($D$6=$I$135,AfC!AA12*1.05,AfC!AA12))) -> 93830.904 | G142: =IF($D$6=$I$133,AfC!AB12*1.2,IF($D$6=$J$134,AfC!AB12*1.15,IF($D$6=$I$135,AfC!AB12*1.05,AfC!AB12))) -> 93830.904 | H142: =IF($D$6=$I$133,AfC!AC12*1.2,IF($D$6=$K$134,AfC!AC12*1.15,IF($D$6=$I$135,AfC!AC12*1.05,AfC!AC12))) -> 108465.144
E143: Band 9 | F143: =IF($D$6=$I$133,AfC!AA13*1.2,IF($D$6=$I$134,AfC!AA13*1.15,IF($D$6=$I$135,AfC!AA13*1.05,AfC!AA13))) -> 112482.144 | G143: =IF($D$6=$I$133,AfC!AB13*1.2,IF($D$6=$J$134,AfC!AB13*1.15,IF($D$6=$I$135,AfC!AB13*1.05,AfC!AB13))) -> 112482.144 | H143: =IF($D$6=$I$133,AfC!AC13*1.2,IF($D$6=$K$134,AfC!AC13*1.15,IF($D$6=$I$135,AfC!AC13*1.05,AfC!AC13))) -> 129689.772
E145: Band | F145: Bottom pay point | G145: Middle pay point | H145: Top pay point
E146: Band 1 | F146: =IF($D$10=$I$136,F132*1.3,F132) -> 28931.76 | G146: 28931.76 | H146: 28931.76
E147: Band 2 | F147: 28931.76 | G147: 31072.08 | H147: 31072.08
E148: Band 3 | F148: 31714.8 | G148: 33972.5256 | H148: 33972.5256
E149: Band 4 | F149: 35176.0656 | G149: 38815.4676 | H149: 38815.4676
E150: Band 5 | F150: 40022.1276 | G150: 46265.349 | H150: 49193.742
E151: Band 6 | F151: 50397.282 | G151: 53308.7568 | H151: 60881.652
E152: Band 7 | F152: 62488.452 | G152: 65708.4792 | H152: 71508.9804
E153: Band 8A | F153: 73515.9204 | G153: 73515.9204 | H153: 83021.7024
E154: Band 8B | F154: 85431.9024 | G154: 85431.9024 | H154: 99624.7668
E155: Band 8C | F155: 102435.1068 | G155: 102435.1068 | H155: 118363.3152
E156: Band 8D | F156: 121980.1752 | G156: 121980.1752 | H156: 141004.6872
E157: Band 9 | F157: 146226.7872 | G157: 146226.7872 | H157: 168596.7036

Sheet Others
B1: Potential Cost Savings from improvement to retention due to flexible working or other initiatives
B3: Others
B5: Calculated Field | D5: Agenda for Change costings
B6: Prepopulated Cell | D6: London (inner)
B7: Enter Data in Cell
B9: Organisational investment in the retention programm (EG flexible working team cost) (Insert any organisation costs invested in this work programme, this will be deducted from potential savings to give actual in year saving) | D9: Top pay point
B10: 0 | D10: "Include on costs"
B12: Workforce data - headcounts and leavers
B13: Headcount (Insert) | C13: X | D13: Total number of staff leaving the organisation (Insert) | E13: >>>>>>> | F13: Average turnover rate %
C15: Band 1 | E15: >>>>>>> | F15: =IFERROR(D15/B15,0) -> 0
C17: Band 2 | E17: >>>>>>> | F17: =IFERROR(D17/B17,0) -> 0
C19: Band 3 | E19: >>>>>>> | F19: =IFERROR(D19/B19,0) -> 0
C21: Band 4 | E21: >>>>>>> | F21: =IFERROR(D21/B21,0) -> 0
C23: Band 5 | E23: >>>>>>> | F23: =IFERROR(D23/B23,0) -> 0
C25: Band 6 | E25: >>>>>>> | F25: =IFERROR(D25/B25,0) -> 0
C27: Band 7 | E27: >>>>>>> | F27: =IFERROR(D27/B27,0) -> 0
C29: Band 8a | E29: >>>>>>> | F29: =IFERROR(D29/B29,0) -> 0
C31: Band 8b | E31: >>>>>>> | F31: =IFERROR(D31/B31,0) -> 0
C33: Band 8c | E33: >>>>>>> | F33: =IFERROR(D33/B33,0) -> 0
C35: Band 8d | E35: >>>>>>> | F35: =IFERROR(D35/B35,0) -> 0
C37: Band 9 | E37: >>>>>>> | F37: =IFERROR(D37/B37,0) -> 0
B39: =SUM(B15:B37) -> 0 | C39: Total | D39: =SUM(D15:D37) -> 0 | E39: >>>>>>> | F39: =IFERROR(D39/B39,0) -> 0
B43: Cash releasing costs
B44: Bank and Agency cost -12 weeks - per WTE (Insert) | D44: Average budget for substantive post -12 weeks - per WTE | E44: X | F44: Total number of staff leaving the organisation | H44: Additional bank and agency costs of current total turnover | I44: Non-cash releasing costs of current total turnover | T44: =H44 -> Additional bank and agency costs of current total turnover | U44: =I44 -> Non-cash releasing costs of current total turnover
S45: =C46 -> Band 1 | T45: =H46 -> 0 | U45: =I46 -> 0
C46: Band 1 | D46: =(IF($D$9=$G$174,G175,IF($D$9=$F$174,F175,IF($D$9=$H$174,H175)))/52)*12 -> 6676.56 | F46: =D15 -> 0 | G46: >>>>>>> | H46: =IF(B46<D46,0,(((B46/12)*14)-((D46/12)*14))*F46) -> 0 | I46: =(B$79+D$79+B$83+D$83)*F46 -> 0 | S46: =C48 -> Band 2 | T46: =H48 -> 0 | U46: =I48 -> 0
S47: =C50 -> Band 3 | T47: =H50 -> 0 | U47: =I50 -> 0
C48: Band 2 | D48: =(IF($D$9=$G$174,G176,IF($D$9=$F$174,F176,IF($D$9=$H$174,H176)))/52)*12 -> 7170.48 | F48: =D17 -> 0 | G48: >>>>>>> | H48: =IF(B48<D48,0,(((B48/12)*14)-((D48/12)*14))*F48) -> 0 | I48: =(B$79+D$79+B$83+D$83)*F48 -> 0 | S48: =C52 -> Band 4 | T48: =H52 -> 0 | U48: =I52 -> 0
S49: =C54 -> Band 5 | T49: =H54 -> 0 | U49: =I54 -> 0
C50: Band 3 | D50: =(IF($D$9=$G$174,G177,IF($D$9=$F$174,F177,IF($D$9=$H$174,H177)))/52)*12 -> 7839.8136 | F50: =D19 -> 0 | G50: >>>>>>> | H50: =IF(B50<D50,0,(((B50/12)*14)-((D50/12)*14))*F50) -> 0 | I50: =(B$79+D$79+B$83+D$83)*F50 -> 0 | S50: =C56 -> Band 6 | T50: =H56 -> 0 | U50: =I56 -> 0
S51: =C58 -> Band 7 | T51: =H58 -> 0 | U51: =I58 -> 0
C52: Band 4 | D52: =(IF($D$9=$G$174,G178,IF($D$9=$F$174,F178,IF($D$9=$H$174,H178)))/52)*12 -> 8957.4156 | F52: =D21 -> 0 | G52: >>>>>>> | H52: =IF(B52<D52,0,(((B52/12)*14)-((D52/12)*14))*F52) -> 0 | I52: =(B$79+D$79+B$83+D$83)*F52 -> 0 | S52: =C60 -> Band 8a | T52: =H60 -> 0 | U52: =I60 -> 0
S53: =C62 -> Band 8b | T53: =H62 -> 0 | U53: =I62 -> 0
C54: Band 5 | D54: =(IF($D$9=$G$174,G179,IF($D$9=$F$174,F179,IF($D$9=$H$174,H179)))/52)*12 -> 11352.402 | F54: =D23 -> 0 | G54: >>>>>>> | H54: =IF(B54<D54,0,(((B54/12)*14)-((D54/12)*14))*F54) -> 0 | I54: =(B$79+D$79+B$83+D$83)*F54 -> 0 | S54: =C64 -> Band 8c | T54: =H64 -> 0 | U54: =I64 -> 0
S55: =C66 -> Band 8d | T55: =H66 -> 0 | U55: =I66 -> 0
C56: Band 6 | D56: =(IF($D$9=$G$174,G180,IF($D$9=$F$174,F180,IF($D$9=$H$174,H180)))/52)*12 -> 14049.612 | F56: =D25 -> 0 | G56: >>>>>>> | H56: =IF(B56<D56,0,(((B56/12)*14)-((D56/12)*14))*F56) -> 0 | I56: =(B$79+D$79+B$83+D$83)*F56 -> 0 | S56: =C68 -> Band 9 | T56: =H68 -> 0 | U56: =I68 -> 0
C58: Band 7 | D58: =(IF($D$9=$G$174,G181,IF($D$9=$F$174,F181,IF($D$9=$H$174,H181)))/52)*12 -> 16502.0724 | F58: =D27 -> 0 | G58: >>>>>>> | H58: =IF(B58<D58,0,(((B58/12)*14)-((D58/12)*14))*F58) -> 0 | I58: =(B$79+D$79+B$83+D$83)*F58 -> 0
C60: Band 8a | D60: =(IF($D$9=$G$174,G182,IF($D$9=$F$174,F182,IF($D$9=$H$174,H182)))/52)*12 -> 19158.8544 | F60: =D29 -> 0 | G60: >>>>>>> | H60: =IF(B60<D60,0,(((B60/12)*14)-((D60/12)*14))*F60) -> 0 | I60: =(B$79+D$79+B$83+D$83)*F60 -> 0
C62: Band 8b | D62: =(IF($D$9=$G$174,G183,IF($D$9=$F$174,F183,IF($D$9=$H$174,H183)))/52)*12 -> 22990.3308 | F62: =D31 -> 0 | G62: >>>>>>> | H62: =IF(B62<D62,0,(((B62/12)*14)-((D62/12)*14))*F62) -> 0 | I62: =(B$79+D$79+B$83+D$83)*F62 -> 0
C64: Band 8c | D64: =(IF($D$9=$G$174,G184,IF($D$9=$F$174,F184,IF($D$9=$H$174,H184)))/52)*12 -> 27314.6112 | F64: =D33 -> 0 | G64: >>>>>>> | H64: =IF(B64<D64,0,(((B64/12)*14)-((D64/12)*14))*F64) -> 0 | I64: =(B$79+D$79+B$83+D$83)*F64 -> 0
C66: Band 8d | D66: =(IF($D$9=$G$174,G185,IF($D$9=$F$174,F185,IF($D$9=$H$174,H185)))/52)*12 -> 32539.5432 | F66: =D35 -> 0 | G66: >>>>>>> | H66: =IF(B66<D66,0,(((B66/12)*14)-((D66/12)*14))*F66) -> 0 | I66: =(B$79+D$79+B$83+D$83)*F66 -> 0
C68: Band 9 | D68: =(IF($D$9=$G$174,G186,IF($D$9=$F$174,F186,IF($D$9=$H$174,H186)))/52)*12 -> 38906.9316 | F68: =D37 -> 0 | G68: >>>>>>> | H68: =IF(B68<D68,0,(((B68/12)*14)-((D68/12)*14))*F68) -> 0 | I68: =(B$79+D$79+B$83+D$83)*F68 -> 0
B70: =IFERROR((((B46*F46)+(B48*F48)+(B50*F50)+(B52*F52)+(B54*F54)+(B56*F56)+(B58*F58)+(B60*F60)+(B62*F62)+(B64*F64)+(B66*F66)+(B68*F68))/F70),0) -> 0 | C70: Total | D70: =IFERROR((((D46*F46)+(D48*F48)+(D50*F50)+(D52*F52)+(D54*F54)+(D56*F56)+(D58*F58)+(D60*F60)+(D62*F62)+(D64*F64)+(D66*F66)+(D68*F68))/F70),0) -> 0 | F70: =SUM(F46:F68) -> 0 | G70: >>>>>>> | H70: =SUM(H46:H68) -> 0 | I70: =SUM(I46:I68) -> 0
B72: Bank and Agency cost for handover -2 weeks - per WTE | D72: Average budget for substantive post -2 weeks - per WTE
B74: =(B70/12)*2 -> 0 | C74: - | D74: =(D70/12)*2 -> 0
B76: Non-cash releasing costs
B77: Administration of the resignation - per leaver (Insert) | D77: Recruitment and selection costs - per recruit (Insert)
C79: +
B81: Induction training for the new employee - per employee (Insert) | D81: Others costs- leaver / new recruit (Insert)
C83: +
B87: Costs saving-Prediction | I87: =ROUND(#REF!/1000000,2) -> 
B90: Target reduction in turnover | C90: 0 | D90: >>>Change/Insert the turnover reduction rate
B91: Cash releasing saving | C91: =IF(C90>0,IF(H70<1,0,H70-H138),0) -> 0
B92: Non-cash releasing saving | C92: =I70-I138 -> 0
B93: Total cash & non-cash releasing savings | C93: =C91+C92 -> 0
B94: Total saving after organisational investment is included | C94: =C93-B10 -> 0
B98: Number of taff leave the organisation
B99: Average staff turnovere rate for all reasons in 2020/21 | C99: X | D99: Headcount of Organisation ↓↓↓ (Insert) | E99: >>>>>>>
B100: =F39-C90 -> 0 | C100: X | D100: =B39 -> 0 | E100: >>>>>>> | F100: =B100*D100 -> 0
E109: =C15 -> Band 1 | F109: =B15*$B$100 -> 0 | G109: =F109/B15 ->  | H109: =(((B46/12)*14)-((D46/12)*14))*F109 -> 0 | I109: =(B$79+D$79+B$83+D$83)*F109 -> 0
E111: =C17 -> Band 2 | F111: =B17*$B$100 -> 0 | G111: =F111/B17 ->  | H111: =(((B48/12)*14)-((D48/12)*14))*F111 -> 0 | I111: =(B$79+D$79+B$83+D$83)*F111 -> 0
E113: =C19 -> Band 3 | F113: =B19*$B$100 -> 0 | G113: =F113/B19 ->  | H113: =(((B50/12)*14)-((D50/12)*14))*F113 -> 0 | I113: =(B$79+D$79+B$83+D$83)*F113 -> 0
E115: =C21 -> Band 4 | F115: =B21*$B$100 -> 0 | G115: =F115/B21 ->  | H115: =(((B52/12)*14)-((D52/12)*14))*F115 -> 0 | I115: =(B$79+D$79+B$83+D$83)*F115 -> 0
E117: =C23 -> Band 5 | F117: =B23*$B$100 -> 0 | G117: =F117/B23 ->  | H117: =(((B54/12)*14)-((D54/12)*14))*F117 -> 0 | I117: =(B$79+D$79+B$83+D$83)*F117 -> 0
E119: =C25 -> Band 6 | F119: =B25*$B$100 -> 0 | G119: =F119/B25 ->  | H119: =(((B56/12)*14)-((D56/12)*14))*F119 -> 0 | I119: =(B$79+D$79+B$83+D$83)*F119 -> 0
E121: =C27 -> Band 7 | F121: =B27*$B$100 -> 0 | G121: =F121/B27 ->  | H121: =(((B58/12)*14)-((D58/12)*14))*F121 -> 0 | I121: =(B$79+D$79+B$83+D$83)*F121 -> 0
E123: =C29 -> Band 8a | F123: =B29*$B$100 -> 0 | G123: =F123/B29 ->  | H123: =(((B60/12)*14)-((D60/12)*14))*F123 -> 0 | I123: =(B$79+D$79+B$83+D$83)*F123 -> 0
E125: =C31 -> Band 8b | F125: =B31*$B$100 -> 0 | G125: =F125/B31 ->  | H125: =(((B62/12)*14)-((D62/12)*14))*F125 -> 0 | I125: =(B$79+D$79+B$83+D$83)*F125 -> 0
E127: =C33 -> Band 8c | F127: =B33*$B$100 -> 0 | G127: =F127/B33 ->  | H127: =(((B64/12)*14)-((D64/12)*14))*F127 -> 0 | I127: =(B$79+D$79+B$83+D$83)*F127 -> 0
E129: =C35 -> Band 8d | F129: =B35*$B$100 -> 0 | G129: =F129/B35 ->  | H129: =(((B66/12)*14)-((D66/12)*14))*F129 -> 0 | I129: =(B$79+D$79+B$83+D$83)*F129 -> 0
E131: =C37 -> Band 9 | F131: =B37*$B$100 -> 0 | G131: =F131/B37 ->  | H131: =(((B68/12)*14)-((D68/12)*14))*F131 -> 0 | I131: =(B$79+D$79+B$83+D$83)*F131 -> 0
F133: =B39*$B$100 -> 0 | G133: =F133/B39 ->  | H133: =SUM(H109:H131) -> 0 | I133: =SUM(I109:I131) -> 0
B136: Avg cost of temporary (Nursing, Midwifery & Health Visiting) staff replacement
B137: Bank and Agency cost -12 weeks (Per staff-Insert)↓↓↓ | D137: Average budget for substantive post | E137: X | F137: Total Number of ( Nursing, Midwifery & Health Visiting) staff leaving the organisation | G137: >>>>>>> | H137: Cash releasing (Bank and Agency costs) | I137: Non-cash releasing
B138: =B70 -> 0 | C138: + | D138: =D70 -> 0 | E138: X | F138: =F100 -> 0 | G138: >>>>>>> | H138: =H133 -> 0 | I138: =I133 -> 0
B139: Bank and Agency cost for handover -2 weeks (Per staff-Insert)↓↓↓ | D139: Average budget for substantive post
B140: =B74 -> 0 | D140: =D74 -> 0
B141: Administration of the resignation (Per staff-Insert)↓↓↓ | D141: Recruitment and selection costs (Per staff-Insert)↓↓↓
B142: =B79 -> 0 | C142: + | D142: =D79 -> 0
B143: Induction training for the new employee (Per staff-Insert)↓↓↓ | D143: Other Costs (cost of initiative/ investment) (Per staff-Insert)↓↓↓
B144: =B83 -> 0 | C144: + | D144: =D83 -> 0
E160: Band | F160: Bottom pay point | G160: Middle pay point | H160: Top pay point
E161: Band 1 | F161: =IF($D$6=$I$162,AfC!AA2*1.2,IF($D$6=$I$163,AfC!AA2*1.15,IF($D$6=$I$164,AfC!AA2*1.05,AfC!AA2))) -> 22255.2 | G161: =IF($D$6=$I$162,AfC!AB2*1.2,IF($D$6=$J$163,AfC!AB2*1.15,IF($D$6=$I$164,AfC!AB2*1.05,AfC!AB2))) -> 22255.2 | H161: =IF($D$6=$I$162,AfC!AC2*1.2,IF($D$6=$K$163,AfC!AC2*1.15,IF($D$6=$I$164,AfC!AC2*1.05,AfC!AC2))) -> 22255.2 | I161: Basic Pay
E162: Band 2 | F162: =IF($D$6=$I$162,AfC!AA3*1.2,IF($D$6=$I$163,AfC!AA3*1.15,IF($D$6=$I$164,AfC!AA3*1.05,AfC!AA3))) -> 22255.2 | G162: =IF($D$6=$I$162,AfC!AB3*1.2,IF($D$6=$J$163,AfC!AB3*1.15,IF($D$6=$I$164,AfC!AB3*1.05,AfC!AB3))) -> 23901.6 | H162: =IF($D$6=$I$162,AfC!AC3*1.2,IF($D$6=$K$163,AfC!AC3*1.15,IF($D$6=$I$164,AfC!AC3*1.05,AfC!AC3))) -> 23901.6 | I162: London (inner)
E163: Band 3 | F163: =IF($D$6=$I$162,AfC!AA4*1.2,IF($D$6=$I$163,AfC!AA4*1.15,IF($D$6=$I$164,AfC!AA4*1.05,AfC!AA4))) -> 24396 | G163: =IF($D$6=$I$162,AfC!AB4*1.2,IF($D$6=$J$163,AfC!AB4*1.15,IF($D$6=$I$164,AfC!AB4*1.05,AfC!AB4))) -> 26132.712 | H163: =IF($D$6=$I$162,AfC!AC4*1.2,IF($D$6=$K$163,AfC!AC4*1.15,IF($D$6=$I$164,AfC!AC4*1.05,AfC!AC4))) -> 26132.712 | I163: London (outer)
E164: Band 4 | F164: =IF($D$6=$I$162,AfC!AA5*1.2,IF($D$6=$I$163,AfC!AA5*1.15,IF($D$6=$I$164,AfC!AA5*1.05,AfC!AA5))) -> 27058.512 | G164: =IF($D$6=$I$162,AfC!AB5*1.2,IF($D$6=$J$163,AfC!AB5*1.15,IF($D$6=$I$164,AfC!AB5*1.05,AfC!AB5))) -> 29858.052 | H164: =IF($D$6=$I$162,AfC!AC5*1.2,IF($D$6=$K$163,AfC!AC5*1.15,IF($D$6=$I$164,AfC!AC5*1.05,AfC!AC5))) -> 29858.052 | I164: London (fringe)
E165: Band 5 | F165: =IF($D$6=$I$162,AfC!AA6*1.2,IF($D$6=$I$163,AfC!AA6*1.15,IF($D$6=$I$164,AfC!AA6*1.05,AfC!AA6))) -> 30786.252 | G165: =IF($D$6=$I$162,AfC!AB6*1.2,IF($D$6=$J$163,AfC!AB6*1.15,IF($D$6=$I$164,AfC!AB6*1.05,AfC!AB6))) -> 35588.73 | H165: =IF($D$6=$I$162,AfC!AC6*1.2,IF($D$6=$K$163,AfC!AC6*1.15,IF($D$6=$I$164,AfC!AC6*1.05,AfC!AC6))) -> 37841.34 | I165: "Include on costs"
E166: Band 6 | F166: =IF($D$6=$I$162,AfC!AA7*1.2,IF($D$6=$I$163,AfC!AA7*1.15,IF($D$6=$I$164,AfC!AA7*1.05,AfC!AA7))) -> 38767.14 | G166: =IF($D$6=$I$162,AfC!AB7*1.2,IF($D$6=$J$163,AfC!AB7*1.15,IF($D$6=$I$164,AfC!AB7*1.05,AfC!AB7))) -> 41006.736 | H166: =IF($D$6=$I$162,AfC!AC7*1.2,IF($D$6=$K$163,AfC!AC7*1.15,IF($D$6=$I$164,AfC!AC7*1.05,AfC!AC7))) -> 46832.04
E167: Band 7 | F167: =IF($D$6=$I$162,AfC!AA8*1.2,IF($D$6=$I$163,AfC!AA8*1.15,IF($D$6=$I$164,AfC!AA8*1.05,AfC!AA8))) -> 48068.04 | G167: =IF($D$6=$I$162,AfC!AB8*1.2,IF($D$6=$J$163,AfC!AB8*1.15,IF($D$6=$I$164,AfC!AB8*1.05,AfC!AB8))) -> 50544.984 | H167: =IF($D$6=$I$162,AfC!AC8*1.2,IF($D$6=$K$163,AfC!AC8*1.15,IF($D$6=$I$164,AfC!AC8*1.05,AfC!AC8))) -> 55006.908
E168: Band 8A | F168: =IF($D$6=$I$162,AfC!AA9*1.2,IF($D$6=$I$163,AfC!AA9*1.15,IF($D$6=$I$164,AfC!AA9*1.05,AfC!AA9))) -> 56550.708 | G168: =IF($D$6=$I$162,AfC!AB9*1.2,IF($D$6=$J$163,AfC!AB9*1.15,IF($D$6=$I$164,AfC!AB9*1.05,AfC!AB9))) -> 56550.708 | H168: =IF($D$6=$I$162,AfC!AC9*1.2,IF($D$6=$K$163,AfC!AC9*1.15,IF($D$6=$I$164,AfC!AC9*1.05,AfC!AC9))) -> 63862.848
E169: Band 8B | F169: =IF($D$6=$I$162,AfC!AA10*1.2,IF($D$6=$I$163,AfC!AA10*1.15,IF($D$6=$I$164,AfC!AA10*1.05,AfC!AA10))) -> 65716.848 | G169: =IF($D$6=$I$162,AfC!AB10*1.2,IF($D$6=$J$163,AfC!AB10*1.15,IF($D$6=$I$164,AfC!AB10*1.05,AfC!AB10))) -> 65716.848 | H169: =IF($D$6=$I$162,AfC!AC10*1.2,IF($D$6=$K$163,AfC!AC10*1.15,IF($D$6=$I$164,AfC!AC10*1.05,AfC!AC10))) -> 76634.436
E170: Band 8C | F170: =IF($D$6=$I$162,AfC!AA11*1.2,IF($D$6=$I$163,AfC!AA11*1.15,IF($D$6=$I$164,AfC!AA11*1.05,AfC!AA11))) -> 78796.236 | G170: =IF($D$6=$I$162,AfC!AB11*1.2,IF($D$6=$J$163,AfC!AB11*1.15,IF($D$6=$I$164,AfC!AB11*1.05,AfC!AB11))) -> 78796.236 | H170: =IF($D$6=$I$162,AfC!AC11*1.2,IF($D$6=$K$163,AfC!AC11*1.15,IF($D$6=$I$164,AfC!AC11*1.05,AfC!AC11))) -> 91048.704
E171: Band 8D | F171: =IF($D$6=$I$162,AfC!AA12*1.2,IF($D$6=$I$163,AfC!AA12*1.15,IF($D$6=$I$164,AfC!AA12*1.05,AfC!AA12))) -> 93830.904 | G171: =IF($D$6=$I$162,AfC!AB12*1.2,IF($D$6=$J$163,AfC!AB12*1.15,IF($D$6=$I$164,AfC!AB12*1.05,AfC!AB12))) -> 93830.904 | H171: =IF($D$6=$I$162,AfC!AC12*1.2,IF($D$6=$K$163,AfC!AC12*1.15,IF($D$6=$I$164,AfC!AC12*1.05,AfC!AC12))) -> 108465.144
E172: Band 9 | F172: =IF($D$6=$I$162,AfC!AA13*1.2,IF($D$6=$I$163,AfC!AA13*1.15,IF($D$6=$I$164,AfC!AA13*1.05,AfC!AA13))) -> 112482.144 | G172: =IF($D$6=$I$162,AfC!AB13*1.2,IF($D$6=$J$163,AfC!AB13*1.15,IF($D$6=$I$164,AfC!AB13*1.05,AfC!AB13))) -> 112482.144 | H172: =IF($D$6=$I$162,AfC!AC13*1.2,IF($D$6=$K$163,AfC!AC13*1.15,IF($D$6=$I$164,AfC!AC13*1.05,AfC!AC13))) -> 129689.772
E174: Band | F174: Bottom pay point | G174: Middle pay point | H174: Top pay point
E175: Band 1 | F175: =IF($D$10=$I$165,F161*1.3,F161) -> 28931.76 | G175: 28931.76 | H175: 28931.76
E176: Band 2 | F176: 28931.76 | G176: 31072.08 | H176: 31072.08
E177: Band 3 | F177: 31714.8 | G177: 33972.5256 | H177: 33972.5256
E178: Band 4 | F178: 35176.0656 | G178: 38815.4676 | H178: 38815.4676
E179: Band 5 | F179: 40022.1276 | G179: 46265.349 | H179: 49193.742
E180: Band 6 | F180: 50397.282 | G180: 53308.7568 | H180: 60881.652
E181: Band 7 | F181: 62488.452 | G181: 65708.4792 | H181: 71508.9804
E182: Band 8A | F182: 73515.9204 | G182: 73515.9204 | H182: 83021.7024
E183: Band 8B | F183: 85431.9024 | G183: 85431.9024 | H183: 99624.7668
E184: Band 8C | F184: 102435.1068 | G184: 102435.1068 | H184: 118363.3152
E185: Band 8D | F185: 121980.1752 | G185: 121980.1752 | H185: 141004.6872
E186: Band 9 | F186: 146226.7872 | G186: 146226.7872 | H186: 168596.7036

Sheet Medical & Dental
B1: Potential Cost Savings from improvement to retention due to flexible working or other initiatives
B3: Medical & Dental
B7: Organisational investment in the retention programm (EG flexible working team cost) (Insert any organisation costs invested in this work programme, this will be deducted from potential savings to give actual in year saving)
B8: 0
B10: Workforce data - headcounts and leavers
B11: Average staff turnover rate (Insert) | C11: X | D11: Headcount (Insert) | E11: >>>>>>> | F11: Total number of staff leaving the organisation
B13: 0 | C13: X | D13: 0 | E13: >>>>>>> | F13: =B13*D13 -> 0
B17: Cash releasing costs
B18: Bank and Agency cost -12 weeks - per WTE (Insert) | D18: Average budget for substantive post -12 weeks - per WTE (Insert) | E18: X | F18: =F11 -> Total number of staff leaving the organisation | H18: Additional bank and agency costs of current total turnover | I18: Non-cash releasing costs of current total turnover
C20: - | D20: 0 | F20: =F13 -> 0 | G20: >>>>>>> | H20: =((B20-D20)+(B24-D24))*F20 -> 0 | I20: =(B29+D29+B33+D33)*F20 -> 0
B22: Bank and Agency cost for handover -2 weeks - per WTE (Insert) | D22: Average budget for substantive post -2 weeks - per WTE (Insert)
B24: 0 | C24: - | D24: 0
B26: Non-cash releasing costs
B27: Administration of the resignation - per leaver (Insert) | D27: Recruitment and selection costs - per recruit (Insert) | E27: X
B29: 0 | C29: + | D29: 0
B31: Induction training for the new employee - per employee (Insert) | D31: Others costs- leaver / new recruit (Insert)
B33: 0 | C33: + | D33: 0
B37: Costs saving-Prediction | I37: =ROUND(#REF!/1000000,2) -> 
B40: Target reduction in turnover | C40: 0 | D40: >>>Change/Insert the turnover reduction rate
B41: Cash releasing saving | C41: =IF(C40>0,H20-H57,0) -> 0
B42: Non-cash releasing saving | C42: =I20-I57 -> 0
B43: Total cash & non-cash releasing savings | C43: =C41+C42 -> 0
B44: Total saving after organisational investment is included | C44: =C43-B8 -> 0
B48: Number of taff leave the organisation
B49: Average staff turnovere rate for all reasons in 2020/21 | C49: X | D49: Headcount of Organisation ↓↓↓ (Insert) | E49: >>>>>>>
B50: =B13-C40 -> 0 | C50: X | D50: =D13 -> 0 | E50: >>>>>>> | F50: =B50*D50 -> 0
B55: Avg cost of temporary (Nursing, Midwifery & Health Visiting) staff replacement
B56: Bank and Agency cost -12 weeks (Per staff-Insert)↓↓↓ | D56: Average budget for substantive post | E56: X | F56: Total Number of ( Nursing, Midwifery & Health Visiting) staff leaving the organisation | G56: >>>>>>> | H56: Cash releasing (Bank and Agency costs) | I56: Non-cash releasing
B57: =B20 -> 0 | C57: + | D57: =D20 -> 0 | E57: X | F57: =F50 -> 0 | G57: >>>>>>> | H57: =((B57-D57)+(B59-D59))*F57 -> 0 | I57: =(B61+D61+B63+D63)*F57 -> 0
B58: Bank and Agency cost for handover -2 weeks (Per staff-Insert)↓↓↓ | D58: Average budget for substantive post
B59: =B24 -> 0 | D59: =D24 -> 0
B60: Administration of the resignation (Per staff-Insert)↓↓↓ | D60: Recruitment and selection costs (Per staff-Insert)↓↓↓
B61: =B29 -> 0 | C61: + | D61: =D29 -> 0
B62: Induction training for the new employee (Per staff-Insert)↓↓↓ | D62: Other Costs (cost of initiative/ investment) (Per staff-Insert)↓↓↓
B63: =B33 -> 0 | C63: + | D63: =D33 -> 0

Sheet Specific Retention Initiative
B1: Potential Cost Savings from improvement to retention due to flexible working or other initiatives
B3: Specific Retention Initiative
B7: Organisational investment in the retention programm (EG flexible working team cost) (Insert any organisation costs invested in this work programme, this will be deducted from potential savings to give actual in year saving)
B8: 0
B10: Workforce data - headcounts and leavers
B11: Average staff turnover rate (Insert) | C11: X | D11: Headcount (Insert) | E11: >>>>>>> | F11: Total number of staff leaving the organisation
B13: 0 | C13: X | D13: 0 | E13: >>>>>>> | F13: =B13*D13 -> 0
B17: Cash releasing costs
B18: Bank and Agency cost -12 weeks - per WTE (Insert) | D18: Average budget for substantive post -12 weeks - per WTE (Insert) | E18: X | F18: =F11 -> Total number of staff leaving the organisation | H18: Additional bank and agency costs of current total turnover | I18: Non-cash releasing costs of current total turnover
B20: 0 | C20: - | D20: 0 | F20: =F13 -> 0 | G20: >>>>>>> | H20: =((B20-D20)+(B24-D24))*F20 -> 0 | I20: =(B29+D29+B33+D33)*F20 -> 0
B22: Bank and Agency cost for handover -2 weeks - per WTE (Insert) | D22: Average budget for substantive post -2 weeks - per WTE (Insert)
B24: 0 | C24: - | D24: 0
B26: Non-cash releasing costs
B27: Administration of the resignation - per leaver (Insert) | D27: Recruitment and selection costs - per recruit (Insert) | E27: X
B29: 0 | C29: + | D29: 0
B31: Induction training for the new employee - per employee (Insert) | D31: Others costs- leaver / new recruit (Insert)
B33: 0 | C33: + | D33: 0
B37: Costs saving-Prediction | I37: =ROUND(#REF!/1000000,2) -> 
B40: Target reduction in turnover | C40: 0 | D40: >>>Change/Insert the turnover reduction rate
B41: Cash releasing saving | C41: =IF(C40>0,H20-H57,0) -> 0
B42: Non-cash releasing saving | C42: =I20-I57 -> 0
B43: Total cash & non-cash releasing savings | C43: =C41+C42 -> 0
B44: Total saving after organisational investment is included | C44: =C43-B8 -> 0
B48: Number of taff leave the organisation
B49: Average staff turnovere rate for all reasons in 2020/21 | C49: X | D49: Headcount of Organisation ↓↓↓ (Insert) | E49: >>>>>>>
B50: =B13-C40 -> 0 | C50: X | D50: =D13 -> 0 | E50: >>>>>>> | F50: =B50*D50 -> 0
B55: Avg cost of temporary (Nursing, Midwifery & Health Visiting) staff replacement
B56: Bank and Agency cost -12 weeks (Per staff-Insert)↓↓↓ | D56: Average budget for substantive post | E56: X | F56: Total Number of ( Nursing, Midwifery & Health Visiting) staff leaving the organisation | G56: >>>>>>> | H56: Cash releasing (Bank and Agency costs) | I56: Non-cash releasing
B57: =B20 -> 0 | C57: + | D57: =D20 -> 0 | E57: X | F57: =F50 -> 0 | G57: >>>>>>> | H57: =((B57-D57)+(B59-D59))*F57 -> 0 | I57: =(B61+D61+B63+D63)*F57 -> 0
B58: Bank and Agency cost for handover -2 weeks (Per staff-Insert)↓↓↓ | D58: Average budget for substantive post
B59: =B24 -> 0 | D59: =D24 -> 0
B60: Administration of the resignation (Per staff-Insert)↓↓↓ | D60: Recruitment and selection costs (Per staff-Insert)↓↓↓
B61: =B29 -> 0 | C61: + | D61: =D29 -> 0
B62: Induction training for the new employee (Per staff-Insert)↓↓↓ | D62: Other Costs (cost of initiative/ investment) (Per staff-Insert)↓↓↓
B63: =B33 -> 0 | C63: + | D63: =D33 -> 0

Sheet AfC (hidden)
A1: List_value | B1: Band | C1: Years of Experience | D1: 2018/19 | E1: 2019/20 | F1: 2020/21 | G1: 2021/22 | H1: Basic Pay | I1: London (inner) | J1: London (outer) | K1: London (fringe) | L1: On costs | M1: Basic Pay | N1: Basic Pay | Q1: London (inner)1 | R1: London (outer)1 | S1: London (fringe)1 | Z1: Band | AA1: Bottom pay point | AB1: Middle pay point | AC1: Top pay point | AD1: On costs | AE1: Average | AH1: Employer National Insurance 2021/22 | AI1: Employer Pension contribution
A2: =B2&" ("&C2&" service"&")" -> Band 1 (< 1 year service) | B2: Band 1 | C2: < 1 year | D2: 17460 | E2: 17652 | F2: 18005 | G2: 18546 | H2: =G2 -> 18546 | I2: =(($G2/100)*20)+G2 -> 22255.2 | J2: =(($G2/100)*15)+G2 -> 21327.9 | K2: =(($G2/100)*5)+G2 -> 19473.3 | L2: =(G2/100)*30 -> 5563.8 | N2: =$H2*0.2 -> 3709.2 | O2: =$H2*0.15 -> 2781.9 | P2: =$H2*0.05 -> 927.3 | Q2: =IF(N2<$AC$48,($H2+$AC$48),IF(N2>$AD$48,($H2+$AD$48),(N2+$H2))) -> 23154 | R2: =IF(O2<$AC$48,($H2+$AC$48),IF(O2>$AD$48,($H2+$AD$48),(O2+$H2))) -> 23154 | S2: =IF(P2<$AC$48,($H2+$AC$48),IF(P2>$AD$48,($H2+$AD$48),(P2+$H2))) -> 23154 | Z2: =_xlfn.UNIQUE(B2:B80,FALSE,FALSE) -> Band 1 | AA2: =MIN(G2:G3) -> 18546 | AB2: =MEDIAN(G2:G3) -> 18546 | AC2: =MAX(G2:G3) -> 18546 | AD2: =MEDIAN(L2:L3) -> 5563.8 | AE2: =AVERAGE(G2:G3) -> 18546 | AG2: Basic Pay | AH2: Greater than 9,500 | AI2: Providers pay 14.38%
A3: =B3&" ("&C3&" service"&")" -> Band 1 (1+ years service) | B3: Band 1 | C3: 1+ years | D3: 17460 | E3: 17652 | F3: 18005 | G3: 18546 | H3: =G3 -> 18546 | I3: =(($G3/100)*20)+G3 -> 22255.2 | J3: =(($G3/100)*15)+G3 -> 21327.9 | K3: =(($G3/100)*5)+G3 -> 19473.3 | L3: 5563.8 | N3: =$H3*0.2 -> 3709.2 | O3: =$H3*0.15 -> 2781.9 | P3: =$H3*0.05 -> 927.3 | Q3: =IF(N3<$AC$48,($H3+$AC$48),IF(N3>$AD$48,($H3+$AD$48),(N3+$H3))) -> 23154 | R3: =IF(O3<$AC$48,($H3+$AC$48),IF(O3>$AD$48,($H3+$AD$48),(O3+$H3))) -> 23154 | S3: =IF(P3<$AC$48,($H3+$AC$48),IF(P3>$AD$48,($H3+$AD$48),(P3+$H3))) -> 23154 | Z3: Band 2 | AA3: =MIN(G4:G10) -> 18546 | AB3: =MEDIAN(G4:G10) -> 19918 | AC3: =MAX(G4:G10) -> 19918 | AD3: =MEDIAN(L4:L10) -> 5975.4 | AE3: =AVERAGE(G4:G10) -> 19526 | AG3: London (inner) | AH3: 13.8% (total pay) | AI3: Increased extra 6% to BSA. Total 20.68%
A4: Band 2 (< 1 year service) | B4: Band 2 | C4: < 1 year | D4: 17460 | E4: 17652 | F4: 18005 | G4: 18546 | H4: 18546 | I4: 22255.2 | J4: 21327.9 | K4: 19473.3 | L4: 5563.8 | N4: 3709.2 | O4: 2781.9 | P4: 927.3 | Q4: 23154 | R4: 23154 | S4: 23154 | Z4: Band 3 | AA4: =MIN(G11:G17) -> 20330 | AB4: =MEDIAN(G11:G17) -> 21777.26 | AC4: =MAX(G11:G17) -> 21777.26 | AD4: =MEDIAN(L11:L17) -> 6533.178 | AE4: =AVERAGE(G11:G17) -> 21363.75714 | AG4: London (outer) | AH4: Just base this on basic pay? | AI4: Apprentice levy 0.5%
A5: Band 2 (1-2 years service) | B5: Band 2 | C5: 1-2 years | D5: 17460 | E5: 17652 | F5: 18005 | G5: 18546 | H5: 18546 | I5: 22255.2 | J5: 21327.9 | K5: 19473.3 | L5: 5563.8 | N5: 3709.2 | O5: 2781.9 | P5: 927.3 | Q5: 23154 | R5: 23154 | S5: 23154 | Z5: Band 4 | AA5: =MIN(G18:G24) -> 22548.76 | AB5: =MEDIAN(G18:G24) -> 24881.71 | AC5: =MAX(G18:G24) -> 24881.71 | AD5: =MEDIAN(L18:L24) -> 7464.513 | AE5: =AVERAGE(G18:G24) -> 23881.87429 | AG5: London (fringe) | AH5: Not OT or additional earnings. | AJ5: Entry point or top point?
A6: Band 2 (2-3 years service) | B6: Band 2 | C6: 2-3 years | D6: 17460 | E6: 17652 | F6: 19337 | G6: 19918 | H6: 19918 | I6: 23901.6 | J6: 22905.7 | K6: 20913.9 | L6: 5975.4 | N6: 3983.6 | O6: 2987.7 | P6: 995.9 | Q6: 24526 | R6: 24526 | S6: 24526 | Z6: Band 5 | AA6: =MIN(G25:G32) -> 25655.21 | AB6: =MEDIAN(G25:G32) -> 29657.275 | AC6: =MAX(G25:G32) -> 31534.45 | AD6: =MEDIAN(L25:L32) -> 8897.1825 | AE6: =AVERAGE(G25:G32) -> 29126.0525 | AJ6: Incremental drift?
A7: Band 2 (3-4 years service) | B7: Band 2 | C7: 3-4 years | D7: 17460 | E7: 17652 | F7: 19337 | G7: 19918 | H7: 19918 | I7: 23901.6 | J7: 22905.7 | K7: 20913.9 | L7: 5975.4 | N7: 3983.6 | O7: 2987.7 | P7: 995.9 | Q7: 24526 | R7: 24526 | S7: 24526 | Z7: Band 6 | AA7: =MIN(G33:G41) -> 32305.95 | AB7: =MEDIAN(G33:G41) -> 34172.28 | AC7: =MAX(G33:G41) -> 39026.7 | AD7: =MEDIAN(L33:L41) -> 10251.684 | AE7: =AVERAGE(G33:G41) -> 35915.06
A8: Band 2 (4-5 years service) | B8: Band 2 | C8: 4-5 years | D8: 17460 | E8: 17652 | F8: 19337 | G8: 19918 | H8: 19918 | I8: 23901.6 | J8: 22905.7 | K8: 20913.9 | L8: 5975.4 | N8: 3983.6 | O8: 2987.7 | P8: 995.9 | Q8: 24526 | R8: 24526 | S8: 24526 | Z8: Band 7 | AA8: =MIN(G42:G50) -> 40056.7 | AB8: =MEDIAN(G42:G50) -> 42120.82 | AC8: =MAX(G42:G50) -> 45839.09 | AD8: =MEDIAN(L42:L50) -> 12636.246 | AE8: =AVERAGE(G42:G50) -> 43314.69111
A9: Band 2 (5-6 years service) | B9: Band 2 | C9: 5-6 years | D9: 17787 | E9: 17983 | F9: 19337 | G9: 19918 | H9: 19918 | I9: 23901.6 | J9: 22905.7 | K9: 20913.9 | L9: 5975.4 | N9: 3983.6 | O9: 2987.7 | P9: 995.9 | Q9: 24526 | R9: 24526 | S9: 24526 | Z9: Band 8A | AA9: =MIN(G51:G56) -> 47125.59 | AB9: =MEDIAN(G51:G56) -> 47125.59 | AC9: =MAX(G51:G56) -> 53219.04 | AD9: =MEDIAN(L51:L56) -> 14137.677 | AE9: =AVERAGE(G51:G56) -> 48141.165
A10: Band 2 (6+ years service) | B10: Band 2 | C10: 6+ years | D10: 18702 | E10: 19020 | F10: 19337 | G10: 19918 | H10: 19918 | I10: 23901.6 | J10: 22905.7 | K10: 20913.9 | L10: 5975.4 | N10: 3983.6 | O10: 2987.7 | P10: 995.9 | Q10: 24526 | R10: 24526 | S10: 24526 | Z10: Band 8B | AA10: =MIN(G57:G62) -> 54764.04 | AB10: =MEDIAN(G57:G62) -> 54764.04 | AC10: =MAX(G57:G62) -> 63862.03 | AD10: =MEDIAN(L57:L62) -> 16429.212 | AE10: =AVERAGE(G57:G62) -> 56280.37167
A11: Band 3 (< 1 year service) | B11: Band 3 | C11: < 1 year | D11: 17787 | E11: 18813 | F11: 19737 | G11: 20330 | H11: 20330 | I11: 24396 | J11: 23379.5 | K11: 21346.5 | L11: 6099 | N11: 4066 | O11: 3049.5 | P11: 1016.5 | Q11: 24938 | R11: 24938 | S11: 24938 | Z11: Band 8C | AA11: =MIN(G63:G68) -> 65663.53 | AB11: =MEDIAN(G63:G68) -> 65663.53 | AC11: =MAX(G63:G68) -> 75873.92 | AD11: =MEDIAN(L63:L68) -> 19699.059 | AE11: =AVERAGE(G63:G68) -> 67365.26167
A12: Band 3 (1-2 years service) | B12: Band 3 | C12: 1-2 years | D12: 17787 | E12: 18813 | F12: 19737 | G12: 20330 | H12: 20330 | I12: 24396 | J12: 23379.5 | K12: 21346.5 | L12: 6099 | N12: 4066 | O12: 3049.5 | P12: 1016.5 | Q12: 24938 | R12: 24938 | S12: 24938 | Z12: Band 8D | AA12: =MIN(G69:G74) -> 78192.42 | AB12: =MEDIAN(G69:G74) -> 78192.42 | AC12: =MAX(G69:G74) -> 90387.62 | AD12: =MEDIAN(L69:L74) -> 23457.726 | AE12: =AVERAGE(G69:G74) -> 80224.95333
A13: Band 3 (2-3 years service) | B13: Band 3 | C13: 2-3 years | D13: 18429 | E13: 18813 | F13: 21142 | G13: 21777.26 | H13: 21777.26 | I13: 26132.712 | J13: 25043.849 | K13: 22866.123 | L13: 6533.178 | N13: 4355.452 | O13: 3266.589 | P13: 1088.863 | Q13: 26385.26 | R13: 26385.26 | S13: 26385.26 | Z13: Band 9 | AA13: =MIN(G75:G80) -> 93735.12 | AB13: =MEDIAN(G75:G80) -> 93735.12 | AC13: =MAX(G75:G80) -> 108074.81 | AD13: =MEDIAN(L75:L80) -> 28120.536 | AE13: =AVERAGE(G75:G80) -> 96125.06833
A14: Band 3 (3-4 years service) | B14: Band 3 | C14: 3-4 years | D14: 18608 | E14: 18813 | F14: 21142 | G14: 21777.26 | H14: 21777.26 | I14: 26132.712 | J14: 25043.849 | K14: 22866.123 | L14: 6533.178 | N14: 4355.452 | O14: 3266.589 | P14: 1088.863 | Q14: 26385.26 | R14: 26385.26 | S14: 26385.26
A15: Band 3 (4-5 years service) | B15: Band 3 | C15: 4-5 years | D15: 19122 | E15: 19332 | F15: 21142 | G15: 21777.26 | H15: 21777.26 | I15: 26132.712 | J15: 25043.849 | K15: 22866.123 | L15: 6533.178 | N15: 4355.452 | O15: 3266.589 | P15: 1088.863 | Q15: 26385.26 | R15: 26385.26 | S15: 26385.26
A16: Band 3 (5-6 years service) | B16: Band 3 | C16: 5-6 years | D16: 19700 | E16: 19917 | F16: 21142 | G16: 21777.26 | H16: 21777.26 | I16: 26132.712 | J16: 25043.849 | K16: 22866.123 | L16: 6533.178 | N16: 4355.452 | O16: 3266.589 | P16: 1088.863 | Q16: 26385.26 | R16: 26385.26 | S16: 26385.26
A17: Band 3 (6+ years service) | B17: Band 3 | C17: 6+ years | D17: 20448 | E17: 20795 | F17: 21142 | G17: 21777.26 | H17: 21777.26 | I17: 26132.712 | J17: 25043.849 | K17: 22866.123 | L17: 6533.178 | N17: 4355.452 | O17: 3266.589 | P17: 1088.863 | Q17: 26385.26 | R17: 26385.26 | S17: 26385.26
A18: Band 4 (< 1 year service) | B18: Band 4 | C18: < 1 year | D18: 20150 | E18: 21089 | F18: 21892 | G18: 22548.76 | H18: 22548.76 | I18: 27058.512 | J18: 25931.074 | K18: 23676.198 | L18: 6764.628 | N18: 4509.752 | O18: 3382.314 | P18: 1127.438 | Q18: 27156.76 | R18: 27156.76 | S18: 27156.76
A19: Band 4 (1-2 years service) | B19: Band 4 | C19: 1-2 years | D19: 20150 | E19: 21089 | F19: 21892 | G19: 22548.76 | H19: 22548.76 | I19: 27058.512 | J19: 25931.074 | K19: 23676.198 | L19: 6764.628 | N19: 4509.752 | O19: 3382.314 | P19: 1127.438 | Q19: 27156.76 | R19: 27156.76 | S19: 27156.76
A20: Band 4 (2-3 years service) | B20: Band 4 | C20: 2-3 years | D20: 20859 | E20: 21089 | F20: 21892 | G20: 22548.76 | H20: 22548.76 | I20: 27058.512 | J20: 25931.074 | K20: 23676.198 | L20: 6764.628 | N20: 4509.752 | O20: 3382.314 | P20: 1127.438 | Q20: 27156.76 | R20: 27156.76 | S20: 27156.76
A21: Band 4 (3-4 years service) | B21: Band 4 | C21: 3-4 years | D21: 21582 | E21: 21819 | F21: 24157 | G21: 24881.71 | H21: 24881.71 | I21: 29858.052 | J21: 28613.9665 | K21: 26125.7955 | L21: 7464.513 | N21: 4976.342 | O21: 3732.2565 | P21: 1244.0855 | Q21: 29858.052 | R21: 29489.71 | S21: 29489.71 | Z21: Agenda for change - pay rates | Health Careers
A22: Band 4 (4-5 years service) | B22: Band 4 | C22: 4-5 years | D22: 22238 | E22: 22482 | F22: 24157 | G22: 24881.71 | H22: 24881.71 | I22: 29858.052 | J22: 28613.9665 | K22: 26125.7955 | L22: 7464.513 | N22: 4976.342 | O22: 3732.2565 | P22: 1244.0855 | Q22: 29858.052 | R22: 29489.71 | S22: 29489.71
A23: Band 4 (5-6 years service) | B23: Band 4 | C23: 5-6 years | D23: 22460 | E23: 22707 | F23: 24157 | G23: 24881.71 | H23: 24881.71 | I23: 29858.052 | J23: 28613.9665 | K23: 26125.7955 | L23: 7464.513 | N23: 4976.342 | O23: 3732.2565 | P23: 1244.0855 | Q23: 29858.052 | R23: 29489.71 | S23: 29489.71
A24: Band 4 (6+ years service) | B24: Band 4 | C24: 6+ years | D24: 23363 | E24: 23761 | F24: 24157 | G24: 24881.71 | H24: 24881.71 | I24: 29858.052 | J24: 28613.9665 | K24: 26125.7955 | L24: 7464.513 | N24: 4976.342 | O24: 3732.2565 | P24: 1244.0855 | Q24: 29858.052 | R24: 29489.71 | S24: 29489.71
A25: Band 5 (< 1 year service) | B25: Band 5 | C25: < 1 year | D25: 23023 | E25: 24214 | F25: 24907 | G25: 25655.21 | H25: 25655.21 | I25: 30786.252 | J25: 29503.4915 | K25: 26937.9705 | L25: 7696.563 | N25: 5131.042 | O25: 3848.2815 | P25: 1282.7605 | Q25: 30786.252 | R25: 30263.21 | S25: 30263.21
A26: Band 5 (1-2 years service) | B26: Band 5 | C26: 1-2 years | D26: 23023 | E26: 24214 | F26: 24907 | G26: 25655.21 | H26: 25655.21 | I26: 30786.252 | J26: 29503.4915 | K26: 26937.9705 | L26: 7696.563 | N26: 5131.042 | O26: 3848.2815 | P26: 1282.7605 | Q26: 30786.252 | R26: 30263.21 | S26: 30263.21
A27: Band 5 (2-3 years service) | B27: Band 5 | C27: 2-3 years | D27: 23951 | E27: 24214 | F27: 26970 | G27: 27780.1 | H27: 27780.1 | I27: 33336.12 | J27: 31947.115 | K27: 29169.105 | L27: 8334.03 | N27: 5556.02 | O27: 4167.015 | P27: 1389.005 | Q27: 33336.12 | R27: 32388.1 | S27: 32388.1
A28: Band 5 (3-4 years service) | B28: Band 5 | C28: 3-4 years | D28: 24915 | E28: 26220 | F28: 26970 | G28: 27780.1 | H28: 27780.1 | I28: 33336.12 | J28: 31947.115 | K28: 29169.105 | L28: 8334.03 | N28: 5556.02 | O28: 4167.015 | P28: 1389.005 | Q28: 33336.12 | R28: 32388.1 | S28: 32388.1
A29: Band 5 (4-5 years service) | B29: Band 5 | C29: 4-5 years | D29: 25934 | E29: 26220 | F29: 27416 | G29: 31534.45 | H29: 31534.45 | I29: 37841.34 | J29: 36264.6175 | K29: 33111.1725 | L29: 9460.335 | N29: 6306.89 | O29: 4730.1675 | P29: 1576.7225 | Q29: 37841.34 | R29: 36264.6175 | S29: 36142.45
A30: Band 5 (5-6 years service) | B30: Band 5 | C30: 5-6 years | D30: 26963 | E30: 27260 | F30: 27416 | G30: 31534.45 | H30: 31534.45 | I30: 37841.34 | J30: 36264.6175 | K30: 33111.1725 | L30: 9460.335 | N30: 6306.89 | O30: 4730.1675 | P30: 1576.7225 | Q30: 37841.34 | R30: 36264.6175 | S30: 36142.45
A31: Band 5 (6-7 years service) | B31: Band 5 | C31: 6-7 years | D31: 28050 | E31: 28358 | F31: 30615 | G31: 31534.45 | H31: 31534.45 | I31: 37841.34 | J31: 36264.6175 | K31: 33111.1725 | L31: 9460.335 | N31: 6306.89 | O31: 4730.1675 | P31: 1576.7225 | Q31: 37841.34 | R31: 36264.6175 | S31: 36142.45
A32: Band 5 (7+ years service) | B32: Band 5 | C32: 7+ years | D32: 29608 | E32: 30112 | F32: 30615 | G32: 31534.45 | H32: 31534.45 | I32: 37841.34 | J32: 36264.6175 | K32: 33111.1725 | L32: 9460.335 | N32: 6306.89 | O32: 4730.1675 | P32: 1576.7225 | Q32: 37841.34 | R32: 36264.6175 | S32: 36142.45
A33: Band 6 (< 1 year service) | B33: Band 6 | C33: < 1 year | D33: 28050 | E33: 30401 | F33: 31365 | G33: 32305.95 | H33: 32305.95 | I33: 38767.14 | J33: 37151.8425 | K33: 33921.2475 | L33: 9691.785 | N33: 6461.19 | O33: 4845.8925 | P33: 1615.2975 | Q33: 38767.14 | R33: 37151.8425 | S33: 36913.95
A34: Band 6 (1-2 years service) | B34: Band 6 | C34: 1-2 years | D34: 28050 | E34: 30401 | F34: 31365 | G34: 32305.95 | H34: 32305.95 | I34: 38767.14 | J34: 37151.8425 | K34: 33921.2475 | L34: =(G34/100)*30 -> 9691.785 | N34: 6461.19 | O34: 4845.8925 | P34: 1615.2975 | Q34: 38767.14 | R34: 37151.8425 | S34: 36913.95
A35: Band 6 (2-3 years service) | B35: Band 6 | C35: 2-3 years | D35: 29177 | E35: 30401 | F35: 33176 | G35: 34172.28 | H35: 34172.28 | I35: 41006.736 | J35: 39298.122 | K35: 35880.894 | L35: 10251.684 | N35: 6834.456 | O35: 5125.842 | P35: 1708.614 | Q35: 41006.736 | R35: 39298.122 | S35: 38780.28
A36: Band 6 (3-4 years service) | B36: Band 6 | C36: 3-4 years | D36: 30070 | E36: 32525 | F36: 33176 | G36: 34172.28 | H36: 34172.28 | I36: 41006.736 | J36: 39298.122 | K36: 35880.894 | L36: 10251.684 | N36: 6834.456 | O36: 5125.842 | P36: 1708.614 | Q36: 41006.736 | R36: 39298.122 | S36: 38780.28
A37: Band 6 (4-5 years service) | B37: Band 6 | C37: 4-5 years | D37: 31121 | E37: 32525 | F37: 33176 | G37: 34172.28 | H37: 34172.28 | I37: 41006.736 | J37: 39298.122 | K37: 35880.894 | L37: 10251.684 | N37: 6834.456 | O37: 5125.842 | P37: 1708.614 | Q37: 41006.736 | R37: 39298.122 | S37: 38780.28
A38: Band 6 (5-6 years service) | B38: Band 6 | C38: 5-6 years | D38: 32171 | E38: 32525 | F38: 33779 | G38: 39026.7 | H38: 39026.7 | I38: 46832.04 | J38: 44880.705 | K38: 40978.035 | L38: 11708.01 | N38: 7805.34 | O38: 5854.005 | P38: 1951.335 | Q38: 46123.7 | R38: 44880.705 | S38: 43634.7
A39: Band 6 (6-7 years service) | B39: Band 6 | C39: 6-7 years | D39: 33222 | E39: 33587 | F39: 33779 | G39: 39026.7 | H39: 39026.7 | I39: 46832.04 | J39: 44880.705 | K39: 40978.035 | L39: 11708.01 | N39: 7805.34 | O39: 5854.005 | P39: 1951.335 | Q39: 46123.7 | R39: 44880.705 | S39: 43634.7
A40: Band 6 (7-8 years service) | B40: Band 6 | C40: 7-8 years | D40: 34403 | E40: 34782 | F40: 37890 | G40: 39026.7 | H40: 39026.7 | I40: 46832.04 | J40: 44880.705 | K40: 40978.035 | L40: 11708.01 | N40: 7805.34 | O40: 5854.005 | P40: 1951.335 | Q40: 46123.7 | R40: 44880.705 | S40: 43634.7
A41: Band 6 (8+ years service) | B41: Band 6 | C41: 8+ years | D41: 36644 | E41: 37267 | F41: 37890 | G41: 39026.7 | H41: 39026.7 | I41: 46832.04 | J41: 44880.705 | K41: 40978.035 | L41: 11708.01 | N41: 7805.34 | O41: 5854.005 | P41: 1951.335 | Q41: 46123.7 | R41: 44880.705 | S41: 43634.7
A42: Band 7 (< 1 year service) | B42: Band 7 | C42: < 1 year | D42: 33222 | E42: 37570 | F42: 38890 | G42: 40056.7 | H42: 40056.7 | I42: 48068.04 | J42: 46065.205 | K42: 42059.535 | L42: 12017.01 | N42: 8011.34 | O42: 6008.505 | P42: 2002.835 | Q42: 47153.7 | R42: 46065.205 | S42: 44664.7
A43: Band 7 (1-2 years service) | B43: Band 7 | C43: 1-2 years | D43: 33222 | E43: 37570 | F43: 38890 | G43: 40056.7 | H43: 40056.7 | I43: 48068.04 | J43: 46065.205 | K43: 42059.535 | L43: 12017.01 | N43: 8011.34 | O43: 6008.505 | P43: 2002.835 | Q43: 47153.7 | R43: 46065.205 | S43: 44664.7
A44: Band 7 (2-3 years service) | B44: Band 7 | C44: 2-3 years | D44: 34403 | E44: 37570 | F44: 40894 | G44: 42120.82 | H44: 42120.82 | I44: 50544.984 | J44: 48438.943 | K44: 44226.861 | L44: 12636.246 | N44: 8424.164 | O44: 6318.123 | P44: 2106.041 | Q44: 49217.82 | R44: 48438.943 | S44: 46728.82
A45: Band 7 (3-4 years service) | B45: Band 7 | C45: 3-4 years | D45: 36111 | E45: 37570 | F45: 40894 | G45: 42120.82 | H45: 42120.82 | I45: 50544.984 | J45: 48438.943 | K45: 44226.861 | L45: 12636.246 | N45: 8424.164 | O45: 6318.123 | P45: 2106.041 | Q45: 49217.82 | R45: 48438.943 | S45: 46728.82
A46: Band 7 (4-5 years service) | B46: Band 7 | C46: 4-5 years | D46: 37161 | E46: 38765 | F46: 40894 | G46: 42120.82 | H46: 42120.82 | I46: 50544.984 | J46: 48438.943 | K46: 44226.861 | L46: 12636.246 | N46: 8424.164 | O46: 6318.123 | P46: 2106.041 | Q46: 49217.82 | R46: 48438.943 | S46: 46728.82
A47: Band 7 (5-6 years service) | B47: Band 7 | C47: 5-6 years | D47: 38344 | E47: 38765 | F47: 41723 | G47: 45839.09 | H47: 45839.09 | I47: 55006.908 | J47: 52714.9535 | K47: 48131.0445 | L47: 13751.727 | N47: 9167.818 | O47: 6875.8635 | P47: 2291.9545 | Q47: 52936.09 | R47: 52714.9535 | S47: 50447.09
A48: Band 7 (6-7 years service) | B48: Band 7 | C48: 6-7 years | D48: 39656 | E48: 40092 | F48: 41723 | G48: 45839.09 | H48: 45839.09 | I48: 55006.908 | J48: 52714.9535 | K48: 48131.0445 | L48: 13751.727 | N48: 9167.818 | O48: 6875.8635 | P48: 2291.9545 | Q48: 52936.09 | R48: 52714.9535 | S48: 50447.09 | AC48: 4608 | AD48: 7097
A49: Band 7 (7-8 years service) | B49: Band 7 | C49: 7-8 years | D49: 41034 | E49: 41486 | F49: 44503 | G49: 45839.09 | H49: 45839.09 | I49: 55006.908 | J49: 52714.9535 | K49: 48131.0445 | L49: 13751.727 | N49: 9167.818 | O49: 6875.8635 | P49: 2291.9545 | Q49: 52936.09 | R49: 52714.9535 | S49: 50447.09
A50: Band 7 (8+ years service) | B50: Band 7 | C50: 8+ years | D50: 43041 | E50: 43772 | F50: 44503 | G50: 45839.09 | H50: 45839.09 | I50: 55006.908 | J50: 52714.9535 | K50: 48131.0445 | L50: 13751.727 | N50: 9167.818 | O50: 6875.8635 | P50: 2291.9545 | Q50: 52936.09 | R50: 52714.9535 | S50: 50447.09
A51: Band 8A (< 1 year service) | B51: Band 8A | C51: < 1 year | D51: 42414 | E51: 44606 | F51: 45753 | G51: 47125.59 | H51: 47125.59 | I51: 56550.708 | J51: 54194.4285 | K51: 49481.8695 | L51: 14137.677 | N51: 9425.118 | O51: 7068.8385 | P51: 2356.2795 | Q51: 54222.59 | R51: 54194.4285 | S51: 51733.59
A52: Band 8A (1-2 years service) | B52: Band 8A | C52: 1-2 years | D52: 42414 | E52: 44606 | F52: 45753 | G52: 47125.59 | H52: 47125.59 | I52: 56550.708 | J52: 54194.4285 | K52: 49481.8695 | L52: 14137.677 | N52: 9425.118 | O52: 7068.8385 | P52: 2356.2795 | Q52: 54222.59 | R52: 54194.4285 | S52: 51733.59
A53: Band 8A (2-3 years service) | B53: Band 8A | C53: 2-3 years | D53: 44121 | E53: 44606 | F53: 45753 | G53: 47125.59 | H53: 47125.59 | I53: 56550.708 | J53: 54194.4285 | K53: 49481.8695 | L53: 14137.677 | N53: 9425.118 | O53: 7068.8385 | P53: 2356.2795 | Q53: 54222.59 | R53: 54194.4285 | S53: 51733.59
A54: Band 8A (3-4 years service) | B54: Band 8A | C54: 3-4 years | D54: 45827 | E54: 46331 | F54: 45753 | G54: 47125.59 | H54: 47125.59 | I54: 56550.708 | J54: 54194.4285 | K54: 49481.8695 | L54: 14137.677 | N54: 9425.118 | O54: 7068.8385 | P54: 2356.2795 | Q54: 54222.59 | R54: 54194.4285 | S54: 51733.59
A55: Band 8A (4-5 years service) | B55: Band 8A | C55: 4-5 years | D55: 47798 | E55: 48324 | F55: 45753 | G55: 47125.59 | H55: 47125.59 | I55: 56550.708 | J55: 54194.4285 | K55: 49481.8695 | L55: 14137.677 | N55: 9425.118 | O55: 7068.8385 | P55: 2356.2795 | Q55: 54222.59 | R55: 54194.4285 | S55: 51733.59
A56: Band 8A (5+ years service) | B56: Band 8A | C56: 5+ years | D56: 49969 | E56: 50819 | F56: 51668 | G56: 53219.04 | H56: 53219.04 | I56: 63862.848 | J56: 61201.896 | K56: 55879.992 | L56: 15965.712 | N56: 10643.808 | O56: 7982.856 | P56: 2660.952 | Q56: 60316.04 | R56: 60316.04 | S56: 57827.04
A57: Band 8B (< 1 year service) | B57: Band 8B | C57: < 1 year | D57: 49242 | E57: 52306 | F57: 53168 | G57: 54764.04 | H57: 54764.04 | I57: 65716.848 | J57: 62978.646 | K57: 57502.242 | L57: 16429.212 | N57: 10952.808 | O57: 8214.606 | P57: 2738.202 | Q57: 61861.04 | R57: 61861.04 | S57: 59372.04
A58: Band 8B (1-2 years service) | B58: Band 8B | C58: 1-2 years | D58: 49242 | E58: 52306 | F58: 53168 | G58: 54764.04 | H58: 54764.04 | I58: 65716.848 | J58: 62978.646 | K58: 57502.242 | L58: 16429.212 | N58: 10952.808 | O58: 8214.606 | P58: 2738.202 | Q58: 61861.04 | R58: 61861.04 | S58: 59372.04
A59: Band 8B (2-3 years service) | B59: Band 8B | C59: 2-3 years | D59: 51737 | E59: 52306 | F59: 53168 | G59: 54764.04 | H59: 54764.04 | I59: 65716.848 | J59: 62978.646 | K59: 57502.242 | L59: 16429.212 | N59: 10952.808 | O59: 8214.606 | P59: 2738.202 | Q59: 61861.04 | R59: 61861.04 | S59: 59372.04
A60: Band 8B (3-4 years service) | B60: Band 8B | C60: 3-4 years | D60: 54625 | E60: 55226 | F60: 53168 | G60: 54764.04 | H60: 54764.04 | I60: 65716.848 | J60: 62978.646 | K60: 57502.242 | L60: 16429.212 | N60: 10952.808 | O60: 8214.606 | P60: 2738.202 | Q60: 61861.04 | R60: 61861.04 | S60: 59372.04
A61: Band 8B (4-5 years service) | B61: Band 8B | C61: 4-5 years | D61: 57515 | E61: 58148 | F61: 53168 | G61: 54764.04 | H61: 54764.04 | I61: 65716.848 | J61: 62978.646 | K61: 57502.242 | L61: 16429.212 | N61: 10952.808 | O61: 8214.606 | P61: 2738.202 | Q61: 61861.04 | R61: 61861.04 | S61: 59372.04
A62: Band 8B (5+ years service) | B62: Band 8B | C62: 5+ years | D62: 59964 | E62: 60983 | F62: 62001 | G62: 63862.03 | H62: 63862.03 | I62: 76634.436 | J62: 73441.3345 | K62: 67055.1315 | L62: 19158.609 | N62: 12772.406 | O62: 9579.3045 | P62: 3193.1015 | Q62: 70959.03 | R62: 70959.03 | S62: 68470.03
A63: Band 8C (< 1 year service) | B63: Band 8C | C63: < 1 year | D63: 59090 | E63: 61777 | F63: 63751 | G63: 65663.53 | H63: 65663.53 | I63: 78796.236 | J63: 75513.0595 | K63: 68946.7065 | L63: 19699.059 | N63: 13132.706 | O63: 9849.5295 | P63: 3283.1765 | Q63: 72760.53 | R63: 72760.53 | S63: 70271.53
A64: Band 8C (1-2 years service) | B64: Band 8C | C64: 1-2 years | D64: 59090 | E64: 61777 | F64: 63751 | G64: 65663.53 | H64: 65663.53 | I64: 78796.236 | J64: 75513.0595 | K64: 68946.7065 | L64: 19699.059 | N64: 13132.706 | O64: 9849.5295 | P64: 3283.1765 | Q64: 72760.53 | R64: 72760.53 | S64: 70271.53
A65: Band 8C (2-3 years service) | B65: Band 8C | C65: 2-3 years | D65: 61105 | E65: 61777 | F65: 63751 | G65: 65663.53 | H65: 65663.53 | I65: 78796.236 | J65: 75513.0595 | K65: 68946.7065 | L65: 19699.059 | N65: 13132.706 | O65: 9849.5295 | P65: 3283.1765 | Q65: 72760.53 | R65: 72760.53 | S65: 70271.53
A66: Band 8C (3-4 years service) | B66: Band 8C | C66: 3-4 years | D66: 63966 | E66: 64670 | F66: 63751 | G66: 65663.53 | H66: 65663.53 | I66: 78796.236 | J66: 75513.0595 | K66: 68946.7065 | L66: =(G66/100)*30 -> 19699.059 | N66: 13132.706 | O66: 9849.5295 | P66: 3283.1765 | Q66: 72760.53 | R66: 72760.53 | S66: 70271.53
A67: =B67&" ("&C67&" service"&")" -> Band 8C (4-5 years service) | B67: Band 8C | C67: 4-5 years | D67: 68256 | E67: 69007 | F67: 63751 | G67: 65663.53 | H67: =G67 -> 65663.53 | I67: =(($G67/100)*20)+G67 -> 78796.236 | J67: =(($G67/100)*15)+G67 -> 75513.0595 | K67: =(($G67/100)*5)+G67 -> 68946.7065 | L67: 19699.059 | N67: =$H67*0.2 -> 13132.706 | O67: =$H67*0.15 -> 9849.5295 | P67: =$H67*0.05 -> 3283.1765 | Q67: =IF(N67<$AC$48,($H67+$AC$48),IF(N67>$AD$48,($H67+$AD$48),(N67+$H67))) -> 72760.53 | R67: =IF(O67<$AC$48,($H67+$AC$48),IF(O67>$AD$48,($H67+$AD$48),(O67+$H67))) -> 72760.53 | S67: =IF(P67<$AC$48,($H67+$AC$48),IF(P67>$AD$48,($H67+$AD$48),(P67+$H67))) -> 70271.53
A68: Band 8C (5+ years service) | B68: Band 8C | C68: 5+ years | D68: 71243 | E68: 72597 | F68: 73664 | G68: 75873.92 | H68: 75873.92 | I68: 91048.704 | J68: 87255.008 | K68: 79667.616 | L68: 22762.176 | N68: 15174.784 | O68: 11381.088 | P68: 3793.696 | Q68: 82970.92 | R68: 82970.92 | S68: 80481.92
A69: Band 8D (< 1 year service) | B69: Band 8D | C69: < 1 year | D69: 70206 | E69: 73936 | F69: 75914 | G69: 78192.42 | H69: 78192.42 | I69: 93830.904 | J69: 89921.283 | K69: 82102.041 | L69: 23457.726 | N69: 15638.484 | O69: 11728.863 | P69: 3909.621 | Q69: 85289.42 | R69: 85289.42 | S69: 82800.42
A70: Band 8D (1-2 years service) | B70: Band 8D | C70: 1-2 years | D70: 70206 | E70: 73936 | F70: 75914 | G70: 78192.42 | H70: 78192.42 | I70: 93830.904 | J70: 89921.283 | K70: 82102.041 | L70: 23457.726 | N70: 15638.484 | O70: 11728.863 | P70: 3909.621 | Q70: 85289.42 | R70: 85289.42 | S70: 82800.42
A71: Band 8D (2-3 years service) | B71: Band 8D | C71: 2-3 years | D71: 73132 | E71: 73936 | F71: 75914 | G71: 78192.42 | H71: 78192.42 | I71: 93830.904 | J71: 89921.283 | K71: 82102.041 | L71: 23457.726 | N71: 15638.484 | O71: 11728.863 | P71: 3909.621 | Q71: 85289.42 | R71: 85289.42 | S71: 82800.42
A72: Band 8D (3-4 years service) | B72: Band 8D | C72: 3-4 years | D72: 76707 | E72: 77550 | F72: 75914 | G72: 78192.42 | H72: 78192.42 | I72: 93830.904 | J72: 89921.283 | K72: 82102.041 | L72: 23457.726 | N72: 15638.484 | O72: 11728.863 | P72: 3909.621 | Q72: 85289.42 | R72: 85289.42 | S72: 82800.42
A73: Band 8D (4-5 years service) | B73: Band 8D | C73: 4-5 years | D73: 80606 | E73: 81493 | F73: 75914 | G73: 78192.42 | H73: 78192.42 | I73: 93830.904 | J73: 89921.283 | K73: 82102.041 | L73: 23457.726 | N73: 15638.484 | O73: 11728.863 | P73: 3909.621 | Q73: 85289.42 | R73: 85289.42 | S73: 82800.42
A74: Band 8D (5+ years service) | B74: Band 8D | C74: 5+ years | D74: 85333 | E74: 86687 | F74: 87754 | G74: 90387.62 | H74: 90387.62 | I74: 108465.144 | J74: 103945.763 | K74: 94907.001 | L74: 27116.286 | N74: 18077.524 | O74: 13558.143 | P74: 4519.381 | Q74: 97484.62 | R74: 97484.62 | S74: 94995.62
A75: Band 9 (< 1 year service) | B75: Band 9 | C75: < 1 year | D75: 84507 | E75: 89537 | F75: 91004 | G75: 93735.12 | H75: 93735.12 | I75: 112482.144 | J75: 107795.388 | K75: 98421.876 | L75: 28120.536 | N75: 18747.024 | O75: 14060.268 | P75: 4686.756 | Q75: 100832.12 | R75: 100832.12 | S75: 98421.876
A76: Band 9 (1-2 years service) | B76: Band 9 | C76: 1-2 years | D76: 84507 | E76: 89537 | F76: 91004 | G76: 93735.12 | H76: 93735.12 | I76: 112482.144 | J76: 107795.388 | K76: 98421.876 | L76: 28120.536 | N76: 18747.024 | O76: 14060.268 | P76: 4686.756 | Q76: 100832.12 | R76: 100832.12 | S76: 98421.876
A77: Band 9 (2-3 years service) | B77: Band 9 | C77: 2-3 years | D77: 88563 | E77: 89537 | F77: 91004 | G77: 93735.12 | H77: 93735.12 | I77: 112482.144 | J77: 107795.388 | K77: 98421.876 | L77: 28120.536 | N77: 18747.024 | O77: 14060.268 | P77: 4686.756 | Q77: 100832.12 | R77: 100832.12 | S77: 98421.876
A78: Band 9 (3-4 years service) | B78: Band 9 | C78: 3-4 years | D78: 92814 | E78: 93835 | F78: 91004 | G78: 93735.12 | H78: 93735.12 | I78: 112482.144 | J78: 107795.388 | K78: 98421.876 | L78: 28120.536 | N78: 18747.024 | O78: 14060.268 | P78: 4686.756 | Q78: 100832.12 | R78: 100832.12 | S78: 98421.876
A79: Band 9 (4-5 years service) | B79: Band 9 | C79: 4-5 years | D79: 97269 | E79: 98339 | F79: 91004 | G79: 93735.12 | H79: 93735.12 | I79: 112482.144 | J79: 107795.388 | K79: 98421.876 | L79: 28120.536 | N79: 18747.024 | O79: 14060.268 | P79: 4686.756 | Q79: 100832.12 | R79: 100832.12 | S79: 98421.876
A80: Band 9 (5+ years service) | B80: Band 9 | C80: 5+ years | D80: 102506 | E80: 103860 | F80: 104927 | G80: 108074.81 | H80: 108074.81 | I80: 129689.772 | J80: 124286.0315 | K80: 113478.5505 | L80: 32422.443 | N80: 21614.962 | O80: 16211.2215 | P80: 5403.7405 | Q80: 115171.81 | R80: 115171.81 | S80: 113478.5505
